Workbook

Sheet Содержание
B1: Содержание:
A3: 1. | B3: Численность воспитанников по Российской Федерации c 2014 года
A4: 2. | B4: Численность педагогических работников по Российской Федерации с 2014 года
A5: 3. | B5: Электронные средства обучения в дошкольных образовательных организациях с 2014 года
A6: 4. | B6: Численность воспитанников, приходящихся на 100 мест в организациях, осуществляющих образовательную деятельность по образовательным программам дошкольного образования, присмотр и уход за детьми с 2020 года
A7: 5. | B7: Обеспеченность детей дошкольного возраста местами в организациях по Российской Федерации и субъектам Российской Федерации с 2018 года
A8: 6. | B8: Охват детей дошкольным образованием с разбивкой по возрастам по Российской Федерации и субъектам Российской Федерации по городской и сельской местности с 2018 года
A9: 7. | B9: Охват детей дошкольным образованием с разбивкой по возрастам по Российской Федерации и субъектам Российской Федерации по городской местности с 2019 года
A10: 8. | B10: Охват детей дошкольным образованием с разбивкой по возрастам по Российской Федерации и субъектам Российской Федерации по сельской местности с 2019 года
B11: Информация для расчета показателя "Удельный вес численности воспитанников частных образовательных организаций, осуществляющих образовательную деятельность по программам дошкольного образования, в общей численности воспитанников образовательных организаций
A12: 9.
B14: Примечание:
B15: Формирование данных осуществляется на основе формы федерального статистического наблюдения № 85-К «Сведения о деятельности организации, осуществляющей образовательную деятельность по образовательным программам дошкольного образования, присмотр и уход за детьми».
B16: Во вкладках 1, 2, 4-8 в 2021 году показатели приведены с учетом индивидуальных предпринимателей.
B17: Статистические данные по Российской Федерации публикуются без учета статистической информации по Донецкой Народной Республике (ДНР), Луганской Народной Республике (ЛНР), Запорожской и Херсонской областям.
B18: Во вкладках 5-8 показатели приведены с учётом итогов Всероссийской переписи населения 2020 г.
B20: Ответственный исполнитель
B21: Васильева Юлия Андреевна
B22: 8 (495) 568-00-42 (доб. 99-111)
B24: Обновлено: | C24: 30.03.2026 г.

Sheet 1
A1: К содержанию
A3: Численность воспитанников в организациях, реализующих программы дошкольного образования, а также занимающихся присмотром и уходом за детьми (на конец года)
B4: 2014 | C4: 2015 | D4: 2016 | E4: 2017 | F4: 2018 | G4: 2019 | H4: 2020 | I4: 2021 | J4: 2022 | K4: 2023 | L4: 2024 | M4: 2025
A5: Численность воспитанников – всего, тыс. человек | B5: 6813.6 | C5: 7151.6 | D5: 7342.9 | E5: 7477.9 | F5: 7582.4 | G5: 7606.7 | H5: 7442.9 | I5: 7340.6 | J5: 7008.1 | K5: 6665 | L5: 6385.3 | M5: 6091.732
A6: в том числе:
A7: в городах и поселках городского типа | B7: 5415.6 | C7: 5693.8 | D7: 5856.3 | E7: 5976.5 | F7: 6083.6 | G7: 6128.5 | H7: 6019.6 | I7: 5937.1 | J7: 5657.8 | K7: 5371.4 | L7: 5139.6 | M7: 4908.304
A8: в сельской местности | B8: 1398 | C8: 1457.7 | D8: 1486.6 | E8: 1501.5 | F8: 1498.9 | G8: 1478.2 | H8: 1423.4 | I8: 1403.5 | J8: 1350.4 | K8: 1293.7 | L8: 1245.6 | M8: 1183.428
A9: Из общей численности воспитанников – воспитанники-инвалиды, тыс. человек | B9: 54.7 | C9: 60.5 | D9: 67.3 | E9: 74.8 | F9: 79.2 | G9: 83.8 | H9: 83.4 | I9: 84.8 | J9: 86.9 | K9: 89.3 | L9: 88 | M9: 88.55
A10: в том числе:
A11: в городах и поселках городского типа | B11: 47.1 | C11: 51.9 | D11: 57.6 | E11: 63.7 | F11: 67.9 | G11: 72.5 | H11: 72.9 | I11: 74.2 | J11: 76.4 | K11: 78.8 | L11: 77.6 | M11: 77.911
A12: в сельской местности | B12: 7.6 | C12: 8.6 | D12: 9.7 | E12: 11 | F12: 11.2 | G12: 11.3 | H12: 10.5 | I12: 10.6 | J12: 10.4 | K12: 10.5 | L12: 10.4 | M12: 10.639

Sheet 2
A1: К содержанию
A3: Численность педагогических работников в организациях, реализующих программы дошкольного образования, а также занимающихся присмотром и уходом за детьми (на конец года)
B4: Численность педагогических работников, тыс.чел | C4: из них имеют обpазование, пpоцентов
B5: тыс. человек | C5: высшее | D5: из них педагогическое | E5: сpеднее профессиональное образование по программам подготовки специалистов среднего звена | F5: из них педагогическое
A6: 2014 г.
A7: Педагогические работники - всего | B7: 630.3 | C7: 48.7 | D7: 45.5 | E7: 49.5 | F7: 45.3
A8: из них:
A9: воспитатели (включая старших воспитателей) | B9: 510.9 | C9: 44.1 | D9: 41 | E9: 53.9 | F9: 49.5
A10: музыкальные руководители | B10: 43.3 | C10: 43 | D10: 38.9 | E10: 55.7 | F10: 49.4
A11: инструкторы по физической культуре | B11: 20.3 | C11: 56.5 | D11: 52.2 | E11: 42 | F11: 38.6
A12: учителя-логопеды | B12: 27.4 | C12: 98 | D12: 96.8 | E12: 1.7 | F12: 1.5
A13: учителя-дефектологи | B13: 4.5 | C13: 98.6 | D13: 97.8 | E13: 1.1 | F13: 1
A14: педагоги-психологи | B14: 14.4 | C14: 96.4 | D14: 92.6 | E14: 3.2 | F14: 2.7
A15: 2015 г.
A16: Педагогические работники - всего | B16: 642.8 | C16: 50.7 | D16: 47.7 | E16: 47.7 | F16: 44.2
A17: из них:
A18: воспитатели (включая старших воспитателей) | B18: 521.4 | C18: 46.2 | D18: 43.4 | E18: 52 | F18: 48.4
A19: музыкальные руководители | B19: 44 | C19: 44.6 | D19: 40.5 | E19: 54.3 | F19: 48.3
A20: инструкторы по физической культуре | B20: 20.8 | C20: 58.8 | D20: 54.6 | E20: 39.9 | F20: 37
A21: учителя-логопеды | B21: 28.2 | C21: 98.2 | D21: 96.8 | E21: 1.5 | F21: 1.3
A22: учителя-дефектологи | B22: 4.5 | C22: 98.6 | D22: 97.9 | E22: 1.2 | F22: 1.1
A23: педагоги-психологи | B23: 14.7 | C23: 96.9 | D23: 93.5 | E23: 2.7 | F23: 2.3
A24: 2016 г.
A25: Педагогические работники - всего | B25: 656.2 | C25: 52.6 | D25: 49.9 | E25: 46.3 | F25: 43.5
A26: из них:
A27: воспитатели (включая старших воспитателей) | B27: 530.1 | C27: 48.2 | D27: 45.6 | E27: 50.6 | F27: 47.8
A28: музыкальные руководители | B28: 44.5 | C28: 46.1 | D28: 42.1 | E28: 53.1 | F28: 47.9
A29: инструкторы по физической культуре | B29: 21.7 | C29: 60.5 | D29: 56.6 | E29: 38.8 | F29: 36.4
A30: учителя-логопеды | B30: 29.5 | C30: 98.5 | D30: 97.7 | E30: 1.4 | F30: 1.3
A31: учителя-дефектологи | B31: 4.8 | C31: 98.7 | D31: 97.7 | E31: 1.1 | F31: 1
A32: педагоги-психологи | B32: 15.4 | C32: 97.3 | D32: 94.4 | E32: 2.5 | F32: 2.3
A33: 2017 г.
A34: Педагогические работники - всего | B34: 662.7 | C34: 54 | D34: 51.5 | E34: 45.1 | F34: 42.9
A35: из них:
A36: воспитатели (включая старших воспитателей) | B36: 533.8 | C36: 49.6 | D36: 47.1 | E36: 49.5 | F36: 47.3
A37: музыкальные руководители | B37: 44.4 | C37: 47.5 | D37: 44 | E37: 51.8 | F37: 47.7
A38: инструкторы по физической культуре | B38: 22.2 | C38: 61.9 | D38: 58.3 | E38: 37.5 | F38: 35.5
A39: учителя-логопеды | B39: 30.9 | C39: 98.4 | D39: 97.7 | E39: 1.5 | F39: 1.4
A40: учителя-дефектологи | B40: 5.1 | C40: 98.6 | D40: 98.2 | E40: 1.2 | F40: 1.1
A41: педагоги-психологи | B41: 16 | C41: 97.4 | D41: 95 | E41: 2.4 | F41: 2.3
A42: 2018 г.
A43: Педагогические работники - всего | B43: 669.8 | C43: 55.3 | D43: 52.9 | E43: 44 | F43: 42.1
A44: из них:
A45: воспитатели (включая старших воспитателей) | B45: 537.1 | C45: 50.8 | D45: 48.4 | E45: 48.4 | F45: 46.5
A46: музыкальные руководители | B46: 44.2 | C46: 48.6 | D46: 45.4 | E46: 50.8 | F46: 47.2
A47: инструкторы по физической культуре | B47: 22.6 | C47: 62.7 | D47: 59.5 | E47: 36.7 | F47: 35.1
A48: учителя-логопеды | B48: 32.3 | C48: 98.3 | D48: 97.7 | E48: 1.5 | F48: 1.4
A49: учителя-дефектологи | B49: 5.6 | C49: 98.4 | D49: 97.6 | E49: 1.4 | F49: 1.3
A50: педагоги-психологи | B50: 16.9 | C50: 97.3 | D50: 95 | E50: 2.5 | F50: 2.4
A51: 2019 г.
A52: Педагогические работники - всего | B52: 678.6 | C52: 56.4 | D52: 53.8 | E52: 43 | F52: 41.2
A53: из них:
A54: воспитатели (включая старших воспитателей) | B54: 541.4 | C54: 51.8 | D54: 49.3 | E54: 47.6 | F54: 45.8
A55: музыкальные руководители | B55: 44.2 | C55: 49.9 | D55: 46.7 | E55: 49.5 | F55: 46.2
A56: инструкторы по физической культуре | B56: 23.3 | C56: 63.1 | D56: 59.8 | E56: 36.3 | F56: 34.7
A57: учителя-логопеды | B57: 33.8 | C57: 98.4 | D57: 97.6 | E57: 1.5 | F57: 1.4
A58: учителя-дефектологи | B58: 6.2 | C58: 98.6 | D58: 97.8 | E58: 1.3 | F58: 1.2
A59: педагоги-психологи | B59: 18.1 | C59: 97.1 | D59: 94.5 | E59: 2.5 | F59: 2.3
A60: 2020 г.
A61: Педагогические работники - всего | B61: 682.995 | C61: 57.11154547 | D61: 54.38648892 | E61: 42.2765906 | F61: 40.5140594
A62: из них:
A63: Воспитатели | B63: 518.614 | C63: 50.71710366 | D63: 47.96148966 | E63: 48.64137875 | F63: 46.74864157
A64: Старшие воспитатели | B64: 24.574 | C64: 88.32912835 | D64: 85.92007813 | E64: 11.30463091 | F64: 10.96687556
A65: Музыкальные руководители | B65: 43.814 | C65: 50.96544483 | D65: 47.78609577 | E65: 48.48222029 | F65: 45.34395399
A66: Инструкторы по физической культуре | B66: 23.591 | C66: 63.53694205 | D66: 60.15853503 | E66: 35.86961129 | F66: 34.37751685
A67: Учителя-логопеды | B67: 35.009 | C67: 98.19189351 | D67: 97.23785312 | E67: 1.571024594 | F67: 1.47390671
A68: Учителя-дефектологи | B68: 6.561 | C68: 98.52156683 | D68: 97.5308642 | E68: 1.280292638 | F68: 1.158360006
A69: Педагоги-психологи | B69: 18.853 | C69: 97.02434626 | D69: 94.39346523 | E69: 2.604360049 | F69: 2.418713202
A70: Социальные педагоги | B70: 1.499 | C70: 78.91927952 | D70: 72.84856571 | E70: 20.88058706 | F70: 18.81254169
A71: Педагоги-организаторы | B71: 0.402 | C71: 65.42288557 | D71: 57.71144279 | E71: 33.83084577 | F71: 28.60696517
A72: Педагоги дополнительного образования | B72: 5.102 | C72: 72.01097609 | D72: 66.05252842 | E72: 26.61701294 | F72: 24.18659349
A73: Другие педагогические работники | B73: 4.976 | C73: 75.68327974 | D73: 71.3022508 | E73: 21.54340836 | F73: 18.34807074
A74: 2021 г.
A75: Педагогические работники - всего | B75: 681.5 | C75: 57.84969714 | D75: 54.83254684 | E75: 41.58038691 | F75: 39.69602526
A76: из них:
A77: Воспитатели | B77: 512.416 | C77: 51.09169113 | D77: 48.05646194 | E77: 48.31230875 | F77: 46.23840786
A78: Старшие воспитатели | B78: 25.13 | C78: 88.7942698 | D78: 86.15598886 | E78: 11.17787505 | F78: 10.7321926
A79: Музыкальные руководители | B79: 42.961 | C79: 52.22411024 | D79: 48.8908545 | E79: 47.20793278 | F79: 44.23314169
A80: Инструкторы по физической культуре | B80: 23.644 | C80: 64.06699374 | D80: 60.29013703 | E80: 35.3916427 | F80: 33.82253426
A81: Учителя-логопеды | B81: 36.589 | C81: 98.10052201 | D81: 96.88157643 | E81: 1.713629779 | F81: 1.604307305
A82: Учителя-дефектологи | B82: 6.87 | C82: 98.5007278 | D82: 97.36535662 | E82: 1.397379913 | F82: 1.251819505
A83: Педагоги-психологи | B83: 19.287 | C83: 97.10685954 | D83: 94.26556748 | E83: 2.670192358 | F83: 2.457613937
A84: Социальные педагоги | B84: 1.491 | C84: 78.40375587 | D84: 71.49564051 | E84: 21.19382964 | F84: 19.65124078
A85: Педагоги-организаторы | B85: 0.498 | C85: 69.87951807 | D85: 60.64257028 | E85: 27.91164659 | F85: 21.68674699
A86: Педагоги иностранных языков | B86: 1.027 | C86: 92.21032132 | D86: 87.82862707 | E86: 6.718597858 | F86: 6.523855891
A87: Педагоги дополнительного образования | B87: 5.725 | C87: 73.51965066 | D87: 66.58515284 | E87: 25.04803493 | F87: 22.48034934
A88: Другие педагогические работники | B88: 5.866 | C88: 76.45755199 | D88: 70.35458575 | E88: 19.74087965 | F88: 17.01329697
A89: 2022 г.
A90: Педагогические работники - всего | B90: 665.905 | C90: 58.19193428 | D90: 55.12903492 | E90: 41.31009679 | F90: 39.15603577
A91: из них:
A92: Воспитатели | B92: 501.08 | C92: 51.35607089 | D92: 48.23082143 | E92: 48.08154387 | F92: 45.66396583
A93: Старшие воспитатели | B93: 24.355 | C93: 89.54218846 | D93: 86.85690823 | E93: 10.5399302 | F93: 10.28946828
A94: Музыкальные руководители | B94: 41.086 | C94: 53.22737672 | D94: 49.86613445 | E94: 46.24689675 | F94: 43.07306625
A95: Инструкторы по физической культуре | B95: 23.372 | C95: 64.22642478 | D95: 60.42700667 | E95: 35.24302584 | F95: 33.29625193
A96: Учителя-логопеды | B96: 37.595 | C96: 97.87205745 | D96: 96.5740125 | E96: 2.034845059 | F96: 1.920468147
A97: Учителя-дефектологи | B97: 7.131 | C97: 98.12088066 | D97: 96.92890198 | E97: 1.837049502 | F97: 1.612677044
A98: Педагоги-психологи | B98: 19.177 | C98: 96.5896647 | D98: 93.84679564 | E98: 3.274756218 | F98: 3.06095844
A99: Социальные педагоги | B99: 1.336 | C99: 75.74850299 | D99: 68.48802395 | E99: 23.20359281 | F99: 21.03293413
A100: Педагоги-организаторы | B100: 0.376 | C100: 71.27659574 | D100: 63.03191489 | E100: 28.19148936 | F100: 24.73404255
A101: Преподаватели, учителя иностранных языков | B101: 0.483 | C101: 92.75362319 | D101: 86.7494824 | E101: 5.175983437 | F101: 4.968944099
A102: Педагоги дополнительного образования | B102: 5.175 | C102: 72.17391304 | D102: 65.58454106 | E102: 27.0531401 | F102: 24.05797101
A103: Другие педагогические работники | B103: 4.739 | C103: 78.11774636 | D103: 73.55982275 | E103: 20.86938173 | F103: 18.50601393
A104: 2023 г.
A105: Педагогические работники - всего | B105: 652.24 | C105: 58.56371888 | D105: 55.2187845 | E105: 40.94551085 | F105: 38.51649699
A106: из них:
A107: Воспитатели | B107: 485.143 | C107: 51.33084472 | D107: 47.93844289 | E107: 48.07448525 | F107: 45.31612329
A108: Старшие воспитатели | B108: 24.211 | C108: 89.76085251 | D108: 86.82830119 | E108: 10.0326298 | F108: 9.51633555
A109: Музыкальные руководители | B109: 40.255 | C109: 53.97590361 | D109: 50.50801143 | E109: 45.78561669 | F109: 42.43448019
A110: Инструкторы по физической культуре | B110: 23.39 | C110: 64.57887986 | D110: 60.30782386 | E110: 35.15177426 | F110: 33.04403591
A111: Учителя-логопеды | B111: 39.036 | C111: 97.82764628 | D111: 96.2675479 | E111: 2.095501588 | F111: 1.911056461
A112: Учителя-дефектологи | B112: 7.761 | C112: 97.86110037 | D112: 96.45664219 | E112: 2.074474939 | F112: 1.894085814
A113: Педагоги-психологи | B113: 19.553 | C113: 96.35861505 | D113: 92.88088784 | E113: 3.544213164 | F113: 3.196440444
A114: Социальные педагоги | B114: 1.315 | C114: 74.4486692 | D114: 66.31178707 | E114: 25.24714829 | F114: 23.0418251
A115: Педагоги-организаторы | B115: 0.364 | C115: 71.42857143 | D115: 65.65934066 | E115: 28.02197802 | F115: 25
A116: Преподаватели, учителя иностранных языков | B116: 0.432 | C116: 95.13888889 | D116: 88.19444444 | E116: 4.62962963 | F116: 4.62962963
A117: Педагоги дополнительного образования | B117: 5.34 | C117: 72.30337079 | D117: 65.35580524 | E117: 27.30337079 | F117: 24.51310861
A118: Другие педагогические работники | B118: 5.44 | C118: 78.08823529 | D118: 72.07720588 | E118: 21.45220588 | F118: 18.67647059
A119: 2024 г.
A120: Педагогические работники - всего | B120: 637.434 | C120: 58.41420445 | D120: 55.10562662 | E120: 40.95012189 | F120: 38.43080225
A121: из них:
A122: Воспитатели | B122: 469.654 | C122: 50.8233721 | D122: 47.51732126 | E122: 48.40563479 | F122: 45.51818999
A123: Старшие воспитатели | B123: 23.733 | C123: 89.74002444 | D123: 86.76526356 | E123: 9.990308853 | F123: 9.501537943
A124: Музыкальные руководители | B124: 39.465 | C124: 54.17965286 | D124: 50.57899405 | E124: 45.5289497 | F124: 42.26023058
A125: Инструкторы по физической культуре | B125: 23.37 | C125: 64.33033804 | D125: 59.83311938 | E125: 35.28455285 | F125: 32.9995721
A126: Учителя-логопеды | B126: 39.935 | C126: 97.61111807 | D126: 95.93589583 | E126: 2.268686616 | F126: 2.105922123
A127: Учителя-дефектологи | B127: 8.235 | C127: 97.52276867 | D127: 95.93199757 | E127: 2.343655131 | F127: 2.100789314
A128: Педагоги-психологи | B128: 19.623 | C128: 95.76007746 | D128: 92.00428069 | E128: 4.030984049 | F128: 3.500993732
A129: Социальные педагоги | B129: 1.28 | C129: 77.34375 | D129: 69.921875 | E129: 22.5 | F129: 19.765625
A130: Педагоги-организаторы | B130: 0.452 | C130: 74.11504425 | D130: 67.47787611 | E130: 25.88495575 | F130: 22.34513274
A131: Преподаватели, учителя иностранных языков | B131: 0.514 | C131: 94.55252918 | D131: 88.32684825 | E131: 5.058365759 | F131: 4.474708171
A132: Педагоги дополнительного образования | B132: 5.2 | C132: 70.82692308 | D132: 64.19230769 | E132: 28.63461538 | F132: 25.30769231
A133: Другие педагогические работники | B133: 5.973 | C133: 77.80010045 | D133: 72.00736648 | E133: 21.69763938 | F133: 19.32027457
A134: 2025 г.
A135: Педагогические работники - всего | B135: 628.884 | C135: 58.61398923 | D135: 55.13942158 | E135: 40.6811113 | F135: 37.97393478
A136: из них:
A137: Воспитатели | B137: 459.836 | C137: 50.74787533 | D137: 47.25880531 | E137: 48.42161118 | F137: 45.28701537
A138: Старшие воспитатели | B138: 23.403 | C138: 90.0397385 | D138: 86.7709268 | E138: 9.742340726 | F138: 9.195402299
A139: Музыкальные руководители | B139: 38.889 | C139: 55.02327136 | D139: 51.28699632 | E139: 44.55758698 | F139: 41.18902517
A140: Инструкторы по физической культуре | B140: 23.361 | C140: 64.60767947 | D140: 59.97174778 | E140: 34.89148581 | F140: 32.43867985
A141: Учителя-логопеды | B141: 40.717 | C141: 97.42368053 | D141: 95.70449689 | E141: 2.38966525 | F141: 2.200555051
A142: Учителя-дефектологи | B142: 8.773 | C142: 97.3213268 | D142: 95.7369201 | E142: 2.496295452 | F142: 2.268323265
A143: Педагоги-психологи | B143: 20.087 | C143: 95.41494499 | D143: 91.56668492 | E143: 4.246527605 | F143: 3.738736496
A144: Социальные педагоги | B144: 1.225 | C144: 75.18367347 | D144: 68.24489796 | E144: 23.51020408 | F144: 20.65306122
A145: Педагоги-организаторы | B145: 471 | C145: 71.12526539 | D145: 63.90658174 | E145: 28.66242038 | F145: 23.99150743
A146: Преподаватели, учителя иностранных языков | B146: 488 | C146: 96.31147541 | D146: 89.95901639 | E146: 2.663934426 | F146: 2.663934426
A147: Педагоги дополнительного образования | B147: 5236 | C147: 70.64553094 | D147: 63.55996944 | E147: 28.11306341 | F147: 24.90450726
A148: Другие педагогические работники | B148: 6398 | C148: 76.53954361 | D148: 70.70959675 | E148: 22.89778056 | F148: 20.14692091

Sheet 3
A1: К содержанию
A3: Электронные средства обучения в дошкольных образовательных организациях (на конец года)
B4: 2014 | C4: 2015 | D4: 2016 | E4: 2017 | F4: 2018 | G4: 2019 | H4: 2020 | I4: 2021 | J4: 2022 | K4: 2023 | L4: 2024 | M4: 2025
A5: Число персональных компьютеров, единиц | B5: 185338 | C5: 205547 | D5: 224837 | E5: 239259 | F5: 255791 | G5: 277074 | H5: 295031 | I5: 333749 | J5: 345310 | K5: 349953 | L5: 358197 | M5: 358404
A6: из них:
A7: доступные для использования детьми | B7: 26077 | C7: 30956 | D7: 36694 | E7: 42724 | F7: 46642 | G7: 49433 | H7: 53725 | I7: 63386 | J7: 67496 | K7: 67014 | L7: 66682 | M7: 66730
A8: Число компьютеров, имеющих доступ к сети Интернет, единиц | B8: 100496 | C8: 115472 | D8: 131206 | E8: 144244 | F8: 158046 | G8: 174620 | H8: 191828 | I8: 211780 | J8: 223025 | K8: 230384 | L8: 237267 | M8: 236500

Sheet 4
A1: К содержанию
A3: Численность воспитанников, приходящихся на 100 мест в организациях, осуществляющих образовательную деятельность по образовательным программам дошкольного образования, присмотр и уход за детьми ( чел.)
B5: 2020 год | E5: 2021 год | H5: 2022 год | K5: 2023 год | N5: 2024 год | Q5: 2025 год
B6: Всего | C6: Из них: | E6: Всего | F6: Из них: | H6: Всего | I6: Из них: | K6: Всего | L6: Из них: | N6: Всего | O6: Из них: | Q6: Всего | R6: Из них:
C7: Городская местность | D7: Сельская местность | F7: Городская местность | G7: Сельская местность | I7: Городская местность | J7: Сельская местность | L7: Городская местность | M7: Сельская местность | O7: Городская местность | P7: Сельская местность | R7: Городская местность | S7: Сельская местность
A8: Российская Федерация | B8: 101.6697752 | C8: 105.8074221 | D8: 87.24163632 | E8: 98.85950398 | F8: 102.6767881 | G8: 85.42491517 | H8: 96.85280676 | I8: 100.3144133 | J8: 84.61882624 | K8: 94.2144918 | L8: 97.69534721 | M8: 82.07286219 | N8: 92.73060025 | O8: 96.11129863 | P8: 80.97772242 | Q8: 91.49481346 | R8: 94.82545508 | S8: 79.86087773
A9: Центральный федеральный округ | B9: 100.0853206 | C9: 102.9254738 | D9: 83.27678271 | E9: 98.6072687 | F9: 101.1830257 | G9: 83.55740827 | H9: 97.78690348 | I9: 100.1076241 | J9: 84.22082415 | K9: 95.4154201 | L9: 97.95657915 | M9: 81.03153526 | N9: 95.02416157 | O9: 97.3217253 | P9: 81.50120652 | Q9: 93.28558892 | R9: 95.9511431 | S9: 76.68816169
A10: Белгородская область | B10: 101.7028446 | C10: 106.1188446 | D10: 89.56898351 | E10: 100.0296828 | F10: 103.9910749 | G10: 89.4002499 | H10: 97.80854726 | I10: 102.5231688 | J10: 85.56429033 | K10: 91.54347667 | L10: 95.47092023 | M10: 80.81360381 | N10: 87.76375268 | O10: 90.54387735 | P10: 80.30529954 | Q10: 86.43623016 | R10: 89.50794986 | S10: 78.25548478
A11: Брянская область | B11: 98.18873028 | C11: 106.8518905 | D11: 66.09630267 | E11: 92.1659398 | F11: 98.38060283 | G11: 66.75156918 | H11: 87.40095666 | I11: 93.53327929 | J11: 61.11754488 | K11: 82.91702608 | L11: 88.98114749 | M11: 57.23481937 | N11: 79.30617184 | O11: 85.18820677 | P11: 54.3751801 | Q11: 75.05904495 | R11: 80.74242769 | S11: 50.79720008
A12: Владимирская область | B12: 91.31561133 | C12: 94.22052298 | D12: 75.13046454 | E12: 88.85316605 | F12: 91.60830569 | G12: 73.12110848 | H12: 87.30646317 | I12: 89.93741285 | J12: 72.45010071 | K12: 85.88399517 | L12: 88.25410397 | M12: 72.41814826 | N12: 86.8915084 | O12: 89.69968193 | P12: 71.79359714 | Q12: 85.29198199 | R12: 87.81411818 | S12: 71.26521969
A13: Воронежская область | B13: 96.57935256 | C13: 100.3990268 | D13: 82.93647345 | E13: 101.6402583 | F13: 106.9644466 | G13: 83.1504489 | H13: 104.9116872 | I13: 109.560438 | J13: 88.87387822 | K13: 99.07643959 | L13: 104.6957737 | M13: 80.77448125 | N13: 95.55503242 | O13: 100.7088608 | P13: 79.16256598 | Q13: 90.92155904 | R13: 95.61509159 | S13: 76.12783614
A14: Ивановская область | B14: 95.28526598 | C14: 97.20710763 | D14: 79.82905983 | E14: 87.28530363 | F14: 88.91961168 | G14: 74.03893342 | H14: 89.45302534 | I14: 91.05617281 | J14: 76.90175013 | K14: 87.39745693 | L14: 89.27272306 | M14: 72.94159671 | N14: 87.03090988 | O14: 89.09647326 | P14: 71.5919572 | Q14: 85.16699634 | R14: 87.48971405 | S14: 67.43866536
A15: Калужская область | B15: 104.3021521 | C15: 108.6807355 | D15: 83.21844545 | E15: 101.4854079 | F15: 105.2453795 | G15: 82.41126071 | H15: 99.49182722 | I15: 102.5971854 | J15: 83.50553506 | K15: 99.86291547 | L15: 103.0159371 | M15: 83.75 | N15: 99.08294761 | O15: 102.1445427 | P15: 83.24389589 | Q15: 99.10423267 | R15: 102.5604591 | S15: 81.72574883
A16: Костромская область | B16: 103.1185153 | C16: 111.5996473 | D16: 75.89812992 | E16: 98.27134927 | F16: 105.5675555 | G16: 73.5186355 | H16: 90.66705252 | I16: 95.81075143 | J16: 71.28466952 | K16: 87.18782949 | L16: 93.05385557 | M16: 65.43752659 | N16: 82.38999537 | O16: 87.84724939 | P16: 61.95986524 | Q16: 78.79118822 | R16: 84.0360731 | S16: 59.19302394
A17: Курская область | B17: 103.7989792 | C17: 109.417746 | D17: 74.49092344 | E17: 99.5390196 | F17: 106.2562563 | G17: 71.75937904 | H17: 97.25521038 | I17: 102.8553992 | J17: 72.38625018 | K17: 92.00624884 | L17: 96.99104129 | M17: 69.93820951 | N17: 95.37248136 | O17: 99.51099359 | P17: 71.82024325 | Q17: 93.29876223 | R17: 97.46830765 | S17: 72.17228464
A18: Липецкая область | B18: 107.4268186 | C18: 116.219495 | D18: 84.81352489 | E18: 106.4206551 | F18: 114.9177132 | G18: 84.5893186 | H18: 104.4036852 | I18: 112.2680382 | J18: 83.86875238 | K18: 99.56136579 | L18: 107.5310047 | M18: 79.29300625 | N18: 97.374937 | O18: 105.3366099 | P18: 76.67245188 | Q18: 95.44248089 | R18: 103.6476868 | S18: 74.9623285
A19: Московская область | B19: 106.9225593 | C19: 109.4331074 | D19: 96.00173438 | E19: 106.294616 | F19: 107.7672607 | G19: 100.0369791 | H19: 104.9356193 | I19: 105.6826776 | J19: 101.6704164 | K19: 103.1196529 | L19: 103.8233936 | M19: 100.1378614 | N19: 104.4059788 | O19: 103.813563 | P19: 107.3019309 | Q19: 102.3220931 | R19: 102.8428939 | S19: 99.21057687
A20: Орловская область | B20: 98.52442175 | C20: 108.3687324 | D20: 62.76319585 | E20: 95.91160566 | F20: 105.5666162 | G20: 60.66288705 | H20: 92.6259913 | I20: 101.7178363 | J20: 58.95006017 | K20: 88.16782571 | L20: 96.19836775 | M20: 57.67588933 | N20: 89.74450217 | O20: 99.04619158 | P20: 56.08874281 | Q20: 87.01005768 | R20: 95.85146641 | S20: 55.35230352
A21: Рязанская область | B21: 98.09697656 | C21: 105.5222184 | D21: 69.5280716 | E21: 93.46459399 | F21: 100.0858976 | G21: 66.95660969 | H21: 89.98378346 | I21: 95.24876737 | J21: 68.38933715 | K21: 87.48101006 | L21: 92.8161649 | M21: 64.92056677 | N21: 86.13846801 | O21: 90.94326903 | P21: 65.43789097 | Q21: 84.60562302 | R21: 89.76 | S21: 63.0804077
A22: Смоленская область | B22: 91.21332203 | C22: 94.62208903 | D22: 74.19709031 | E22: 90.184885 | F22: 94.29099701 | G22: 70.70966001 | H22: 88.30097921 | I22: 91.35675739 | J22: 72.63569388 | K22: 83.34081388 | L22: 85.98378688 | M22: 70.66897847 | N22: 82.17431858 | O22: 85.04746338 | P22: 68.69654969 | Q22: 80.44759176 | R22: 83.55096537 | S22: 66.14101592
A23: Тамбовская область | B23: 96.04816928 | C23: 101.8718778 | D23: 83.02110037 | E23: 87.13128805 | F23: 93.70460752 | G23: 73.27454223 | H23: 83.79264829 | I23: 90.97203728 | J23: 68.8221139 | K23: 79.65623236 | L23: 87.13956869 | M23: 62.97021679 | N23: 77.23216192 | O23: 85.10828654 | P23: 59.53272324 | Q23: 77.36354228 | R23: 86.16997038 | S23: 57.64774466
A24: Тверская область | B24: 92.35220008 | C24: 96.80011743 | D24: 67.59268716 | E24: 91.01953236 | F24: 95.35744855 | G24: 66.83609959 | H24: 92.82613361 | I24: 96.90274063 | J24: 69.42249917 | K24: 87.68870212 | L24: 91.82133581 | M24: 63.79480434 | N24: 84.81548404 | O24: 88.82764671 | P24: 61.43587464 | Q24: 81.5906226 | R24: 85.26094437 | S24: 59.70591588
A25: Тульская область | B25: 85.92969022 | C25: 88.98959607 | D25: 70.88002637 | E25: 83.58106595 | F25: 86.11637302 | G25: 70.7587961 | H25: 82.38466234 | I25: 84.6159184 | J25: 70.85350547 | K25: 78.41244772 | L25: 81.32669049 | M25: 64.1160722 | N25: 78.5155712 | O25: 81.84127102 | P25: 62.78498772 | Q25: 76.0662956 | R25: 79.20910725 | S25: 60.93228744
A26: Ярославская область | B26: 102.7848064 | C26: 106.6679341 | D26: 81.41171994 | E26: 99.65548451 | F26: 102.9238044 | G26: 82.13390287 | H26: 99.79051785 | I26: 102.4765693 | J26: 86.045416 | K26: 99.04462767 | L26: 102.5331031 | M26: 82.70571827 | N26: 99.88645495 | O26: 103.2984426 | P26: 83.48884381 | Q26: 97.83706774 | R26: 99.28157838 | S26: 88.75556155
A27: г. Москва | B27: 99.5164008 | C27: 99.5164008 | D27: - | E27: 99.22893283 | F27: 99.22893283 | G27: - | H27: 99.63396535 | I27: 99.63396535 | J27: - | K27: 99.5727388 | L27: 99.5727388 | M27: - | N27: 99.58791795 | O27: 99.58791795 | P27: - | Q27: 99.74777774 | R27: 99.74777774 | S27: –
A28: Северо-Западный федеральный округ | B28: 100.2551091 | C28: 103.3585324 | D28: 79.42467336 | E28: 97.38235751 | F28: 100.3658538 | G28: 77.12401827 | H28: 95.86676915 | I28: 98.61584809 | J28: 76.83334736 | K28: 92.51770689 | L28: 95.03090027 | M28: 74.9744704 | N28: 90.43725014 | O28: 92.83981207 | P28: 73.25950094 | Q28: 89.59143998 | R28: 91.67423452 | S28: 74.39358733
A29: Республика Карелия | B29: 90.7786546 | C29: 94.86526213 | D29: 68.5445175 | E29: 88.83447332 | F29: 92.8786589 | G29: 68.27563249 | H29: 89.16384699 | I29: 92.58189479 | J29: 70.6940874 | K29: 84.84529141 | L29: 87.99916588 | M29: 68.00296956 | N29: 84.09034882 | O29: 88.67995205 | P29: 62.80403058 | Q29: 83.90174651 | R29: 88.47883704 | S29: 62.7436421
A30: Республика Коми | B30: 89.37335028 | C30: 93.0331439 | D30: 75.96504559 | E30: 84.87208195 | F30: 88.15909043 | G30: 72.45289045 | H30: 84.30767585 | I30: 87.95663392 | J30: 70.74852817 | K30: 86.34058043 | L30: 90.03556026 | M30: 72.54754284 | N30: 85.76819752 | O30: 89.99675043 | P30: 70.11229196 | Q30: 85.63563564 | R30: 90.12020275 | S30: 69.21853462
A31: Архангельская область | B31: 88.16626379 | C31: 92.72361231 | D31: 70.13786642 | E31: 84.73360656 | F31: 89.08045008 | G31: 67.43639659 | H31: 84.61538462 | I31: 89.14875872 | J31: 66.45578618 | K31: 80.9776569 | L31: 85.68719688 | M31: 61.90370699 | N31: 80.95066223 | O31: 85.41662647 | P31: 61.4834749 | Q31: 79.2569253 | R31: 83.52775826 | S31: 60.14733627
A32: Ненецкий автономный округ | B32: 89 | C32: 95 | D32: 72 | E32: 88.1251603 | F32: 94.0027416 | G32: 70.64220183 | H32: 86.56257998 | I32: 92.6611797 | J32: 68.61755802 | K32: 83.49973726 | L32: 89.14106145 | M32: 66.34819533 | N32: 86.64929047 | O32: 91.22673756 | P32: 71.95121951 | Q32: 78.24175824 | R32: 86.22372372 | S32: 56.45491803
A33: Архангельская область без Ненецкого округа | B33: 88 | C33: 93 | D33: 70 | E33: 84.54544161 | F33: 88.82560636 | G33: 67.21040529 | H33: 84.50100731 | I33: 88.95708966 | J33: 66.29196299 | K33: 80.82902357 | L33: 85.49690277 | M33: 61.57142857 | N33: 80.62418078 | O33: 85.10569106 | P33: 60.70815644 | Q33: 79.3214186 | R33: 83.3754057 | S33: 60.50221566
A34: Вологодская область | B34: 95.38107711 | C34: 100.7761184 | D34: 76.03000645 | E34: 89.56596979 | F34: 95.23616032 | G34: 69.12031882 | H34: 81.92406445 | I34: 85.63141524 | J34: 67.31817903 | K34: 79.08450978 | L34: 83.33961986 | M34: 63.03056552 | N34: 76.41383544 | O34: 80.88605244 | P34: 59.55184926 | Q34: 76.16623657 | R34: 79.92689721 | S34: 61.20561869
A35: Калининградская область | B35: 100.2856602 | C35: 100.3776899 | D35: 99.71311475 | E35: 100.6768632 | F35: 100.1183992 | G35: 104.3676199 | H35: 101.4332029 | I35: 100.4725662 | J35: 107.8679044 | K35: 100.10796 | L35: 99.3468463 | M35: 104.8389513 | N35: 100.2206121 | O35: 100.0985844 | P35: 100.9438202 | Q35: 99.61682349 | R35: 99.0681681 | S35: 103.0958722
A36: Ленинградская область | B36: 98.85606523 | C36: 102.3313194 | D36: 90.18082754 | E36: 96.16874966 | F36: 98.73390591 | G36: 89.79692729 | H36: 95.83496711 | I36: 98.35695339 | J36: 89.39505361 | K36: 94.11963907 | L36: 96.62851133 | M36: 87.77233641 | N36: 95.03303432 | O36: 97.38674355 | P36: 88.54109386 | Q36: 97.01253296 | R36: 99.04193696 | S36: 91.35731879
A37: Мурманская область | B37: 93.24890054 | C37: 94.87822267 | D37: 74.67889908 | E37: 89.24127369 | F37: 90.80708707 | G37: 70.41551247 | H37: 87.53676798 | I37: 88.27718961 | J37: 78.25693607 | K37: 82.45435877 | L37: 83.36899436 | M37: 70.64364207 | N37: 80.60740568 | O37: 81.56590434 | P37: 68.14911707 | Q37: 79.78237978 | R37: 80.48754209 | S37: 70.30061572
A38: Новгородская область | B38: 90.01526052 | C38: 96.51630954 | D38: 64.22577152 | E38: 87.17214679 | F38: 93.46489153 | G38: 60.88368154 | H38: 85.30963303 | I38: 92.27443067 | J38: 58.19304153 | K38: 83.11536033 | L38: 88.49784451 | M38: 60.31796002 | N38: 81.19848309 | O38: 86.7185082 | P38: 57.64977719 | Q38: 79.82342162 | R38: 85.24757738 | S38: 55.95537963
A39: Псковская область | B39: 97.17303923 | C39: 99.40971291 | D39: 82.63577479 | E39: 92.25600103 | F39: 94.67975796 | G39: 78.63558597 | H39: 91.95251547 | I39: 94.37819421 | J39: 78.33147942 | K39: 89.10558404 | L39: 91.13785558 | M39: 77.13603819 | N39: 88.53046595 | O39: 90.85689803 | P39: 75.84676477 | Q39: 89.56640093 | R39: 91.90906982 | S39: 77.42788462
A40: г.Санкт-Петербург | B40: 112.8236952 | C40: 112.8236952 | D40: - | E40: 110.5162995 | F40: 110.5162995 | G40: - | H40: 108.8879124 | I40: 108.8879124 | J40: - | K40: 103.129328 | L40: 103.129328 | M40: - | N40: 98.26506062 | O40: 98.26506062 | P40: - | Q40: 95.86581572 | R40: 95.86581572 | S40: –
A41: Южный федеральный округ | B41: 101.812795 | C41: 107.4299554 | D41: 90.86115779 | E41: 99.33313426 | F41: 104.0621572 | G41: 89.72408081 | H41: 97.07622164 | I41: 101.1923525 | J41: 88.76564183 | K41: 93.69119201 | L41: 97.77599304 | M41: 85.59528571 | N41: 90.958243 | O41: 94.84115486 | P41: 83.31452616 | Q41: 88.59070441 | R41: 91.91111774 | S41: 82.07703302
A42: Республика Адыгея(Адыгея) | B42: 121.8567476 | C42: 133.1124626 | D42: 107.269733 | E42: 114.5304194 | F42: 122.6236704 | G42: 103.2113341 | H42: 102.7896605 | I42: 108.6140297 | J42: 94.44075305 | K42: 101.9040577 | L42: 110.9333773 | M42: 90.38906414 | N42: 98.14257028 | O42: 108.2600609 | P42: 86.27528758 | Q42: 94.62458897 | R42: 101.4273649 | S42: 86.61495625
A43: Республика Калмыкия | B43: 74.73083409 | C43: 77.26681128 | D43: 70.95837367 | E43: 79.21208142 | F43: 83.14221412 | G43: 72.99542295 | H43: 78.00607822 | I43: 83.06843983 | J43: 70.0526584 | K43: 74.81095176 | L43: 80.75883688 | M43: 65.77434718 | N43: 73.89130149 | O43: 80.41507373 | P43: 64.00794307 | Q43: 71.67614764 | R43: 77.33085583 | S43: 63.00887921
A44: Республика Крым | B44: 104.4562493 | C44: 114.4488774 | D44: 94.5399027 | E44: 104.4399237 | F44: 109.9225863 | G44: 98.44565102 | H44: 104.7176245 | I44: 108.3055976 | J44: 100.8281856 | K44: 102.3512652 | L44: 105.5353692 | M44: 99.07444241 | N44: 99.06908188 | O44: 102.4320495 | P44: 95.68106312 | Q44: 97.52096776 | R44: 98.94844228 | S44: 96.05574052
A45: Краснодарский край | B45: 101.658573 | C45: 105.1227328 | D45: 96.40967283 | E45: 99.17116972 | F45: 102.4996423 | G45: 93.89263902 | H45: 97.00736441 | I45: 101.0035705 | J45: 90.8887286 | K45: 91.60868937 | L45: 95.44819814 | M45: 85.73889758 | N45: 87.91404401 | O45: 91.15233053 | P45: 82.9070452 | Q45: 85.10393831 | R45: 87.70683307 | S45: 81.07826927
A46: Астраханская область | B46: 86.84873417 | C46: 92.85105703 | D46: 74.05663054 | E46: 84.41537233 | F46: 90.3880375 | G46: 71.53656721 | H46: 84.11275805 | I46: 90.23622047 | J46: 71.7457931 | K46: 82.07532488 | L46: 88.46671741 | M46: 69.41190117 | N46: 81.70092219 | O46: 88.64202084 | P46: 68.59331476 | Q46: 80.32716138 | R46: 87.71918679 | S46: 66.78307433
A47: Волгоградская область | B47: 99.04117986 | C47: 102.1170718 | D47: 82.17886372 | E47: 96.12219745 | F47: 98.37265379 | G47: 83.04844184 | H47: 95.30834295 | I47: 96.7694845 | J47: 86.64154934 | K47: 93.03865002 | L47: 94.21309941 | M47: 86.12264344 | N47: 91.82862145 | O47: 92.9172983 | P47: 85.35451098 | Q47: 89.65652621 | R47: 90.62856576 | S47: 83.90011017
A48: Ростовская область | B48: 106.5019544 | C48: 116.3888624 | D48: 85.03720448 | E48: 102.4239631 | F48: 111.1280539 | G48: 82.93088005 | H48: 98.90030395 | I48: 105.5331426 | J48: 82.99668973 | K48: 96.55681377 | L48: 102.7436012 | M48: 81.58163682 | N48: 94.23119052 | O48: 99.84422743 | P48: 80.42320244 | Q48: 91.73310637 | R48: 96.82539683 | S48: 79.16621454
A49: г. Севастополь | B49: 112.8443358 | C49: 113.0824875 | D49: 105.4195804 | E49: 113.3416646 | F49: 114.7295126 | G49: 93.93258427 | H49: 104.473894 | I49: 105.2192745 | J49: 95.88014981 | K49: 103.6662582 | L49: 104.1378164 | M49: 98.10581319 | N49: 98.06091421 | O49: 98.41621622 | P49: 93.85009609 | Q49: 99.20293981 | R49: 99.09778649 | S49: 100.4742547
A50: Северо-Кавказский федеральный округ | B50: 113.8629585 | C50: 121.5477911 | D50: 104.3546351 | E50: 110.5357819 | F50: 117.1078885 | G50: 102.5244876 | H50: 103.8290026 | I50: 107.499843 | J50: 99.15357291 | K50: 102.5411267 | L50: 105.9905118 | M50: 98.17905036 | N50: 100.7810093 | O50: 103.774682 | P50: 96.95093719 | Q50: 103.6280512 | R50: 106.2628586 | S50: 100.1685581
A51: Республика Дагестан | B51: 120.0585794 | C51: 129.2285834 | D51: 109.9651336 | E51: 116.7971088 | F51: 124.6894275 | G51: 108.2468648 | H51: 103.6909777 | I51: 103.1108448 | J51: 104.4446989 | K51: 104.1144798 | L51: 104.8043748 | M51: 103.2387334 | N51: 102.3502158 | O51: 101.8150058 | P51: 103.0355317 | Q51: 102.0882655 | R51: 101.3883232 | S51: 102.9638437
A52: Республика Ингушетия | B52: 106.7130628 | C52: 103.8433344 | D52: 110.8104067 | E52: 99.59170566 | F52: 99.95789474 | G52: 99.15348181 | H52: 99.77469818 | I52: 99.47801974 | J52: 100.0976649 | K52: 100.1158701 | L52: 99.75147561 | M52: 100.5314908 | N52: 100.5756291 | O52: 100.485648 | P52: 100.6798154 | Q52: 100.5811871 | R52: 100.4799634 | S52: 100.691955
A53: Кабардино-Балкарская Республика | B53: 105.1672548 | C53: 110.5215069 | D53: 97.55036744 | E53: 101.1564053 | F53: 103.413546 | G53: 97.86783534 | H53: 97.81447591 | I53: 98.30602159 | J53: 97.06494794 | K53: 95.62973228 | L53: 96.18209511 | M53: 94.82366887 | N53: 93.83283582 | O53: 94.69992206 | P53: 92.59919965 | Q53: 94.60830509 | R53: 94.88431617 | S53: 94.20218038
A54: Карачаево-Черкесская Республика | B54: 101.4252551 | C54: 106.9189893 | D54: 95.97935928 | E54: 98.87720008 | F54: 104.7808765 | G54: 93.08825003 | H54: 99.84063335 | I54: 102.1999386 | J54: 97.45841513 | K54: 98.34492062 | L54: 102.5153374 | M54: 94.04887297 | N54: 98.49799906 | O54: 104.7734203 | P54: 92.36382323 | Q54: 96.29123765 | R54: 100.7559055 | S54: 91.8199979
A55: Республика Северная Осетия-Алания | B55: 110.7010827 | C55: 117.9545666 | D55: 93.02246426 | E55: 108.5473258 | F55: 114.361778 | G55: 94.3255814 | H55: 99.93564205 | I55: 104.0627258 | J55: 89.26255632 | K55: 98.33155617 | L55: 101.6261569 | M55: 89.63943405 | N55: 96.84560391 | O55: 99.86238335 | P55: 88.72554694 | Q55: 96.7489952 | R55: 100.2172044 | S55: 87.99268822
A56: Чеченская Республика | B56: 138.728002 | C56: 147.1524192 | D56: 132.4241557 | E56: 136.9352166 | F56: 146.7099733 | G56: 130.0578035 | H56: 123.3761524 | I56: 130.9423488 | J56: 117.9623382 | K56: 122.5069309 | L56: 127.8062954 | M56: 118.5881061 | N56: 119.347025 | O56: 121.9849776 | P56: 117.1179309 | Q56: 150.0224011 | R56: 155.5652228 | S56: 144.5417396
A57: Ставропольский край | B57: 104.657146 | C57: 117.4327559 | D57: 86.61957041 | E57: 100.948443 | F57: 112.6816884 | G57: 83.92495897 | H57: 97.70881148 | I57: 108.3145445 | J57: 82.18641451 | K57: 94.65620565 | L57: 104.6306299 | M57: 80.22993384 | N57: 92.19552334 | O57: 101.9568206 | P57: 78.31643896 | Q57: 88.0158547 | R57: 96.75657314 | S57: 75.65615033
A58: Приволжский федеральный округ | B58: 101.9898268 | C58: 108.4710281 | D58: 82.3597211 | E58: 97.61345533 | F58: 103.3932062 | G58: 79.5856922 | H58: 94.93619764 | I58: 100.3856903 | J58: 77.62697548 | K58: 91.68859706 | L58: 97.03118122 | M58: 74.76301104 | N58: 89.285702 | O58: 94.3686748 | P58: 73.30377762 | Q58: 87.02311846 | R58: 91.81792542 | S58: 72.02479544
A59: Республика Башкортостан | B59: 110.3201056 | C59: 120.0512598 | D59: 93.06327299 | E59: 106.328157 | F59: 116.2716053 | G59: 88.5511883 | H59: 102.3250406 | I59: 112.1106164 | J59: 84.74086794 | K59: 100.8746975 | L59: 112.1001771 | M59: 81.3231633 | N59: 96.83152595 | O59: 106.7818065 | P59: 79.51843044 | Q59: 94.49391398 | R59: 103.805338 | S59: 78.29912023
A60: Республика Марий Эл | B60: 94.46749311 | C60: 99.50135837 | D60: 81.36746018 | E60: 90.00638494 | F60: 93.9709897 | G60: 79.86368226 | H60: 89.1785661 | I60: 93.75371018 | J60: 75.13163224 | K60: 87.39060639 | L60: 91.45498917 | M60: 74.98163501 | N60: 85.13157545 | O60: 88.36194863 | P60: 74.7619581 | Q60: 83.30146938 | R60: 86.97551816 | S60: 71.89461883
A61: Республика Мордовия | B61: 99.06790142 | C61: 108.0758764 | D61: 71.49332353 | E61: 93.42226722 | F61: 101.2154216 | G61: 69.4612958 | H61: 81.27764128 | I61: 86.29660545 | J61: 62.96014217 | K61: 80.54694516 | L61: 86.57093966 | M61: 59.34267382 | N61: 80.6123695 | O61: 86.48638117 | P61: 59.36575053 | Q61: 77.89668012 | R61: 82.46164711 | S61: 59.91965389
A62: Республика Татарстан | B62: 108.5906034 | C62: 115.8236136 | D62: 78.64275987 | E62: 100.4716138 | F62: 105.3219973 | G62: 78.38525759 | H62: 101.3204888 | I62: 106.7492999 | J62: 77.65390585 | K62: 99.11446392 | L62: 104.4345169 | M62: 76.41835224 | N62: 93.6668263 | O62: 98.38731909 | P62: 73.90355279 | Q62: 90.34548702 | R62: 94.04998231 | S62: 74.62394054
A63: Удмуртская Республика | B63: 103.8575604 | C63: 116.539901 | D63: 82.89769974 | E63: 98.59045899 | F63: 109.7938319 | G63: 79.08402346 | H63: 93.08842384 | I63: 102.9181555 | J63: 75.72150072 | K63: 89.65369285 | L63: 99.9321174 | M63: 71.99545789 | N63: 86.87251926 | O63: 97.41345526 | P63: 69.26266563 | Q63: 85.00289589 | R63: 95.08661053 | S63: 68.1085967
A64: Чувашская Республика | B64: 94.76519514 | C64: 102.4898032 | D64: 74.74724265 | E64: 90.62247476 | F64: 97.99301767 | G64: 70.58009732 | H64: 88.14223454 | I64: 93.75098988 | J64: 70.63605405 | K64: 83.64197113 | L64: 88.92263427 | M64: 66.77069738 | N64: 80.78382322 | O64: 85.54650091 | P64: 64.91692752 | Q64: 79.20976866 | R64: 83.6725904 | S64: 64.04758875
A65: Пермский край | B65: 98.47925319 | C65: 102.584078 | D65: 84.16849996 | E65: 96.46668161 | F65: 99.59583231 | G65: 84.79289093 | H65: 98.42090115 | I65: 101.7490198 | J65: 85.96469457 | K65: 94.43920199 | L65: 97.77792896 | M65: 82.10380797 | N65: 95.70803718 | O65: 99.30755702 | P65: 82.85037661 | Q65: 94.96494197 | R65: 99.23749829 | S65: 80.34150906
A66: Кировская область | B66: 90.27415754 | C66: 94.27500481 | D66: 70.10417508 | E66: 87.23906577 | F66: 91.44420652 | G66: 65.00922355 | H66: 84.18045569 | I66: 88.53344276 | J66: 61.19105409 | K66: 80.0664823 | L66: 84.40237823 | M66: 56.72639743 | N66: 77.28693567 | O66: 81.57268477 | P66: 53.80133185 | Q66: 73.76690765 | R66: 77.63178208 | S66: 51.91543012
A67: Нижегородская область | B67: 98.73441087 | C67: 102.2552728 | D67: 78.38567127 | E67: 95.69639063 | F67: 99.20983856 | G67: 75.32554652 | H67: 92.06941243 | I67: 95.16877885 | J67: 74.49538413 | K67: 89.47108134 | L67: 92.10830195 | M67: 74.37812987 | N67: 89.0429815 | O67: 91.34141176 | P67: 75.56018991 | Q67: 87.18235092 | R67: 89.37716181 | S67: 74.74203679
A68: Оренбургская область | B68: 104.0888292 | C68: 114.8411598 | D68: 85.98934551 | E68: 96.47240426 | F68: 107.1147805 | G68: 78.81123284 | H68: 92.50188032 | I68: 102.4404523 | J68: 75.87628866 | K68: 87.04698898 | L68: 96.13422654 | M68: 71.48458057 | N68: 83.91375632 | O68: 92.79946269 | P68: 68.63129617 | Q68: 81.81487065 | R68: 90.21899212 | S68: 67.38060543
A69: Пензенская область | B69: 108.266354 | C69: 114.6189467 | D69: 87.26280642 | E69: 101.1043979 | F69: 106.4470248 | G69: 83.32686787 | H69: 89.88151374 | I69: 92.79163812 | J69: 79.80254095 | K69: 85.82583962 | L69: 87.95336494 | M69: 78.33173538 | N69: 84.80439762 | O69: 87.23904524 | P69: 76.58380112 | Q69: 83.17951658 | R69: 85.57221352 | S69: 75.23526498
A70: Самарская область | B70: 99.60709417 | C70: 103.4254643 | D70: 84.6073398 | E70: 96.4351316 | F70: 99.92671279 | G70: 82.61927035 | H70: 93.47951789 | I70: 96.17428438 | J70: 82.67460573 | K70: 90.00394218 | L70: 91.98918121 | M70: 81.98078834 | N70: 86.07790281 | O70: 87.43487437 | P70: 80.53168907 | Q70: 83.09409348 | R70: 84.40210316 | S70: 77.79186513
A71: Саратовская область | B71: 93.06700583 | C71: 101.6929712 | D71: 64.85345838 | E71: 90.83153643 | F71: 98.33315083 | G71: 65.15201999 | H71: 90.30922551 | I71: 97.36180433 | J71: 64.09374128 | K71: 85.19590889 | L71: 92.03633291 | M71: 58.6233528 | N71: 86.34692897 | O71: 93.82442647 | P71: 58.64609943 | Q71: 84.29388615 | R71: 92.34669974 | S71: 55.69205168
A72: Ульяновская область | B72: 110.4426364 | C72: 117.5692472 | D72: 72.80825129 | E72: 107.0584531 | F72: 113.506297 | G72: 75.03867403 | H72: 104.2121776 | I72: 110.4107304 | J72: 72.6177825 | K72: 100.0176056 | L72: 105.8184367 | M72: 70.1981982 | N72: 96.57466782 | O72: 102.5358082 | P72: 68.43013226 | Q72: 94.54522811 | R72: 100.133129 | S72: 67.95745189
A73: Уральский федеральный округ | B73: 101.7626112 | C73: 104.6463208 | D73: 88.28359689 | E73: 99.23505427 | F73: 102.2338782 | G73: 85.04316686 | H73: 97.59314591 | I73: 100.3307941 | J73: 84.24793701 | K73: 95.35984743 | L73: 98.28676532 | M73: 81.18369264 | N73: 94.35628155 | O73: 97.46293011 | P73: 79.50815588 | Q73: 93.01008946 | R73: 96.1415137 | S73: 78.16561961
A74: Курганская область | B74: 92.94485376 | C74: 99.82402816 | D74: 77.05947543 | E74: 91.75709516 | F74: 98.05171338 | G74: 76.66062564 | H74: 89.04820591 | I74: 95.0245293 | J74: 74.05621154 | K74: 88.20764254 | L74: 94.31092289 | M74: 72.81224962 | N74: 87.64563172 | O74: 94.13188368 | P74: 71.29177619 | Q74: 88.0080097 | R74: 93.83646821 | S74: 72.58611825
A75: Свердловская область | B75: 96.4683261 | C75: 99.15719604 | D75: 81.7764723 | E75: 94.14064973 | F75: 96.50728265 | G75: 79.94788274 | H75: 93.26702105 | I75: 94.96543634 | J75: 82.46483285 | K75: 91.4695234 | L75: 93.45341007 | M75: 79.15038921 | N75: 90.81649389 | O75: 92.80574487 | P75: 78.3854643 | Q75: 90.26051489 | R75: 92.20658902 | S75: 78.14777264
A76: Тюменская область | B76: 106.9178609 | C76: 107.3372345 | D76: 104.9185254 | E76: 104.319535 | F76: 105.8621072 | G76: 97.38868285 | H76: 102.9729453 | I76: 104.9920923 | J76: 93.78914405 | K76: 101.1175352 | L76: 103.6945989 | M76: 89.54276813 | N76: 100.2301698 | O76: 103.1016633 | P76: 87.52934613 | Q76: 99.08487499 | R76: 102.3489824 | S76: 84.84413598
A77: Ханты-Мансийский автономный округ - Югра | B77: 95.80660951 | C77: 96.89330161 | D77: 82.92100694 | E77: 94.60443762 | F77: 95.78795027 | G77: 81.29754861 | H77: 94.944626 | I77: 96.45010641 | J77: 77.30840259 | K77: 93.70734128 | L77: 95.34732456 | M77: 74.52448883 | N77: 92.64537375 | O77: 94.47989456 | P77: 71.40607969 | Q77: 92.56626892 | R77: 94.20077973 | S77: 72.59131816
A78: Ямало-Ненецкий автономный округ | B78: 99.89781677 | C78: 99.84787018 | D78: 100.1515152 | E78: 94.9051568 | F78: 95.48368632 | G78: 92.02733485 | H78: 93.33072656 | I78: 94.00352224 | J78: 89.62113976 | K78: 91.24436586 | L78: 91.96118789 | M78: 87.27834716 | N78: 91.22486289 | O78: 91.80292991 | P78: 88.02021904 | Q78: 92.41624008 | R78: 93.24942055 | S78: 87.99726823
A79: Тюменская область без автономий | B79: 124.499494 | C79: 129.2787469 | D79: 113.4503989 | E79: 120.2554725 | F79: 127.660609 | G79: 103.8016138 | H79: 116.6623852 | I79: 124.3935058 | J79: 99.59137422 | K79: 113.9241052 | L79: 122.8634257 | M79: 94.36329266 | N79: 112.7825108 | O79: 122.4577986 | P79: 92.04620348 | Q79: 108.9322945 | R79: 119.0334956 | S79: 87.39172281
A80: Челябинская область | B80: 104.2080084 | C80: 109.4288706 | D80: 80.42823073 | E80: 101.1836381 | F80: 106.3322106 | G80: 77.90010956 | H80: 98.41196639 | I80: 102.918034 | J80: 77.62898779 | K80: 94.69688338 | L80: 98.84949076 | M80: 75.28941647 | N80: 92.87716731 | O80: 97.27471925 | P80: 73.00244628 | Q80: 89.85286519 | R80: 94.01623935 | S80: 71.39690889
A81: Сибирский федеральный округ | B81: 101.8034424 | C81: 106.4335322 | D81: 86.89933456 | E81: 98.48648506 | F81: 103.0856468 | G81: 83.46091558 | H81: 96.90327253 | I81: 100.9472656 | J81: 83.69199125 | K81: 94.12612296 | L81: 98.13469552 | M81: 81.08540022 | N81: 93.09042973 | O81: 97.02333679 | P81: 80.44375434 | Q81: 93.33570583 | R81: 97.73959516 | S81: 79.61220611
A82: Республика Алтай | B82: 100.750802 | C82: 99.84520124 | D82: 101.1550992 | E82: 95.07634358 | F82: 100 | G82: 93.00124295 | H82: 95.90158317 | I82: 100 | J82: 94.21103582 | K82: 90.69656489 | L82: 92.28650138 | M82: 90.02520357 | N82: 91.00966251 | O82: 90.82191781 | P82: 91.09270854 | Q82: 90.606596 | R82: 94.82669426 | S82: 88.92776291
A83: Республика Тыва | B83: 125.6150862 | C83: 142.5718362 | D83: 109.8397952 | E83: 122.3889842 | F83: 137.0969304 | G83: 108.1418253 | H83: 119.9581493 | I83: 133.0255097 | J83: 106.4345193 | K83: 120.6674635 | L83: 136.3921498 | M83: 104.1057102 | N83: 117.6824034 | O83: 133.680646 | P83: 100.3296289 | Q83: 116.2633627 | R83: 133.6950949 | S83: 97.1187236
A84: Республика Хакасия | B84: 90.16717696 | C84: 95.25676937 | D84: 76.71733123 | E84: 93.66941573 | F84: 101.6230127 | G84: 75.14741421 | H84: 92.53608373 | I84: 97.25888325 | J84: 80.30883802 | K84: 91.82802008 | L84: 96.45319303 | M84: 80.01158749 | N84: 90.33029046 | O84: 94.54511662 | P84: 79.78612112 | Q84: 88.4482408 | R84: 92.25255812 | S84: 78.72212176
A85: Алтайский край | B85: 96.48509369 | C85: 102.7373886 | D85: 85.94641101 | E85: 91.6157174 | F85: 97.09354245 | G85: 81.85187027 | H85: 89.61409489 | I85: 93.96 | J85: 81.59877747 | K85: 84.74674819 | L85: 87.5441823 | M85: 79.48967193 | N85: 85.1036321 | O85: 86.95665446 | P85: 81.63754711 | Q85: 84.31909532 | R85: 86.87521087 | S85: 79.61116207
A86: Красноярский край | B86: 96.90242043 | C86: 99.41395588 | D86: 86.54393749 | E86: 93.10646855 | F86: 95.71052511 | G86: 81.95209386 | H86: 93.6316072 | I86: 96.90939304 | J86: 80.04458938 | K86: 92.38293693 | L86: 95.90894502 | M86: 77.69971555 | N86: 90.79464988 | O86: 94.4189371 | P86: 75.68031982 | Q86: 90.0984849 | R86: 94.41643637 | S86: 72.74501455
A87: Иркутская область | B87: 103.3738201 | C87: 105.7474998 | D87: 92.56 | E87: 100.5339277 | F87: 102.7437082 | G87: 90.39993595 | H87: 95.47183199 | I87: 97.31001959 | J87: 87.18439772 | K87: 94.08622663 | L87: 95.74767318 | M87: 86.5647431 | N87: 93.41660632 | O87: 95.11187671 | P87: 85.97560976 | Q87: 96.1001632 | R87: 98.06138934 | S87: 87.78297872
A88: Кемеровская область | B88: 98.12265058 | C88: 100.246844 | D88: 82.62209865 | E88: 95.27706161 | F88: 97.51006614 | G88: 79.22530902 | H88: 99.59284888 | I88: 101.6566914 | J88: 85.16832876 | K88: 94.26252402 | L88: 97.03944479 | M88: 76.14924233 | N88: 92.08540838 | O88: 95.35198279 | P88: 72.48355162 | Q88: 94.86862175 | R88: 98.14333164 | S88: 76.01452094
A89: Новосибирская область | B89: 111.8375245 | C89: 119.5734275 | D89: 79.52277657 | E89: 108.1457002 | F89: 114.7608233 | G89: 78.3906004 | H89: 102.5083184 | I89: 107.364475 | J89: 79.58671463 | K89: 99.67511079 | L89: 104.4824924 | M89: 77.14249223 | N89: 98.55691025 | O89: 103.2134523 | P89: 76.87724525 | Q89: 97.34585349 | R89: 102.3694083 | S89: 75.18686541
A90: Омская область | B90: 108.1404283 | C90: 120.46663 | D90: 78.21183454 | E90: 102.9424307 | F90: 115.1973724 | G90: 72.81743106 | H90: 99.55357143 | I90: 110.3029193 | J90: 72.8287276 | K90: 95.11196911 | L90: 105.9027024 | M90: 68.55048114 | N90: 93.78054096 | O90: 104.1233808 | P90: 67.76872833 | Q90: 92.81548282 | R90: 103.4373792 | S90: 66.49171041
A91: Томская область | B91: 96.37210421 | C91: 97.28276455 | D91: 94.04062653 | E91: 94.50987066 | F91: 95.50789637 | G91: 92.02588766 | H91: 93.73558731 | I91: 94.26166004 | J91: 92.48975598 | K91: 93.44214287 | L91: 93.217526 | M91: 93.98102064 | N91: 93.40981358 | O91: 93.92971246 | P91: 92.21933543 | Q91: 94.07928417 | R91: 93.88808722 | S91: 94.5131713
A92: Дальневосточный федеральный округ | B92: 98.20897744 | C92: 103.0001536 | D92: 85.46907914 | E92: 95.76006911 | F92: 100.0133361 | G92: 84.33517223 | H92: 93.19282369 | I92: 96.58150815 | J92: 83.93988253 | K92: 92.11225597 | L92: 95.94010312 | M92: 81.59211986 | N92: 91.00740358 | O92: 95.03256225 | P92: 79.99982751 | Q92: 89.79898612 | R92: 93.99815689 | S92: 78.35520886
A93: Республика Бурятия | B93: 104.1132611 | C93: 109.5226046 | D93: 94.84635392 | E93: 102.8830472 | F93: 107.7681014 | G93: 94.6265981 | H93: 101.1693847 | I93: 104.5894795 | J93: 95.2762325 | K93: 105.5255807 | L93: 111.5291262 | M93: 95.94138102 | N93: 104.0566744 | O93: 109.1815987 | P93: 96.23016836 | Q93: 102.0266129 | R93: 105.6012534 | S93: 96.53477759
A94: Республика Саха (Якутия) | B94: 100.6978791 | C94: 104.1828794 | D94: 95.94303752 | E94: 96.59714599 | F94: 98.87161664 | G94: 93.30831985 | H94: 95.21708916 | I94: 97.75859814 | J94: 91.74147859 | K94: 93.3530645 | L94: 96.88811923 | M94: 88.31838565 | N94: 92.88284308 | O94: 98.3286532 | P94: 85.22330245 | Q94: 91.37194188 | R94: 97.603408 | S94: 82.52283194
A95: Забайкальский край | B95: 100.6722536 | C95: 109.4770555 | D95: 80.70603643 | E95: 98.10879028 | F95: 107.3607985 | G95: 78.94736842 | H95: 96.58845438 | I95: 101.9910863 | J95: 83.60686902 | K95: 96.09361621 | L95: 100.8586837 | M95: 83.41575538 | N95: 95.71049758 | O95: 100.3253624 | P95: 82.77217443 | Q95: 94.06764334 | R95: 98.85854724 | S95: 80.71684042
A96: Камчатский край | B96: 89.92274933 | C96: 96.57994544 | D96: 70.5517909 | E96: 87.6806978 | F96: 93.36873462 | G96: 69.98992951 | H96: 87.66180817 | I96: 93.64842904 | J96: 69.44787804 | K96: 84.13853169 | L96: 90.33066811 | M96: 64.94433942 | N96: 81.28134275 | O96: 87.66632894 | P96: 61.32573359 | Q96: 77.79862414 | R96: 84.79645528 | S96: 56.49241147
A97: Приморский край | B97: 94.62858724 | C97: 97.5478275 | D97: 83.80503932 | E97: 94.14906686 | F97: 96.71651801 | G97: 84.10307547 | H97: 91.78712506 | I97: 93.94245055 | J97: 83.36970987 | K97: 90.32036512 | L97: 93.09569057 | M97: 79.70387 | N97: 89.77132512 | O97: 92.47473129 | P97: 79.49044586 | Q97: 88.99669865 | R97: 92.03097564 | S97: 77.68766081
A98: Хабаровский край | B98: 102.8216306 | C98: 108.8460383 | D98: 78.98895259 | E98: 99.94910941 | F98: 105.0576151 | G98: 77.68688934 | H98: 95.20593713 | I98: 99.24660626 | J98: 76.9224727 | K98: 93.91629043 | L98: 98.07692308 | M98: 75.75780655 | N98: 92.60434988 | O98: 97.3491596 | P98: 72.27595587 | Q98: 93.43406843 | R98: 98.51661356 | S98: 71.53296394
A99: Амурская область | B99: 90.74684633 | C99: 97.05016637 | D99: 72.16037736 | E99: 89.50545736 | F99: 95.14353063 | G99: 72.78559801 | H99: 86.34553057 | I99: 92.31619494 | J99: 69.47179099 | K99: 82.73770738 | L99: 88.97421087 | M99: 65.20867157 | N99: 82.96966192 | O99: 89.6230772 | P99: 64.03074123 | Q99: 81.96254072 | R99: 88.6647384 | S99: 62.74797943
A100: Магаданская область | B100: 87.18197499 | C100: 89.24513444 | D100: 39.79328165 | E100: 82.16893733 | F100: 84.3251254 | G100: 35.23573201 | H100: 77.4024024 | I100: 79.29604304 | J100: 35.48387097 | K100: 74.43126157 | L100: 76.43116765 | M100: 28.45953003 | N100: 72.06144256 | O100: 73.92211405 | P100: 26.96629213 | Q100: 68.9733409 | R100: 70.51703878 | S100: 25.90163934
A101: Сахалинская область | B101: 101.1185834 | C101: 103.5109492 | D101: 88.1613183 | E101: 94.00006346 | F101: 96.54065486 | G101: 80.64708218 | H101: 89.58609795 | I101: 91.76625825 | J101: 78.30243902 | K101: 88.73211578 | L101: 90.93263232 | M101: 77.1611306 | N101: 84.46306169 | O101: 86.50304339 | P101: 73.48964935 | Q101: 82.66127662 | R101: 84.82764201 | S101: 71.31963567
A102: Еврейская автономная область | B102: 92.94105196 | C102: 100.04363 | D102: 73.96035756 | E102: 90.00670691 | F102: 96.4892772 | G102: 74.61335345 | H102: 87.97078293 | I102: 95.54822754 | J102: 70.9306637 | K102: 83.90646492 | L102: 92.07195203 | M102: 65.88235294 | N102: 79.94386621 | O102: 88.58369099 | P102: 61.48202494 | Q102: 77.47464993 | R102: 85.5436501 | S102: 59.7452721
A103: Чукотский автономный округ | B103: 81.06839517 | C103: 88.50920015 | D103: 70.12700166 | E103: 77.03274671 | F103: 85.06348021 | G103: 65.15737162 | H103: 73.67149758 | I103: 82.39154211 | J103: 60.46383214 | K103: 72.12458287 | L103: 83.51281099 | M103: 55.1054384 | N103: 71.13473538 | O103: 85.17350158 | P103: 51.25628141 | Q103: 69.46672959 | R103: 84.78611784 | S103: 47.89772727

Sheet 5
A1: К содержанию
A3: Обеспеченность детей дошкольного возраста местами в организациях, приходится мест на 1000 детей (единиц)
B4: 2018 | C4: 2019 | D4: 2020 | E4: 2021 | F4: 2022 | G4: 2023 | H4: 2024 | I4: 2018 | J4: 2019 | K4: 2020 | L4: 2021 | M4: 2022 | N4: 2023 | O4: 2024 | P4: 2018 | Q4: 2019 | R4: 2020 | S4: 2021 | T4: 2022 | U4: 2023 | V4: 2024
B5: по городской и сельской местности | I5: по городской местности | P5: по сельской местности
A6: Российская Федерация | B6: 641 | C6: 666 | D6: 697 | E6: 741.8925916 | F6: 764.3036611 | G6: 794.9763755 | H6: 811.1278147 | I6: 673.5626771 | J6: 696 | K6: 723 | L6: 765.0208511 | M6: 788.5389804 | N6: 818.9567791 | O6: 834.5437058 | P6: 548.6329174 | Q6: 582 | R6: 621 | S6: 670.5467549 | T6: 689.4180598 | U6: 721.3039736 | V6: 739.0391705
A7: Центральный федеральный округ | B7: 635.1809022 | C7: 655.7788562 | D7: 677.6612389 | E7: 709.8872996 | F7: 718.4104389 | G7: 742.3329276 | H7: 747.576696 | I7: 651.532453 | J7: 667.4124818 | K7: 684.7432897 | L7: 711.1739125 | M7: 717.7453535 | N7: 737.4155495 | O7: 744.4903031 | P7: 551.415521 | Q7: 594.0045236 | R7: 638.574367 | S7: 702.4618556 | T7: 722.3230803 | U7: 771.4517935 | V7: 766.2740581
A8: Белгородская область | B8: 666.9694594 | C8: 691.731555 | D8: 747.0148943 | E8: 783.2257636 | F8: 793.5499198 | G8: 879.7221184 | H8: 885.0328082 | I8: 729.7953125 | J8: 750.2133169 | K8: 808.0440721 | L8: 833.8861294 | M8: 835.6665165 | N8: 939.1928723 | O8: 939.3315988 | P8: 539.4797822 | Q8: 571.6228057 | R8: 618.632578 | S8: 673.44506 | T8: 701.7040088 | U8: 749.9794964 | V8: 766.2091186
A9: Брянская область | B9: 652.588539 | C9: 687.2396868 | D9: 731.8779512 | E9: 786.1177462 | F9: 833.5717547 | G9: 907.3907541 | H9: 970.8070775 | I9: 746.6866182 | J9: 773.4147814 | K9: 815.4099478 | L9: 880.5899982 | M9: 935.3833193 | N9: 1006.921601 | O9: 1066.204364 | P9: 439.7388887 | Q9: 485.4842853 | R9: 530.5414899 | S9: 546.3989264 | T9: 568.4037301 | U9: 639.626352 | V9: 703.8739774
A10: Владимирская область | B10: 866.8864348 | C10: 891.0700011 | D10: 922.4377064 | E10: 983.9006262 | F10: 1015.1441 | G10: 1062.640028 | H10: 1064.394065 | I10: 905.4944754 | J10: 926.4788891 | K10: 960.9011907 | L10: 1022.631967 | M10: 1053.014393 | N10: 1105.94198 | O10: 1101.860342 | P10: 708.9556413 | Q10: 740.8715432 | R10: 754.2263518 | S10: 808.9528944 | T10: 843.7886279 | U10: 869.2677983 | V10: 899.8836897
A11: Воронежская область | B11: 674.6542918 | C11: 722.3957049 | D11: 749.136685 | E11: 734.4645809 | F11: 725.6697746 | G11: 784.8962572 | H11: 827.2095596 | I11: 749.1494027 | J11: 789.3364906 | K11: 805.0615059 | L11: 773.1498773 | M11: 765.2863549 | N11: 820.6824592 | O11: 861.3170519 | P11: 496.2194956 | Q11: 552.6309417 | R11: 600.2138591 | S11: 625.7341467 | T11: 615.7091082 | U11: 687.2869429 | V11: 734.6764387
A12: Ивановская область | B12: 873.2601562 | C12: 898.1780288 | D12: 945.4175007 | E12: 1061.16068 | F12: 1047.101375 | G12: 1076.35593 | H12: 1070.937362 | I12: 921.2962072 | J12: 944.5880902 | K12: 992.8251878 | L12: 1107.715352 | M12: 1086.811151 | N12: 1112.368238 | O12: 1100.013574 | P12: 620.9057825 | Q12: 645.0423085 | R12: 683.0920131 | S12: 791.5317882 | T12: 814.1930023 | U12: 861.3846154 | V12: 894.2593204
A13: Калужская область | B13: 658.5258405 | C13: 679.9492028 | D13: 712.8246966 | E13: 733.4111839 | F13: 775.098471 | G13: 783.0107669 | H13: 801.7457663 | I13: 713.2799884 | J13: 737.9058427 | K13: 771.0240356 | L13: 791.603797 | M13: 833.5258504 | N13: 841.5959253 | O13: 864.0794102 | P13: 486.3338088 | Q13: 495.4247594 | R13: 522.8035293 | S13: 534.1964169 | T13: 569.567045 | U13: 577.5528431 | V13: 583.8489857
A14: Костромская область | B14: 764.3289427 | C14: 800.0329087 | D14: 849.8931889 | E14: 923.8925354 | F14: 987.6243283 | G14: 1030.740568 | H14: 1074.129353 | I14: 766.9548569 | J14: 801.3199676 | K14: 846.0191341 | L14: 915.3258795 | M14: 994.8632008 | N14: 1029.129271 | O14: 1071.344735 | P14: 756.7074759 | Q14: 796.0652591 | R14: 862.5703067 | S14: 954.1892706 | T14: 961.2680727 | U14: 1036.7593 | V14: 1084.683826
A15: Курская область | B15: 507.3932307 | C15: 531.7725753 | D15: 566.050483 | E15: 605.8450973 | F15: 623.2537621 | G15: 667.4147772 | H15: 609.0709501 | I15: 602.2775986 | J15: 624.9594504 | K15: 652.9660515 | L15: 664.9056761 | M15: 696.1518682 | N15: 746.6072121 | O15: 711.2456525 | P15: 282.4636593 | Q15: 297.5539568 | R15: 334.0892311 | S15: 443.0815087 | T15: 425.4247573 | U15: 454.1538863 | V15: 335.106383
A16: Липецкая область | B16: 602.2224195 | C16: 631.829289 | D16: 670.3753132 | E16: 695.5841397 | F16: 731.7540821 | G16: 786.1658609 | H16: 822.8071757 | I16: 654.2932859 | J16: 689.5349758 | K16: 728.7661657 | L16: 754.5430945 | M16: 795.9572934 | N16: 853.7377561 | O16: 902.3735867 | P16: 503.021816 | Q16: 519.9154984 | R16: 555.8378705 | S16: 579.2865068 | T16: 604.4462894 | U16: 654.4348606 | V16: 669.3420636
A17: Московская область | B17: 600.0858949 | C17: 615.6588788 | D17: 638.986099 | E17: 684.4347727 | F17: 720.5767285 | G17: 762.5841512 | H17: 782.7244852 | I17: 588.1011804 | J17: 595.4074728 | K17: 615.0490731 | L17: 652.7301783 | M17: 691.4659657 | N17: 731.5099933 | O17: 768.9900567 | P17: 664.2643459 | Q17: 724.6101735 | R17: 769.2105556 | S17: 862.4384747 | T17: 883.0691707 | U17: 929.9671471 | V17: 857.5999218
A18: Орловская область | B18: 663.9386935 | C18: 693.7173343 | D18: 736.7829537 | E18: 779.2717087 | F18: 824.0967665 | G18: 871.8177116 | H18: 862.8450367 | I18: 833.7558372 | J18: 858.5326031 | K18: 894.2099471 | L18: 931.9430013 | M18: 991.3043478 | N18: 1060.449508 | O18: 1044.846241 | P18: 381.7415886 | Q18: 403.7817137 | R18: 449.3843163 | S18: 487.6302545 | T18: 507.2098878 | U18: 520.361991 | V18: 529.2685048
A19: Рязанская область | B19: 634.0012093 | C19: 669.2321814 | D19: 702.1981908 | E19: 771.9279082 | F19: 840.3970724 | G19: 903.9956944 | H19: 959.0893495 | I19: 703.5945446 | J19: 736.5412474 | K19: 763.5897539 | L19: 836.4043614 | M19: 906.4806664 | N19: 972.9556176 | O19: 1027.794803 | P19: 460.7786728 | Q19: 494.9566628 | R19: 536.30066 | S19: 589.881272 | T19: 646.9538787 | U19: 695.5353143 | V19: 744.6348361
A20: Смоленская область | B20: 742.1264867 | C20: 770.6563297 | D20: 814.7546797 | E20: 853.884576 | F20: 888.4891302 | G20: 964.0616361 | H20: 1013.417356 | I20: 836.7092696 | J20: 857.3929915 | K20: 897.9385261 | L20: 921.1560633 | M20: 970.594096 | N20: 1039.697957 | O20: 1087.546576 | P20: 476.3725935 | Q20: 513.1033514 | R20: 557.1188255 | S20: 634.2089501 | T20: 619.7353709 | U20: 714.757823 | V20: 767.8894928
A21: Тамбовская область | B21: 843.4417666 | C21: 891.3743309 | D21: 953.7856631 | E21: 1050.114838 | F21: 1113.109681 | G21: 1130.380315 | H21: 1167.185826 | I21: 966.5303738 | J21: 1008.246437 | K21: 1060.554118 | L21: 1140.934703 | M21: 1204.340544 | N21: 1238.177386 | O21: 1271.935332 | P21: 653.8617246 | Q21: 704.1451273 | R21: 778.4771262 | S21: 899.2235255 | T21: 961.2692764 | U21: 946.6180795 | V21: 984.9095254
A22: Тверская область | B22: 751.74331 | C22: 784.6605505 | D22: 828.8705248 | E22: 869.3064147 | F22: 891.3951914 | G22: 988.5123584 | H22: 1047.738436 | I22: 816.2055929 | J22: 844.8747436 | K22: 884.4137931 | L22: 918.6666667 | M22: 948.9249784 | N22: 1061.542796 | O22: 1129.656361 | P22: 525.0830828 | Q22: 562.0043673 | R22: 614.1638439 | S22: 668.9334536 | T22: 661.2464131 | U22: 707.2093023 | V22: 736.5146926
A23: Тульская область | B23: 786.7712308 | C23: 827.1722321 | D23: 854.8865111 | E23: 894.0387407 | F23: 928.3227635 | G23: 1004.893533 | H23: 1022.949639 | I23: 887.6448694 | J23: 931.3042264 | K23: 957.4444195 | L23: 999.8659091 | M23: 1043.727027 | N23: 1124.990097 | O23: 1139.173407 | P23: 509.6433619 | Q23: 533.7619173 | R23: 559.9077278 | S23: 582.3253518 | T23: 590.7526084 | U23: 659.5090277 | V23: 689.9806389
A24: Ярославская область | B24: 755.4750223 | C24: 779.6746751 | D24: 827.9565986 | E24: 878.3659024 | F24: 892.300503 | G24: 912.9577633 | H24: 913.087168 | I24: 769.7959403 | J24: 785.4057772 | K24: 832.6114173 | L24: 873.9479261 | M24: 884.5114007 | N24: 896.4443337 | O24: 905.1594048 | P24: 684.709156 | Q24: 750.2646997 | R24: 803.2398563 | S24: 902.8336687 | T24: 934.4074661 | U24: 999.1638796 | V24: 953.2095901
A25: г. Москва | B25: 547.3197867 | C25: 558.2565475 | D25: 557.5708408 | E25: 569.9156042 | F25: 540.7040372 | G25: 521.3500031 | H25: 505.6424647 | I25: 547.3197867 | J25: 558.2320869 | K25: 557.5708408 | L25: 569.9156042 | M25: 540.7040372 | N25: 521.3500031 | O25: 505.6424647 | P25: – | Q25: – | R25: – | S25: – | T25: – | U25: – | V25: –
A26: Северо-Западный федеральный округ | B26: 802.6665808 | C26: 829.85306 | D26: 863.4426674 | E26: 917.6111803 | F26: 943.2728284 | G26: 974.5588224 | H26: 984.2331343 | I26: 814.751903 | J26: 843.6225456 | K26: 874.5483264 | L26: 927.1973843 | M26: 954.6542945 | N26: 984.9472156 | O26: 990.5740562 | P26: 734.9983345 | Q26: 748.5310062 | R26: 795.6273841 | S26: 857.418245 | T26: 871.3488347 | U26: 907.7282633 | V26: 941.1586619
A27: Республика Карелия | B27: 984.2976754 | C27: 1024.752752 | D27: 1066.976772 | E27: 1156.535772 | F27: 1181.368564 | G27: 1230.140439 | H27: 1218.808683 | I27: 1013.898081 | J27: 1048.151186 | K27: 1098.926738 | L27: 1169.922623 | M27: 1200.652795 | N27: 1243.431288 | O27: 1196.486196 | P27: 859.4164456 | Q27: 919.9326393 | R27: 921.2508186 | S27: 1092.959796 | T27: 1087.025948 | U27: 1163.714903 | V27: 1334.260547
A28: Республика Коми | B28: 1080.098812 | C28: 1116.833136 | D28: 1174.48714 | E28: 1243.826904 | F28: 1267.966171 | G28: 1221.998055 | H28: 1202.122206 | I28: 1093.416818 | J28: 1132.090239 | K28: 1179.836046 | L28: 1254.447125 | M28: 1279.3398 | N28: 1237.971838 | O28: 1219.389777 | P28: 1034.785847 | Q28: 1063.495896 | R28: 1155.298042 | S28: 1205.273795 | T28: 1227.418189 | U28: 1165.843486 | V28: 1142.235456
A29: Архангельская область | B29: 968.4482152 | C29: 1006.100301 | D29: 1066.095595 | E29: 1146.478307 | F29: 1172.823263 | G29: 1230.686174 | H29: 1222.053888 | I29: 982.4774722 | J29: 1010.816024 | K29: 1070.854016 | L29: 1139.783499 | M29: 1167.841008 | N29: 1228.629032 | O29: 1236.444741 | P29: 917.994489 | Q29: 988.2942056 | R29: 1047.679147 | S29: 1173.91647 | T29: 1193.214589 | U29: 1239.088663 | V29: 1163.047731
A30: Ненецкий автономный округ | B30: 1018.112245 | C30: 1051.948052 | D30: 1066.107923 | E30: 1132.113821 | F30: 1229.002831 | G30: 1269.513009 | H30: 1173.292559 | I30: 1015.19337 | J30: 1042.538107 | K30: 1071 | L30: 1140.289175 | M30: 1232.459848 | N30: 1309.55647 | O30: 1224.651163 | P30: 1026.367188 | Q30: 1079.831933 | R30: 1077.936334 | S30: 1108.474576 | T30: 1218.942189 | U30: 1161.528977 | V30: 1034.047919
A31: Архангельская область (кроме Ненецкого автономного округа) | B31: 965.7744022 | C31: 1003.617259 | D31: 1065.869928 | E31: 1147.285936 | F31: 1169.682582 | G31: 1228.471971 | H31: 1224.97053 | I31: 980.8193766 | J31: 1009.196068 | K31: 1062 | L31: 1139.757331 | M31: 1164.50924 | N31: 1224.459991 | O31: 1237.082296 | P31: 910.9125718 | Q31: 982.2530329 | R31: 1045.614561 | S31: 1178.822533 | T31: 1191.309101 | U31: 1245.305396 | V31: 1173.894603
A32: Вологодская область | B32: 803.9569113 | C32: 861.57582 | D32: 930.9171791 | E32: 998.0442706 | F32: 1107.811749 | G32: 1161.172327 | H32: 1206.381403 | I32: 825.2546515 | J32: 875.3358645 | K32: 939.3869626 | L32: 993.8616612 | M32: 1125.109361 | N32: 1168.432751 | O32: 1209.767356 | P32: 738.3470427 | Q32: 816.4535747 | R32: 901.7545714 | S32: 1013.422819 | T32: 1044.544 | U32: 1134.573535 | V32: 1193.783722
A33: Калининградская область | B33: 702.3817686 | C33: 732.7466548 | D33: 757.2414979 | E33: 796.4201153 | F33: 795.089826 | G33: 814.5229479 | H33: 836.2422905 | I33: 800.2310739 | J33: 827.3699268 | K33: 851.6766098 | L33: 894.0146266 | M33: 891.515262 | N33: 902.2528596 | O33: 920.7065888 | P33: 412.4232379 | Q33: 438.2028886 | R33: 448.117539 | S33: 462.6472718 | T33: 461.0580971 | U33: 507.6817767 | V33: 541.7140075
A34: Ленинградская область | B34: 847.6484528 | C34: 852.3147248 | D34: 859.6557649 | E34: 893.1339384 | F34: 912.1454473 | G34: 937.5268839 | H34: 941.1758475 | I34: 898.1342022 | J34: 938.7196115 | K34: 928.633326 | L34: 968.707826 | M34: 990.7941371 | N34: 998.3717816 | O34: 975.3930382 | P34: 757.9777796 | Q34: 686.8870117 | R34: 725.1904026 | S34: 748.1506771 | T34: 758.4172366 | U34: 812.2846583 | V34: 858.1436713
A35: Мурманская область | B35: 901.6737599 | C35: 934.9919902 | D35: 979.1524336 | E35: 1025.074679 | F35: 1037.95536 | G35: 1093.365245 | H35: 1118.850959 | I35: 896.210635 | J35: 930.5513903 | K35: 976.3332211 | L35: 1027.071156 | M35: 1044.929978 | N35: 1104.225957 | O35: 1127.030935 | P35: 968.2779456 | Q35: 988.4050502 | R35: 1012.473461 | S35: 1001.664817 | T35: 957.8278452 | U35: 970.1492537 | V35: 1022.400535
A36: Новгородская область | B36: 883.4705363 | C36: 894.7075479 | D36: 935.5496635 | E36: 997.9593503 | F36: 1026.455961 | G36: 1068.283282 | H36: 1108.112801 | I36: 925.5385188 | J36: 940.3084328 | K36: 965.7308554 | L36: 1022.775186 | M36: 1037.690697 | N36: 1101.432665 | O36: 1144.375083 | P36: 757.7893175 | Q36: 746.9211823 | R36: 832.3569175 | S36: 906.1140957 | T36: 984.9385104 | U36: 947.5018643 | V36: 976.155953
A37: Псковская область | B37: 734.021081 | C37: 755.6140979 | D37: 803.3036238 | E37: 873.3916479 | F37: 889.8464853 | G37: 934.7840166 | H37: 949.7627398 | I37: 875.5459266 | J37: 877.5092743 | K37: 929.6582689 | L37: 975.4983851 | M37: 992.2556805 | N37: 1052.276991 | O37: 1056.395401 | P37: 361.6539993 | Q37: 412.7742565 | R37: 426.5221549 | S37: 549.9235564 | T37: 563.3538037 | U37: 563.9300135 | V37: 612.6216371
A38: г.Санкт-Петербург | B38: 691.9476528 | C38: 718.0419812 | D38: 743.3158037 | E38: 796.6494822 | F38: 818.0330453 | G38: 851.5706073 | H38: 860.8011552 | I38: 691.9476528 | J38: 718.0419812 | K38: 743.3158037 | L38: 796.6494822 | M38: 818.0330453 | N38: 851.5706073 | O38: 860.8011552 | P38: – | Q38: – | R38: – | S38: – | T38: – | U38: – | V38: –
A39: Южный федеральный округ | B39: 571.9210522 | C39: 597.8835015 | D39: 625.8177375 | E39: 670.6320911 | F39: 690.1930917 | G39: 729.9873711 | H39: 762.4126576 | I39: 595.4027662 | J39: 614.2219571 | K39: 635.5490196 | L39: 682.3723022 | M39: 700.6017211 | N39: 739.667609 | O39: 773.0741323 | P39: 530.9765101 | Q39: 568.3407073 | R39: 607.6769556 | S39: 647.9791429 | T39: 670.0929312 | U39: 711.5313518 | V39: 742.2614939
A40: Республика Адыгея | B40: 469.27526 | C40: 478.5187604 | D40: 547.029148 | E40: 578.3585276 | F40: 642.9846379 | G40: 658.6709689 | H40: 695.9283491 | I40: 526.819509 | J40: 525.6157898 | K40: 593.6523332 | L40: 638.1855404 | M40: 727.0684716 | N40: 720.9177911 | O40: 735.3434877 | P40: 411.2256586 | Q40: 429.215861 | R40: 496.4957365 | S40: 511.3190462 | T40: 551.5514293 | U40: 593.3366608 | V40: 654.7626777
A41: Республика Калмыкия | B41: 645.7724695 | C41: 689.1982933 | D41: 728.9489859 | E41: 761.8047219 | F41: 810.2783726 | G41: 881.4065732 | H41: 917.8644764 | I41: 779.1225416 | J41: 834.0992647 | K41: 878.2625262 | L41: 931.7954863 | M41: 968.8874921 | N41: 1022.435897 | O41: 1043.185962 | P41: 521.3057563 | Q41: 550.7246377 | R41: 581.8079414 | S41: 591.2006414 | T41: 644.5149989 | U41: 728.6979416 | V41: 776.535595
A42: Республика Крым | B42: 505.4292807 | C42: 537.040198 | D42: 572.1408932 | E42: 610.4897113 | F42: 627.0900672 | G42: 668.4664378 | H42: 710.7621052 | I42: 553.8048801 | J42: 570.9097642 | K42: 560.1828859 | L42: 619.1107762 | M42: 632.1628385 | N42: 658.8620813 | O42: 690.8427516 | P42: 459.2308422 | Q42: 503.2533955 | R42: 584.5232333 | S42: 601.3348058 | T42: 621.682243 | U42: 678.6472769 | V42: 732.0261438
A43: Краснодарский край | B43: 564.8832659 | C43: 590.7638471 | D43: 613.6483 | E43: 656.0521929 | F43: 668.2921573 | G43: 716.276319 | H43: 755.5229584 | I43: 555.3257308 | J43: 575.2286745 | K43: 595.0098685 | L43: 634.9754329 | M43: 636.1005307 | N43: 685.6677319 | O43: 728.9517046 | P43: 579.4974278 | Q43: 615.4478465 | R43: 644.2251886 | S43: 692.5056141 | T43: 724.4250404 | U43: 768.7396531 | V43: 800.6479465
A44: Астраханская область | B44: 638.1024271 | C44: 668.3413418 | D44: 707.394303 | E44: 745.2401558 | F44: 749.3972445 | G44: 789.8100916 | H44: 797.7720789 | I44: 675.8740445 | J44: 700.0167651 | K44: 731.8109193 | L44: 774.2977008 | M44: 764.5075849 | N44: 807.841468 | O44: 808.7533552 | P44: 568.3493669 | Q44: 608.7230909 | R44: 660.4332184 | S44: 689.4495775 | T44: 720.6317456 | U44: 756.360765 | V44: 777.8279318
A45: Волгоградская область | B45: 636.2439901 | C45: 670.2281046 | D45: 708.109824 | E45: 760.9596646 | F45: 773.3041317 | G45: 809.9742322 | H45: 830.1840008 | I45: 708.6744846 | J45: 740.3660302 | K45: 776.4394608 | L45: 829.8236181 | M45: 845.0144543 | N45: 886.0250069 | O45: 909.5166709 | P45: 414.5319723 | Q45: 445.7987216 | R45: 477.6635223 | S45: 513.4338762 | T45: 514.3818849 | U45: 538.0277564 | V45: 546.6385076
A46: Ростовская область | B46: 579.5764735 | C46: 599.8427396 | D46: 617.1822868 | E46: 670.4980843 | F46: 702.9074059 | G46: 734.0047108 | H46: 758.3772134 | I46: 582.5343366 | J46: 595.6562445 | K46: 611.8841949 | L46: 667.8687101 | M46: 716.3788406 | N46: 750.0696732 | O46: 781.3197983 | P46: 573.3691326 | Q46: 608.9651616 | R46: 629.0064577 | S46: 676.4624202 | T46: 672.5815913 | U46: 697.8276683 | V46: 707.2865631
A47: г.Севастополь | B47: 460.3993908 | C47: 486.3747364 | D47: 523.4939416 | E47: 574.790254 | F47: 607.9844914 | G47: 636.2366395 | H47: 705.0079072 | I47: 496.0192051 | J47: 505.3789075 | K47: 544.5024579 | L47: 573.3325144 | M47: 594.4067197 | N47: 621.2105571 | O47: 688.7052342 | P47: – | Q47: 229.124647 | R47: 237.640216 | S47: 595.9821429 | T47: 825.3477589 | U47: 890.1162791 | V47: 979.9121155
A48: Северо-Кавказский федеральный округ | B48: 392.4968793 | C48: 405.6141246 | D48: 425.7470774 | E48: 458.1610421 | F48: 506.2404404 | G48: 524.7646146 | H48: 550.110612 | I48: 467.9960038 | J48: 479.5696895 | K48: 494.5138101 | L48: 523.2258524 | M48: 590.5182753 | N48: 605.3463894 | O48: 629.0780541 | P48: 327.6076362 | Q48: 340.187776 | R48: 363.2481082 | S48: 397.852702 | T48: 428.3726573 | U48: 449.1544537 | V48: 473.988026
A49: Республика Дагестан | B49: 251.263871 | C49: 260.5512642 | D49: 271.7654472 | E49: 296.7484852 | F49: 348.8498139 | G49: 372.8753796 | H49: 396.7431587 | I49: 331.765534 | J49: 339.6544121 | K49: 346.949825 | L49: 375.9123492 | M49: 492.0857943 | N49: 527.5717393 | O49: 573.032851 | P49: 198.7026824 | Q49: 207.248679 | R49: 219.4269899 | S49: 241.622986 | T49: 253.124203 | U49: 271.7324685 | V49: 284.6229401
A50: Республика Ингушетия | B50: 294.2249587 | C50: 300.3010635 | D50: 324.675065 | E50: 448.8694864 | F50: 486.2239309 | G50: 497.2222222 | H50: 528.2286231 | I50: 326.9533024 | J50: 329.1812354 | K50: 359.0929603 | L50: 461.3621353 | M50: 480.5596927 | N50: 506.2514744 | O50: 555.6405816 | P50: 255.1683895 | Q50: 266.8382849 | R50: 285.5922794 | S50: 434.7807037 | T50: 492.5438405 | U50: 487.3089873 | V50: 499.6854687
A51: Кабардино-Балкарская Республика | B51: 608.5247696 | C51: 617.0119393 | D51: 652.2687198 | E51: 703.0477237 | F51: 756.397879 | G51: 769.0442358 | H51: 797.2014659 | I51: 795.9842142 | J51: 793.8815061 | K51: 821.9763714 | L51: 883.2238806 | M51: 961.8163055 | N51: 950 | O51: 957.5869678 | P51: 444.6490594 | Q51: 462.5317374 | R51: 504.1841004 | S51: 541.9657869 | T51: 570.5799151 | U51: 601.7714897 | V51: 643.7905454
A52: Карачаево-Черкесская Республика | B52: 470.471033 | C52: 484.9621103 | D52: 498.0506036 | E52: 548.9020294 | F52: 578.2401902 | G52: 608.8000253 | H52: 638.5782085 | I52: 607.8849227 | J52: 619.2920832 | K52: 634.6617111 | L52: 682.1127448 | M52: 721.8939282 | N52: 746.5079002 | O52: 739.005439 | P52: 384.9660202 | Q52: 399.7342819 | R52: 410.4668608 | S52: 460.6829719 | T52: 481.4943787 | U52: 511.5853001 | V52: 563.6985111
A53: Республика Северная Осетия - Алания | B53: 512.0527511 | C53: 553.7470265 | D53: 591.9615467 | E53: 609.5228301 | F53: 713.6764288 | G53: 718.8169255 | H53: 733.8748648 | I53: 592.9915182 | J53: 640.0665759 | K53: 675.7896061 | L53: 696.5231788 | M53: 827.3619071 | N53: 816.8874757 | O53: 826.5382291 | P53: 383.380768 | Q53: 413.5371608 | R53: 454.5407663 | S53: 466.8838219 | T53: 526.5625 | U53: 545.907562 | V53: 563.7561994
A54: Чеченская Республика | B54: 307.7407802 | C54: 316.1126721 | D54: 333.8999913 | E54: 351.7698132 | F54: 405.9393047 | G54: 408.4421773 | H54: 435.0048481 | I54: 312.4695214 | J54: 334.5879662 | K54: 343.764381 | L54: 333.7925053 | M54: 378.6179129 | N54: 368.4780281 | O54: 390.8626093 | P54: 304.6089385 | Q54: 303.5918698 | R54: 326.8811571 | S54: 365.6246928 | T54: 428.0403122 | U54: 444.0569078 | V54: 480.8976176
A55: Ставропольский край | B55: 574.5934095 | C55: 594.9759201 | D55: 624.9109546 | E55: 663.7052886 | F55: 699 | G55: 742.7537293 | H55: 775.7257718 | I55: 584.1802736 | J55: 591.2593687 | K55: 611.9616671 | L55: 650.9264333 | M55: 685 | N55: 725.5493947 | O55: 753.7559806 | P55: 561.7945639 | Q55: 600.2755842 | R55: 644.1555566 | S55: 683.1640569 | T55: 720 | U55: 769.1314798 | V55: 809.2638826
A56: Приволжский федеральный округ | B56: 676.8844335 | C56: 711.2031513 | D56: 755.9917026 | E56: 814.866224 | F56: 848.168281 | G56: 895.0662091 | H56: 921.9702106 | I56: 696.8275832 | J56: 726.8529286 | K56: 767.3702253 | L56: 826.8019572 | M56: 865.1941247 | N56: 916.4856727 | O56: 945.9053092 | P56: 623.9176318 | Q56: 667.9179214 | R56: 723.4989881 | S56: 779.7555781 | T56: 798.2720781 | U56: 833.362773 | V56: 854.0234671
A57: Республика Башкортостан | B57: 609.4141942 | C57: 648.2412822 | D57: 694.6427312 | E57: 748.9605823 | F57: 787.5079664 | G57: 818.4100055 | H57: 845.4232766 | I57: 613.0216631 | J57: 643.436456 | K57: 693.0767383 | L57: 749.9307701 | M57: 795.4198649 | N57: 829.90712 | O57: 861.4193876 | P57: 603.0801878 | Q57: 656.8075791 | R57: 697.4372712 | S57: 747.2323148 | T57: 773.6792842 | U57: 799.1280239 | V57: 818.9624646
A58: Республика Марий Эл | B58: 714.601496 | C58: 725.6480319 | D58: 789.0424385 | E58: 884.8503871 | F58: 903.6507508 | G58: 948.267819 | H58: 987.8305209 | I58: 739.9761306 | J58: 738.7420428 | K58: 793.1645846 | L58: 869.3029107 | M58: 928.0729677 | N58: 969.8313221 | O58: 1023.099718 | P58: 656.3956198 | Q58: 694.3905947 | R58: 778.5132028 | S58: 927.278402 | T58: 836.0988825 | U58: 887.9880719 | V58: 889.409186
A59: Республика Мордовия | B59: 693.9032328 | C59: 729.8710039 | D59: 783.6374811 | E59: 844.2394228 | F59: 984.78331 | G59: 1009.150441 | H59: 1018.562856 | I59: 790.8815777 | J59: 818.694067 | K59: 864.0686054 | L59: 915.6639566 | M59: 1096.567506 | N59: 1104.301031 | O59: 1111.818733 | P59: 499.9023501 | Q59: 543.8389448 | R59: 609.8617856 | S59: 680.9319233 | T59: 717.7478134 | U59: 774.3080199 | V59: 781.4737306
A60: Республика Татарстан | B60: 594.3799375 | C60: 628.638438 | D60: 658.7542942 | E60: 740.4904769 | F60: 742.7391544 | G60: 782.5286771 | H60: 836.8220993 | I60: 592.389978 | J60: 624.6872202 | K60: 653.1243039 | L60: 745.6797019 | M60: 744.111297 | N60: 786.1791108 | O60: 845.4083029 | P60: 602.5901197 | Q60: 645.4570624 | R60: 683.1360794 | S60: 717.7463554 | T60: 736.8160247 | U60: 767.328804 | V60: 802.6906733
A61: Удмуртская Республика | B61: 721.3571248 | C61: 781.7658767 | D61: 829.1370432 | E61: 884.8393173 | F61: 940.0721137 | G61: 985.9065558 | H61: 1014.195901 | I61: 728.3525194 | J61: 788.8242877 | K61: 806.2771165 | L61: 867.6967365 | M61: 934.3996439 | N61: 975.3118684 | O61: 1002.882222 | P61: 709.700488 | Q61: 769.4462301 | R61: 869.8983387 | S61: 916.360592 | T61: 950.264248 | U61: 1004.655752 | V61: 1033.677087
A62: Чувашская Республика | B62: 787.343785 | C62: 835.0414211 | D62: 877.626422 | E62: 931.1349712 | F62: 961.7262904 | G62: 1026.407497 | H62: 1078.122893 | I62: 807.6545925 | J62: 855.9272838 | K62: 900.0798085 | L62: 957.4850501 | M62: 1016.074813 | N62: 1091.628214 | O62: 1159.744342 | P62: 742.9536303 | Q62: 786.5801786 | R62: 824.3360988 | S62: 866.3057404 | T62: 824.1365262 | U62: 861.8868294 | V62: 873.3505073
A63: Пермский край | B63: 746.8340077 | C63: 783.0920716 | D63: 830.4400505 | E63: 892.9367587 | F63: 893.3613838 | G63: 948.0065476 | H63: 934.7571719 | I63: 771.4848141 | J63: 803.7021905 | K63: 849.5572293 | L63: 926.8459435 | M63: 933.1750182 | N63: 993.1841216 | O63: 975.2069826 | P63: 674.2192394 | Q63: 719.7193715 | R63: 770.0303252 | S63: 785.6981982 | T63: 770.3503657 | U63: 811.6075071 | V63: 814.1334619
A64: Кировская область | B64: 849.7280332 | C64: 906.1350596 | D64: 971.4452668 | E64: 1042.944188 | F64: 1119.538347 | G64: 1207.345452 | H64: 1265.507026 | I64: 868.1817514 | J64: 922.2816668 | K64: 982.7466784 | L64: 1050.557398 | M64: 1121.697505 | N64: 1211.472482 | O64: 1279.123489 | P64: 774.4275267 | Q64: 835.6893944 | R64: 918.2114786 | S64: 1004.46391 | T64: 1108.271688 | U64: 1185.604059 | V64: 1195.753152
A65: Нижегородская область | B65: 731.7235959 | C65: 761.2450343 | D65: 818.6609243 | E65: 857.8997953 | F65: 913.1349806 | G65: 951.3263285 | H65: 959.4437073 | I65: 763.6580979 | J65: 788.9702979 | K65: 840.4677006 | L65: 874.6056501 | M65: 928.679886 | N65: 971.7314488 | O65: 986.184878 | P65: 590.6008328 | Q65: 632.1982847 | R65: 711.9073471 | S65: 772.3629271 | T65: 833.9803608 | U65: 849.2644496 | V65: 827.774921
A66: Оренбургская область | B66: 702.8531897 | C66: 740.3938048 | D66: 785.3001225 | E66: 835.0150245 | F66: 875.5772819 | G66: 933.7512002 | H66: 955.0977285 | I66: 818.7742494 | J66: 840.5987024 | K66: 882.311487 | L66: 911.645475 | M66: 950.5301388 | N66: 1013.327521 | O66: 1029.888201 | P66: 569.5284858 | Q66: 619.4139819 | R66: 662.654653 | S66: 732.7944189 | T66: 773.5401423 | U66: 823.0605969 | V66: 849.0523003
A67: Пензенская область | B67: 653.4574826 | C67: 681.0873041 | D67: 712.8586066 | E67: 806.8888696 | F67: 901.5009816 | G67: 945.3370299 | H67: 961.9113085 | I67: 715.5641681 | J67: 746.2459155 | K67: 780.1606518 | L67: 882.0154242 | M67: 992.8258008 | N67: 1041.630242 | O67: 1046.112947 | P67: 512.8430121 | Q67: 531.3277921 | R67: 554.6571506 | S67: 628.701039 | T67: 683.6900215 | U67: 713.1217594 | V67: 756.3534906
A68: Самарская область | B68: 652.4815995 | C68: 671.1031966 | D68: 714.7065717 | E68: 773.453997 | F68: 809.3640963 | G68: 858.4659293 | H68: 904.1981076 | I68: 653.4231902 | J68: 663.9909887 | K68: 704.3841455 | L68: 759.5271585 | M68: 800.0385319 | N68: 856.7035066 | O68: 910.7248771 | P68: 648.7674374 | Q68: 700.3007991 | R68: 758.3637762 | S68: 833.9617735 | T68: 849.0462917 | U68: 865.6630824 | V68: 878.4667752
A69: Саратовская область | B69: 657.0102658 | C69: 686.4906141 | D69: 733.8131912 | E69: 764.5915377 | F69: 779.6538527 | G69: 843.7557323 | H69: 850.4520185 | I69: 657.7609386 | J69: 695.2524871 | K69: 729.8037267 | L69: 754.301919 | M69: 778.2645521 | N69: 848.5749533 | O69: 845.6785278 | P69: 654.7534478 | Q69: 659.0508742 | R69: 747.2405536 | S69: 802.0443613 | T69: 784.8618664 | U69: 825.5429368 | V69: 868.615319
A70: Ульяновская область | B70: 623.668278 | C70: 648.4080919 | D70: 682.0328111 | E70: 729.3259489 | F70: 744.5924901 | G70: 796.6339411 | H70: 820.5284687 | I70: 656.6619166 | J70: 678.1402517 | K70: 702.540034 | L70: 732.3480046 | M70: 750.9132658 | N70: 805.4316526 | O70: 816.5489806 | P70: 499.2161254 | Q70: 526.742101 | R70: 590.9405735 | S70: 714.6805654 | T70: 713.9605463 | U70: 754.2810546 | V70: 839.8531827
A71: Уральский федеральный округ | B71: 731.2068186 | C71: 760.4823782 | D71: 794.1927227 | E71: 838.3001008 | F71: 855.6358338 | G71: 879.0117441 | H71: 885.8504977 | I71: 738.6538875 | J71: 764.2758987 | K71: 796.7847954 | L71: 837.5826288 | M71: 857.9277233 | N71: 880.5951029 | O71: 885.9785659 | P71: 699.1774737 | Q71: 743.6700767 | R71: 782.2971731 | S71: 841.7122667 | T71: 844.6366459 | U71: 871.4228248 | V71: 885.238911
A72: Курганская область | B72: 707.2551078 | C72: 745.6925594 | D72: 772.0949475 | E72: 801.3526821 | F72: 845.3001042 | G72: 861.8977085 | H72: 879.3370218 | I72: 737.3763913 | J72: 781.5827267 | K72: 817.9581796 | L72: 839.9194216 | M72: 891.1996691 | N72: 907.2135242 | O72: 920.2014665 | P72: 654.4182344 | Q72: 679.6519045 | R72: 683.5858586 | S72: 721.8588249 | T72: 748.583878 | U72: 765.451448 | V72: 790.7943578
A73: Свердловская область | B73: 742.0218397 | C73: 769.5874392 | D73: 801.2204442 | E73: 855.1823199 | F73: 876.2424571 | G73: 904.119929 | H73: 907.6941282 | I73: 739.5706684 | J73: 763.4297417 | K73: 786.793673 | L73: 846.3402704 | M73: 875.5865508 | N73: 902.5657203 | O73: 907.1168109 | P73: 756.1679493 | Q73: 806.2626222 | R73: 890.4307978 | S73: 912.3436831 | T73: 880.4372352 | U73: 913.8920477 | V73: 911.3185531
A74: Тюменская область | B74: 702.5274732 | C74: 728.9193849 | D74: 761.7593904 | E74: 807.1026358 | F74: 812.2091304 | G74: 826.5632273 | H74: 829.9632876 | I74: 715.6327242 | J74: 738.4330007 | K74: 776.727144 | L74: 809.4598027 | M74: 810.4457033 | N74: 818.8895479 | O74: 820.1480089 | P74: 649.679048 | Q74: 689.4440993 | R74: 697.6650434 | S74: 796.6789923 | T74: 820.3276247 | U74: 862.8807495 | V74: 876.3520808
A75: Ханты-Мансийский автономный округ-Югра | B75: 747.2947128 | C75: 772.63294 | D75: 800.5891454 | E75: 821.9983684 | F75: 817.0227915 | G75: 820.1349909 | H75: 821.0307453 | I75: 752.7442427 | J75: 770.4470338 | K75: 798.7953745 | L75: 815.6508942 | M75: 810.4637792 | N75: 811.4783842 | O75: 810.2591921 | P75: 683.6702464 | Q75: 798.9382321 | R75: 822.4899598 | S75: 900.8185799 | T75: 902.5940202 | U75: 937.0613791 | V75: 970.384299
A76: Ямало-Ненецкий автономный округ | B76: 841.087769 | C76: 884.7932385 | D76: 914.8615988 | E76: 990.6983333 | F76: 984.055601 | G76: 982.8430173 | H76: 960.4560293 | I76: 892.9634383 | J76: 943.6254475 | K76: 976.0955015 | L76: 1049.942905 | M76: 1052.604388 | N76: 1045.400055 | O76: 1014.929977 | P76: 649.7835062 | Q76: 670.0617284 | R76: 693.7874488 | S76: 773.5682819 | T76: 724.06639 | U76: 738.3783784 | V76: 740.2095286
A77: Тюменская область (кроме Ханты-Мансийского автономного округа - Югры и Ямало-Ненецкого автономного округа) | B77: 606.3689507 | C77: 630.2950211 | D77: 669.9238756 | E77: 731.4065422 | F77: 749.6629863 | G77: 779.9152485 | H77: 793.6449548 | I77: 589.6216989 | J77: 614.4324935 | K77: 672.2138068 | L77: 713.8890094 | M77: 721.0666188 | N77: 743.3418567 | O77: 757.0730153 | P77: 640.4451102 | Q77: 664.4301346 | R77: 664.689074 | S77: 773.5844129 | T77: 821.6109465 | U77: 874.0124365 | V77: 885.3027884
A78: Челябинская область | B78: 758.5626053 | C78: 791.9681339 | D78: 831.7492583 | E78: 865.4270578 | F78: 889.1087609 | G78: 922.3765668 | H78: 937.2266208 | I78: 765.8157797 | J78: 794.4613648 | K78: 832.0972877 | L78: 861.6730398 | M78: 891.1513228 | N78: 931.6682872 | O78: 944.4800315 | P78: 727.1694469 | Q78: 780.9533387 | R78: 830.1677436 | S78: 882.8206096 | T78: 879.8079303 | U78: 881.2988762 | V78: 905.7878157
A79: Сибирский федеральный округ | B79: 633.1874191 | C79: 659.4939513 | D79: 692.1968473 | E79: 745.4693651 | F79: 767.2294191 | G79: 803.4482467 | H79: 821.2278996 | I79: 668.3632118 | J79: 689.8650631 | K79: 718.6597154 | L79: 770.5611026 | M79: 794.7789069 | N79: 833.0579671 | O79: 850.4116547 | P79: 540.8013329 | Q79: 577.3053502 | R79: 618.8448463 | S79: 673.7890563 | T79: 689.1856938 | U79: 720.1743913 | V79: 739.6113512
A80: Республика Алтай | B80: 619.5558244 | C80: 682.9023578 | D80: 711.3517188 | E80: 771.9507763 | F80: 799.1127663 | G80: 848.0434657 | H80: 850.5240591 | I80: 661.505518 | J80: 770.1030928 | K80: 814.627995 | L80: 841.8640183 | M80: 871.9050542 | N80: 952.1311475 | O80: 1003.666361 | P80: 604.6389035 | Q80: 651.3938039 | R80: 673.2469259 | S80: 745.84611 | T80: 772.5097218 | U80: 810.6239195 | V80: 796.7492758
A81: Республика Тыва | B81: 433.9664705 | C81: 447.8331402 | D81: 494.8360915 | E81: 521.713192 | F81: 544.9546399 | G81: 571.7815276 | H81: 600.2711864 | I81: 394.1710463 | J81: 413.4154689 | K81: 457.2094107 | L81: 478.8778113 | M81: 514.7065744 | N81: 533.081737 | O81: 552.082834 | P81: 475.9309302 | Q81: 483.352955 | R81: 535.8630499 | S81: 571.2066009 | T81: 580.24488 | U81: 619.1199673 | V81: 663.0448358
A82: Республика Хакасия | B82: 748.2373922 | C82: 804.3037035 | D82: 857.345289 | E82: 860.2333192 | F82: 880.2546402 | G82: 902.7189266 | H82: 939.468596 | I82: 805.5136765 | J82: 864.1456133 | K82: 906.8278805 | L82: 868.9583033 | M82: 911.5798404 | N82: 926.1141681 | O82: 959.0054362 | P82: 629.8416333 | Q82: 677.2324472 | R82: 749.2974412 | S82: 840.5785325 | T82: 808.3392351 | U82: 847.990567 | V82: 893.9110557
A83: Алтайский край | B83: 605.7308076 | C83: 638.5355333 | D83: 692.3476663 | E83: 763.0180804 | F83: 790.5879941 | G83: 845.7365386 | H83: 855.2690898 | I83: 661.2080644 | J83: 685.6758296 | K83: 749.674739 | L83: 834.6298971 | M83: 877.346903 | N83: 949.4952251 | O83: 957.5307632 | P83: 533.4328552 | Q83: 575.0536795 | R83: 613.2971506 | S83: 661.8056127 | T83: 668.639783 | U83: 701.6463634 | V83: 712.8640332
A84: Красноярский край | B84: 650.0651014 | C84: 670.264719 | D84: 702.6354618 | E84: 775.1629237 | F84: 783.0677916 | G84: 813.3865918 | H84: 839.8566782 | I84: 679.160387 | J84: 695.2271227 | K84: 725.7874681 | L84: 799.5158062 | M84: 804.9198124 | N84: 837.7100152 | O84: 865.3825162 | P84: 553.1132865 | Q84: 584.3835985 | R84: 620.9420424 | S84: 685.698324 | T84: 703.8598464 | U84: 725.647211 | V84: 747.8625754
A85: Иркутская область | B85: 668.8079643 | C85: 689.2113315 | D85: 703.7688239 | E85: 743.4807166 | F85: 795.6238992 | G85: 819.421982 | H85: 837.3608883 | I85: 738.014859 | J85: 755.5884445 | K85: 764.9986566 | L85: 803.5254589 | M85: 861.3971549 | N85: 890.172719 | O85: 910.4139088 | P85: 460.7837641 | Q85: 485.3184287 | R85: 515.7191187 | S85: 553.7230387 | T85: 591.8711976 | U85: 602.600132 | V85: 619.2573946
A86: Кемеровская область - Кузбасс | B86: 699.9522264 | C86: 736.5375802 | D86: 767.6279632 | E86: 806.940843 | F86: 775.5621828 | G86: 835.6413376 | H86: 861.5697789 | I86: 717.0600674 | J86: 750.3803802 | K86: 775.0642013 | L86: 810.8744271 | M86: 775.7941815 | N86: 828.7519415 | O86: 844.3721502 | P86: 593.3169463 | Q86: 647.0953954 | R86: 717.4016738 | S86: 779.7499761 | T86: 773.9445739 | U86: 883.5508551 | V86: 981.5317762
A87: Новосибирская область | B87: 572.2433628 | C87: 589.3814107 | D87: 615.9364868 | E87: 668.0141089 | F87: 706.3201826 | G87: 733.0838208 | H87: 742.3350277 | I87: 589.5825784 | J87: 602.6578149 | K87: 625.5995275 | L87: 682.6038737 | M87: 729.5279103 | N87: 757.3693805 | O87: 766.7255871 | P87: 510.244574 | Q87: 539.9842154 | R87: 578.6038657 | S87: 609.4242126 | T87: 614.108097 | U87: 637.3009198 | V87: 646.5739456
A88: Омская область | B88: 586.1105179 | C88: 614.68619 | D88: 653.6159919 | E88: 720.8785804 | F88: 767.2899226 | G88: 820.6219164 | H88: 837.9841012 | I88: 596.2398154 | J88: 609.9082225 | K88: 647.8396437 | L88: 708.2417174 | M88: 755.7376103 | N88: 805.9160353 | O88: 829.3467711 | P88: 562.8237537 | Q88: 626.2240213 | R88: 668.0794111 | S88: 753.9470758 | T88: 797.6021072 | U88: 859.2145412 | V88: 860.5232114
A89: Томская область | B89: 687.867274 | C89: 712.7034799 | D89: 746.4497838 | E89: 804.0613583 | F89: 813.5700885 | G89: 822.9198464 | H89: 833.0649769 | I89: 716.0979066 | J89: 742.6021117 | K89: 768.005286 | L89: 821.7121126 | M89: 826.7748479 | N89: 853.1848111 | O89: 863.1923503 | P89: 622.1480463 | Q89: 642.3962757 | R89: 696.4080276 | S89: 763.2556875 | T89: 783.9198389 | U89: 758.3794665 | V89: 771.4135021
A90: Дальневосточный федеральный округ | B90: 670.8427409 | C90: 699.0232577 | D90: 739.2518706 | E90: 786.3231898 | F90: 815.0042503 | G90: 839.1862988 | H90: 855.5262061 | I90: 678.3599435 | J90: 706.0052095 | K90: 747.1978645 | L90: 790.230982 | M90: 821.1170536 | N90: 848.4622666 | O90: 866.9967845 | P90: 652.3817424 | Q90: 681.5389712 | R90: 718.9227474 | S90: 776.0151226 | T90: 798.767306 | U90: 814.7072218 | V90: 825.6535145
A91: Республика Бурятия | B91: 563.9631444 | C91: 579.1225218 | D91: 643.940693 | E91: 687.2890753 | F91: 724.2047802 | G91: 708.6626985 | H91: 738.6864833 | I91: 587.0589101 | J91: 603.6601455 | K91: 700.143698 | L91: 741.585593 | M91: 789.3407149 | N91: 758.049678 | O91: 787.8256952 | P91: 532.7177241 | Q91: 545.3862299 | R91: 566.0922674 | S91: 611.6048243 | T91: 634.0499285 | U91: 641.9005102 | V91: 674.4437173
A92: Республика Саха (Якутия) | B92: 681.2104005 | C92: 717.1453626 | D92: 742.2747748 | E92: 831.6421474 | F92: 813.2140839 | G92: 830.0853476 | H92: 838.2010582 | I92: 635.1718517 | J92: 668.2896818 | K92: 689.8327832 | L92: 782.5447094 | M92: 742.4416008 | N92: 767.6287539 | O92: 771.1816762 | P92: 754.6525803 | Q92: 795.4846529 | R92: 828.1742024 | S92: 914.6176369 | T92: 935.1148868 | U92: 938.881482 | V92: 954.9229374
A93: Забайкальский край | B93: 582.8822771 | C93: 612.4594629 | D93: 669.7659663 | E93: 712.6991162 | F93: 749.3824921 | G93: 770.1269013 | H93: 779.5002736 | I93: 603.9633342 | J93: 629.0674688 | K93: 690.8734765 | L93: 707.6559891 | M93: 779.9053887 | N93: 821.9042496 | O93: 841.6225121 | P93: 540.3400206 | Q93: 578.5277797 | R93: 626.3703483 | S93: 723.3757263 | T93: 684.9689657 | U93: 659.576423 | V93: 645.8473034
A94: Камчатский край | B94: 847.2269771 | C94: 885.2206787 | D94: 920.0419153 | E94: 958.1200995 | F94: 966.505763 | G94: 1001.487943 | H94: 1038.363443 | I94: 789.0235982 | J94: 831.995988 | K94: 866.4744883 | L94: 911.7317116 | M94: 908.2410824 | N94: 940.359373 | O94: 974.3336624 | P94: 1067.048242 | Q94: 1084.131612 | R94: 1121.850565 | S94: 1138.23934 | T94: 1200.890648 | U94: 1254.214963 | V94: 1306.758621
A95: Приморский край | B95: 682.1438743 | C95: 725.5228505 | D95: 762.9713822 | E95: 796.049051 | F95: 827.8278368 | G95: 856.5681102 | H95: 853.1862769 | I95: 676.7208711 | J95: 722.6225565 | K95: 761.1056269 | L95: 797.7465572 | M95: 829.0728686 | N95: 859.2870094 | O95: 858.908445 | P95: 701.5109467 | Q95: 736.1608273 | R95: 769.9695298 | S95: 789.4758649 | T95: 823.0010953 | U95: 846.324361 | V95: 832.1043414
A96: Хабаровский край | B96: 676.2718065 | C96: 693.6478341 | D96: 726.0686519 | E96: 760.0730633 | F96: 802.93379 | G96: 850.2722214 | H96: 884.4106079 | I96: 650.2468228 | J96: 664.676937 | K96: 697.5588707 | L96: 741.7525042 | M96: 788.4104782 | N96: 833.7916685 | O96: 868.963509 | P96: 798.9438363 | Q96: 833.1039229 | R96: 866.1054926 | S96: 851.7514999 | T96: 875.9460575 | U96: 930.5457123 | V96: 957.3206019
A97: Амурская область | B97: 649.5056042 | C97: 686.6825306 | D97: 726.0364267 | E97: 761.6840479 | F97: 790.9320392 | G97: 835.1018187 | H97: 836.5515725 | I97: 742.0541424 | J97: 785.5903208 | K97: 803.5374569 | L97: 823.9723294 | M97: 841.7209394 | N97: 886.8766009 | O97: 891.778869 | P97: 474.6809574 | Q97: 493.0343187 | R97: 565.2730375 | S97: 622.199714 | T97: 675.7067929 | U97: 717.3883256 | V97: 711.1830277
A98: Магаданская область | B98: 876.1379043 | C98: 937.9532635 | D98: 992.9351317 | E98: 1027.896034 | F98: 1112.914777 | G98: 1138.978428 | H98: 1172.69286 | I98: 872.4433249 | J98: 930.1670146 | K98: 982.8615657 | L98: 1017.043478 | M98: 1100.271337 | N98: 1126.407369 | O98: 1160.301237 | P98: 967.5810474 | Q98: 1152.298851 | R98: 1298.657718 | S98: 1338.870432 | T98: 1492.592593 | U98: 1532 | V98: 1582.222222
A99: Сахалинская область | B99: 878.5011244 | C99: 860.6531065 | D99: 859.978494 | E99: 938.9560865 | F99: 982.0957582 | G99: 996.6159608 | H99: 1040.089547 | I99: 894.9453169 | J99: 866.1444735 | K99: 860.188023 | L99: 928.1758273 | M99: 959.7293581 | N99: 974.9072409 | O99: 1025.326139 | P99: 796.3579058 | Q99: 832.1905449 | R99: 858.8454376 | S99: 1000 | T99: 1116.801046 | U99: 1128.78435 | V99: 1127.411288
A100: Еврейская автономная область | B100: 796.7656288 | C100: 789.1190417 | D100: 816.4693684 | E100: 807.1093468 | F100: 846.5700483 | G100: 906.4837905 | H100: 939.1543108 | I100: 801.4899713 | J100: 815.4450262 | K100: 851.4115899 | L100: 811.629706 | M100: 840.1440643 | N100: 887.771699 | O100: 914.0122391 | P100: 785.637149 | Q100: 727.9513409 | R100: 735.7735202 | S100: 796.5745192 | T100: 861.3861386 | U100: 950.7165327 | V100: 997.8038067
A101: Чукотский автономный округ | B101: 1012.901712 | C101: 1049.364965 | D101: 1114.043825 | E101: 1166.276955 | F101: 1233.143786 | G101: 1248.958044 | H101: 1254.566541 | I101: 954.9790156 | J101: 974.2010012 | K101: 1078.574322 | L101: 1091.724419 | M101: 1164.26146 | N101: 1161.777394 | O101: 1133.661153 | P101: 1105.359318 | Q101: 1173.22335 | R101: 1170.652877 | S101: 1297.277937 | T101: 1354.525056 | U101: 1406.713505 | V101: 1477.722772

Sheet 6
A1: К содержанию
A3: Охват детей дошкольным образованием с разбивкой по возрастам по городской и сельской местности (процент)
B4: 2018 | C4: 2019 | D4: 2020 | E4: 2021 | F4: 2022 | G4: 2023 | H4: 2024 | I4: 2018 | J4: 2019 | K4: 2020 | L4: 2021 | M4: 2022 | N4: 2023 | O4: 2024 | P4: 2018 | Q4: 2019 | R4: 2020 | S4: 2021 | T4: 2022 | U4: 2023 | V4: 2024
B5: чистый | I5: валовой 1)
B6: до 3-х лет | I6: 3-6 лет | P6: 1-6 лет
A7: Российская Федерация | B7: 22.26176592 | C7: 24.22820809 | D7: 25.27581644 | E7: 27.00749168 | F7: 28.27004827 | G7: 29.41500023 | H7: 29.58341138 | I7: 84.45104225 | J7: 85.1090369 | K7: 85.73054832 | L7: 87.81885429 | M7: 88.76885376 | N7: 89.66168776 | O7: 89.93174877 | P7: 67.42027816 | Q7: 69.59240852 | R7: 70.91430449 | S7: 73.34313361 | T7: 74.02495479 | U7: 74.89829521 | V7: 75.21636914
A8: Центральный федеральный округ | B8: 21.69885033 | C8: 23.02697034 | D8: 23.83833917 | E8: 24.26790449 | F8: 24.77558658 | G8: 25.64735646 | H8: 25.67439813 | I8: 82.01413727 | J8: 82.28963566 | K8: 82.50135829 | L8: 84.91313509 | M8: 85.41674456 | N8: 86.00337407 | O8: 86.25652841 | P8: 65.09181909 | Q8: 66.88615381 | R8: 67.82394236 | S8: 70.0000477 | T8: 70.25113225 | U8: 70.83000814 | V8: 71.03784875
A9: Белгородская область | B9: 22.09004158 | C9: 27.93166157 | D9: 32.77447986 | E9: 34.46798359 | F9: 32.30831529 | G9: 36.15709324 | H9: 34.70046409 | I9: 87.20804588 | J9: 86.98038887 | K9: 88.40942863 | L9: 90.16464204 | M9: 91.24502558 | N9: 93.58151945 | O9: 89.68844455 | P9: 69.55690272 | Q9: 72.78052062 | R9: 75.97353969 | S9: 78.34582471 | T9: 77.61596484 | U9: 80.53282122 | V9: 77.67380049
A10: Брянская область | B10: 27.53269407 | C10: 27.3158126 | D10: 27.71757346 | E10: 28.68962689 | F10: 29.0974335 | G10: 31.40779796 | H10: 32.57998372 | I10: 85.23802644 | J10: 86.47312142 | K10: 85.60988473 | L10: 85.31487673 | M10: 86.12804228 | N10: 88.00961471 | O10: 89.75003735 | P10: 70.26175682 | Q10: 71.88425113 | R10: 71.86216675 | S10: 72.45328088 | T10: 72.8549688 | U10: 75.23814282 | V10: 76.99099292
A11: Владимирская область | B11: 40.22502681 | C11: 41.24825364 | D11: 42.92676831 | E11: 43.95242305 | F11: 44.59823669 | G11: 45.57585792 | H11: 46.44439165 | I11: 94.40967877 | J11: 94.28474258 | K11: 94.63608604 | L11: 97.20144328 | M11: 99.02104371 | N11: 102.4897519 | O11: 103.488399 | P11: 82.03065766 | Q11: 83.00216969 | R11: 84.23296307 | S11: 87.42268572 | T11: 88.62864095 | U11: 91.26377107 | V11: 92.48680586
A12: Воронежская область | B12: 19.7622182 | C12: 23.14947651 | D12: 24.17979214 | E12: 24.64682194 | F12: 27.18915405 | G12: 29.08656523 | H12: 29.50991657 | I12: 85.82676399 | J12: 88.1207686 | K12: 88.36603542 | L12: 90.88428404 | M12: 92.443962 | N12: 93.88643147 | O12: 95.09519972 | P12: 67.3727514 | Q12: 71.20141343 | R12: 72.35113602 | S12: 74.65116972 | T12: 76.13124041 | U12: 77.76472661 | V12: 79.04403629
A13: Ивановская область | B13: 36.79186436 | C13: 39.12831837 | D13: 40.79527688 | E13: 42.65138842 | F13: 44.70667045 | G13: 44.35856727 | H13: 44.05962769 | I13: 102.0719764 | J13: 103.2295711 | K13: 103.4129269 | L13: 104.9401785 | M13: 105.5517419 | N13: 107.8775239 | O13: 107.9067083 | P13: 85.65447227 | Q13: 88.38745462 | R13: 90.08435802 | S13: 92.62373217 | T13: 93.66638581 | U13: 94.07077106 | V13: 93.20465301
A14: Калужская область | B14: 21.52157069 | C14: 24.57531715 | D14: 25.57969363 | E14: 26.11234336 | F14: 30.04638945 | G14: 30.64959632 | H14: 31.09059143 | I14: 89.97249928 | J14: 90.719476 | K14: 90.52241113 | L14: 89.23607547 | M14: 91.6790393 | N14: 92.9216973 | O14: 94.65652637 | P14: 70.10517911 | Q14: 72.85734443 | R14: 74.34914992 | S14: 74.43053318 | T14: 77.11596315 | U14: 78.19373803 | V14: 79.43933375
A15: Костромская область | B15: 42.74917676 | C15: 48.30316292 | D15: 48.73642699 | E15: 43.66714837 | F15: 43.31081982 | G15: 46.15032022 | H15: 44.97355209 | I15: 94.1085967 | J15: 93.46887666 | K15: 95.49754067 | L15: 102.5366466 | M15: 101.5526832 | N15: 100.416557 | O15: 99.43484199 | P15: 82.94544322 | Q15: 85.70118941 | R15: 87.63972378 | S15: 90.79216603 | T15: 89.54498685 | U15: 89.86803291 | V15: 88.49751244
A16: Курская область | B16: 13.04734513 | C16: 15.59850094 | D16: 15.03285471 | E16: 16.39852084 | F16: 17.79454722 | G16: 18.35654135 | H16: 17.22675819 | I16: 72.96934395 | J16: 73.66925263 | K16: 73.7677611 | L16: 75.02073277 | M16: 75.71345909 | N16: 76.6453072 | O16: 72.24934982 | P16: 56.05877881 | Q16: 58.53525357 | R16: 58.75546228 | S16: 60.30522701 | T16: 60.61467575 | U16: 61.40633008 | V16: 58.08860783
A17: Липецкая область | B17: 21.31982654 | C17: 23.98197757 | D17: 27.27272727 | E17: 28.99047052 | F17: 28.62122851 | G17: 29.77605869 | H17: 31.50043077 | I17: 85.01588127 | J17: 84.94384957 | K17: 86.08758956 | L17: 87.29187023 | M17: 91.11781826 | N17: 92.81317074 | O17: 94.74136406 | P17: 67.34108812 | Q17: 69.30887138 | R17: 72.01628718 | S17: 74.0245198 | T17: 76.39782286 | U17: 78.27174685 | V17: 80.1207969
A18: Московская область | B18: 15.96797583 | C18: 17.79556449 | D18: 18.83270844 | E18: 21.80443309 | F18: 22.97731562 | G18: 25.63615418 | H18: 26.93569327 | I18: 85.5520112 | J18: 84.9402536 | K18: 85.17846619 | L18: 89.46454699 | M18: 93.95986271 | N18: 96.27576737 | O18: 99.99171271 | P18: 64.35193676 | Q18: 66.21482252 | R18: 68.32202906 | S18: 72.75173135 | T18: 75.61416526 | U18: 78.63741298 | V18: 81.72111599
A19: Орловская область | B19: 22.87619248 | C19: 24.38501518 | D19: 24.03392752 | E19: 25.84246131 | F19: 28.76197028 | G19: 28.97293422 | H19: 28.83303865 | I19: 88.38733163 | J19: 88.34506717 | K19: 88.36357797 | L19: 89.91912287 | M19: 91.2206677 | N19: 92.01037193 | O19: 92.64947651 | P19: 70.48582912 | Q19: 72.10427013 | R19: 72.59111448 | S19: 74.74120083 | T19: 76.33277993 | U19: 76.86627205 | V19: 77.43559827
A20: Рязанская область | B20: 14.80295976 | C20: 16.36108334 | D20: 16.35165825 | E20: 19.15268353 | F20: 24.64996067 | G20: 28.13649417 | H20: 30.77209302 | I20: 88.43464119 | J20: 88.03155628 | K20: 87.55033349 | L20: 89.89055673 | M20: 91.84685209 | N20: 94.54205512 | O20: 97.40036583 | P20: 66.30524406 | Q20: 68.43710723 | R20: 68.88351946 | S20: 72.14792853 | T20: 75.62210819 | U20: 79.08245643 | V20: 82.61448725
A21: Смоленская область | B21: 24.99352963 | C21: 25.93690702 | D21: 26.88113101 | E21: 30.06820309 | F21: 31.96680498 | G21: 34.2589644 | H21: 35.38466801 | I21: 89.40324868 | J21: 89.56930854 | K21: 88.89377782 | L21: 90.4169311 | M21: 91.63039236 | N21: 93.16015015 | O21: 96.20528433 | P21: 71.83230395 | Q21: 73.67424242 | R21: 74.31648097 | S21: 77.0074823 | T21: 78.45446022 | U21: 80.34568139 | V21: 83.27688066
A22: Тамбовская область | B22: 39.86593877 | C22: 44.88646768 | D22: 52.5604367 | E22: 46.78679808 | F22: 44.19145237 | G22: 39.07705607 | H22: 36.32652677 | I22: 99.75982025 | J22: 100.5273876 | K22: 99.36096206 | L22: 101.5326109 | M22: 105.2026355 | N22: 105.4184513 | O22: 109.0265811 | P22: 85.42968958 | Q22: 88.86701863 | R22: 91.60936683 | S22: 91.49785843 | T22: 93.27040805 | U22: 90.04183705 | V22: 90.14428468
A23: Тверская область | B23: 25.79705114 | C23: 26.10083446 | D23: 25.77097226 | E23: 27.78456335 | F23: 30.65701636 | G23: 33.15510859 | H23: 35.51502521 | I23: 90.68033233 | J23: 91.69728905 | K23: 92.80429186 | L23: 95.0820924 | M23: 98.89686966 | N23: 103.3999054 | O23: 105.1820965 | P23: 73.20734001 | Q23: 75.2146789 | R23: 76.54801655 | S23: 79.12386334 | T23: 82.74476914 | U23: 86.68136574 | V23: 88.86444263
A24: Тульская область | B24: 26.20843693 | C24: 28.90806458 | D24: 29.07242513 | E24: 30.16352736 | F24: 32.26382288 | G24: 33.828985 | H24: 34.69808654 | I24: 88.24030677 | J24: 87.94222179 | K24: 86.84894099 | L24: 87.44716968 | M24: 89.01596244 | N24: 91.50464396 | O24: 93.7910965 | P24: 71.225264 | Q24: 73.55518644 | R24: 73.46013307 | S24: 74.72471095 | T24: 76.47955741 | U24: 78.79616159 | V24: 80.31747523
A25: Ярославская область | B25: 32.80728363 | C25: 34.39841266 | D25: 37.89092522 | E25: 39.53069487 | F25: 42.99666271 | G25: 43.91093543 | H25: 44.03503354 | I25: 96.7276353 | J25: 97.34712524 | K25: 98.19123196 | L25: 100.0924395 | M25: 101.0854295 | N25: 102.5784163 | O25: 103.6213769 | P25: 80.17729706 | Q25: 82.49047394 | R25: 85.10135872 | S25: 87.53397959 | T25: 89.04312928 | U25: 90.42356174 | V25: 91.20504027
A26: г. Москва | B26: 19.83654962 | C26: 19.46384956 | D26: 19.4538186 | E26: 17.87964876 | F26: 16.91272533 | G26: 16.32991193 | H26: 15.62509508 | I26: 67.77706343 | J26: 68.49392731 | K26: 68.87168142 | L26: 71.12026109 | M26: 67.62987446 | N26: 65.75078204 | O26: 63.76609788 | P26: 54.5335342 | Q26: 55.62079737 | R26: 55.48744327 | S26: 56.55211721 | T26: 53.8724873 | U26: 51.91224768 | V26: 50.35588028
A27: Северо-Западный федеральный округ | B27: 31.39874491 | C27: 33.38612702 | D27: 34.49394719 | E27: 36.16432402 | F27: 37.29648253 | G27: 37.58692562 | H27: 37.34448024 | I27: 101.005473 | J27: 101.8775836 | K27: 102.6339537 | L27: 104.7827252 | M27: 106.6081899 | N27: 107.1064598 | O27: 105.441836 | P27: 82.43203333 | Q27: 84.9690618 | R27: 86.56453881 | S27: 89.35914001 | T27: 90.42851848 | U27: 90.16394748 | V27: 89.01133816
A28: Республика Карелия | B28: 35.95741968 | C28: 37.93083006 | D28: 38.24320828 | E28: 47.95499049 | F28: 50.19604572 | G28: 46.67891115 | H28: 40.55015414 | I28: 111.9335523 | J28: 113.4087872 | K28: 114.2827961 | L28: 115.7431113 | M28: 118.5833176 | N28: 121.827305 | O28: 124.5712383 | P28: 92.59556483 | Q28: 95.51880203 | R28: 96.85871581 | S28: 102.7402462 | T28: 105.3353659 | U28: 104.3716241 | V28: 102.4900473
A29: Республика Коми | B29: 56.86926818 | C29: 59.71572801 | D29: 60.83361155 | E29: 61.8915414 | F29: 61.81965042 | G29: 59.05385201 | H29: 55.16895789 | I29: 113.1379731 | J29: 112.6678313 | K29: 112.8404261 | L29: 112.9106035 | M29: 114.2106588 | N29: 114.9582941 | O29: 115.6473934 | P29: 101.7698217 | Q29: 103.7858447 | R29: 104.9678506 | S29: 105.5661789 | T29: 106.8992809 | U29: 105.5080214 | V29: 103.1038548
A30: Архангельская область | B30: 37.10671292 | C30: 39.04507296 | D30: 43.50601186 | E30: 49.88945807 | F30: 53.94079772 | G30: 54.24048 | H30: 53.74896861 | I30: 109.2953039 | J30: 108.5855181 | K30: 107.6717772 | L30: 107.8157681 | M30: 108.3100446 | N30: 109.6981604 | O30: 109.5461184 | P30: 90.81075445 | Q30: 92.36917714 | R30: 93.99366542 | S30: 97.14524181 | T30: 99.23889148 | U30: 99.65808274 | V30: 98.92607153
A31: Ненецкий автономный округ | B31: 39.64347995 | C31: 40.10248413 | D31: 49.79843491 | E31: 53.02644964 | F31: 51.09910815 | G31: 48.0642805 | H31: 47.21428571 | I31: 109.4431904 | J31: 110.8573568 | K31: 105.8162078 | L31: 109.4211577 | M31: 120.0177541 | N31: 122.6874391 | O31: 119.9691199 | P31: 91.60714286 | Q31: 94.38112908 | R31: 95.30294608 | S31: 99.76771196 | T31: 106.3856559 | U31: 106.0040027 | V31: 101.6649677
A32: Архангельская область (кроме Ненецкого автономного округа) | B32: 36.96572222 | C32: 38.98830172 | D32: 43.15686287 | E32: 49.71387086 | F32: 54.11061734 | G32: 54.63439633 | H32: 54.19270349 | I32: 109.2874428 | J32: 108.4622883 | K32: 107.7730514 | L32: 107.7250896 | M32: 107.6673813 | N32: 108.9797787 | O32: 108.9564407 | P32: 90.76787848 | Q32: 92.26021302 | R32: 93.92214023 | S32: 96.9977961 | T32: 98.83935637 | U32: 99.29618991 | V32: 98.76224544
A33: Вологодская область | B33: 34.85876403 | C33: 41.29800006 | D33: 42.41517018 | E33: 43.00890795 | F33: 45.16718564 | G33: 46.92149916 | H33: 47.44855995 | I33: 99.03213856 | J33: 99.97021804 | K33: 100.3239865 | L33: 100.5698955 | M33: 102.4476806 | N33: 103.1549572 | O33: 103.1135822 | P33: 82.99274744 | Q33: 87.46013451 | R33: 88.79188324 | S33: 89.39080299 | T33: 90.75644109 | U33: 91.83074422 | V33: 92.18423001
A34: Калининградская область | B34: 20.35599802 | C34: 25.90492952 | D34: 28.27627024 | E34: 31.15660829 | F34: 32.85493399 | G34: 33.66840565 | H34: 34.52145165 | I34: 90.73043899 | J34: 89.37115652 | K34: 90.98387097 | L34: 94.68056392 | M34: 95.18584071 | N34: 96.22091634 | O34: 98.09871473 | P34: 70.64953585 | Q34: 73.15807007 | R34: 75.94046357 | S34: 80.18107903 | T34: 80.64850762 | U34: 81.54023066 | V34: 83.80871421
A35: Ленинградская область | B35: 33.20359477 | C35: 31.71260551 | D35: 30.53943675 | E35: 31.46014463 | F35: 31.84349473 | G35: 32.21598555 | H35: 34.12810929 | I35: 101.1003615 | J35: 102.6936962 | K35: 102.8949171 | L35: 102.218386 | M35: 106.0485701 | N35: 108.4872936 | O35: 108.0169929 | P35: 83.72747028 | Q35: 84.78117098 | R35: 84.98218637 | S35: 85.89157413 | T35: 87.41542894 | U35: 88.23969194 | V35: 89.44279661
A36: Мурманская область | B36: 44.57428304 | C36: 46.28758044 | D36: 45.00622897 | E36: 45.21487967 | F36: 46.25339693 | G36: 45.23965526 | H36: 46.16622156 | I36: 103.3563371 | J36: 103.196631 | K36: 103.466291 | L36: 103.4435984 | M36: 102.4217133 | N36: 101.7650767 | O36: 101.1997334 | P36: 90.24562475 | Q36: 91.27227419 | R36: 91.3048879 | S36: 91.47896998 | T36: 90.85925755 | U36: 90.15273014 | V36: 90.18767317
A37: Новгородская область | B37: 46.54048007 | C37: 44.82755134 | D37: 44.00652442 | E37: 44.74497682 | F37: 44.67560487 | G37: 48.73739798 | H37: 49.97656982 | I37: 95.93820929 | J37: 94.18947657 | K37: 93.57557728 | L37: 96.41215383 | M37: 97.57667088 | N37: 97.41255605 | O37: 98.41331646 | P37: 85.68903772 | Q37: 84.33318007 | R37: 84.21374669 | S37: 86.99425897 | T37: 87.56658132 | U37: 88.79074996 | V37: 89.97707856
A38: Псковская область | B38: 22.63063269 | C38: 23.53309341 | D38: 26.41399417 | E38: 28.35316099 | F38: 31.76823177 | G38: 36.6065237 | H38: 37.23895424 | I38: 93.89655928 | J38: 94.32543882 | K38: 95.41139241 | L38: 96.17041272 | M38: 97.63756234 | N38: 97.75797243 | O38: 97.18745469 | P38: 73.93785353 | Q38: 75.7276587 | R38: 78.05945456 | S38: 80.57562077 | T38: 81.82362271 | U38: 83.29447575 | V38: 84.0829379
A39: г.Санкт-Петербург | B39: 24.33144028 | C39: 26.33538346 | D39: 27.95552717 | E39: 29.00927773 | F39: 29.73582672 | G39: 29.84464003 | H39: 29.39167347 | I39: 99.62397728 | J39: 101.8932287 | K39: 103.4415731 | L39: 107.8994622 | M39: 110.0953137 | N39: 109.5828258 | O39: 104.8913477 | P39: 77.6318354 | Q39: 81.38661144 | R39: 83.8636357 | S39: 88.04275278 | T39: 89.07391058 | U39: 87.8219045 | V39: 84.58667769
A40: Южный федеральный округ | B40: 19.09981261 | C40: 19.95235337 | D40: 19.82169411 | E40: 21.59841073 | F40: 23.03189259 | G40: 24.39757466 | H40: 24.34128172 | I40: 77.62360846 | J40: 78.71489413 | K40: 78.74010387 | L40: 81.56937059 | M40: 82.18596477 | N40: 83.28316666 | O40: 84.13344771 | P40: 61.37497305 | Q40: 63.32663821 | R40: 63.71625302 | S40: 66.61598754 | T40: 67.00133755 | U40: 68.39338695 | V40: 69.34771577
A41: Республика Адыгея(Адыгея) | B41: 24.61666507 | C41: 30.98914436 | D41: 28.86235712 | E41: 29.79098208 | F41: 27.32663926 | G41: 28.56311267 | H41: 30.2749514 | I41: 76.33852831 | J41: 73.70537959 | K41: 77.10322606 | L41: 76.12343687 | M41: 79.85865724 | N41: 80.12222867 | O41: 79.6469839 | P41: 62.97824965 | Q41: 64.35937202 | R41: 66.65919283 | S41: 66.23964472 | T41: 66.09217264 | U41: 67.12124441 | V41: 68.30019691
A42: Республика Калмыкия | B42: 25.15274949 | C42: 23.26803545 | D42: 12.9194758 | E42: 27.0363111 | F42: 26.57795675 | G42: 28.69269949 | H42: 30.80606138 | I42: 73.97758068 | J42: 75.8404303 | K42: 70.13574661 | L42: 70.10265184 | M42: 74.86225895 | N42: 76.65098166 | O42: 78.263824 | P42: 62.21429799 | Q42: 62.80709634 | R42: 54.47496572 | S42: 60.34413766 | T42: 63.20663812 | U42: 65.93886463 | V42: 67.82220075
A43: Республика Крым | B43: 9.021945704 | C43: 10.96755994 | D43: 13.3105802 | E43: 15.36482981 | F43: 17.26735288 | G43: 19.55391145 | H43: 20.29549332 | I43: 71.25151638 | J43: 74.48144216 | K43: 77.45957302 | L43: 81.46778082 | M43: 83.52823881 | N43: 86.11966921 | O43: 87.85458336 | P43: 52.79992789 | Q43: 56.50265995 | R43: 59.76369176 | S43: 63.75949888 | T43: 65.6673822 | U43: 68.41838562 | V43: 70.4145492
A44: Краснодарский край | B44: 18.47779563 | C44: 18.27193734 | D44: 17.3235393 | E44: 18.77358166 | F44: 20.69445407 | G44: 21.36283816 | H44: 21.6273749 | I44: 79.46293544 | J44: 80.07867734 | K44: 78.65275643 | L44: 81.46535235 | M44: 80.8318922 | N44: 81.22296635 | O44: 81.55031375 | P44: 62.14928862 | Q44: 63.33529244 | R44: 62.38261051 | S44: 65.06146337 | T44: 64.82926084 | U44: 65.61713481 | V44: 66.42107861
A45: Астраханская область | B45: 20.9628928 | C45: 21.38475907 | D45: 20.12766406 | E45: 22.11748753 | F45: 22.78118772 | G45: 24.38434215 | H45: 23.58727 | I45: 73.87620617 | J45: 74.48169425 | K45: 74.92429159 | L45: 76.03983485 | M45: 77.05759401 | N45: 78.71417127 | O45: 79.20568812 | P45: 59.90128905 | Q45: 61.42448756 | R45: 61.43629977 | S45: 62.90972523 | T45: 63.03386912 | U45: 64.82391986 | V45: 65.17871454
A46: Волгоградская область | B46: 25.5442924 | C46: 29.13202376 | D46: 30.94108621 | E46: 32.26097016 | F46: 34.33412715 | G46: 35.29609203 | H46: 36.14041616 | I46: 78.81092292 | J46: 80.50471582 | K46: 81.34014341 | L46: 83.96626087 | M46: 84.35412833 | N46: 86.49509665 | O46: 86.88579979 | P46: 65.05255545 | Q46: 68.37837505 | R46: 70.13203244 | S46: 73.14511513 | T46: 73.70233539 | U46: 75.35890911 | V46: 76.23465235
A47: Ростовская область | B47: 20.81830697 | C47: 21.06566496 | D47: 20.84466034 | E47: 22.33489352 | F47: 23.37126863 | G47: 25.16181939 | H47: 23.46718409 | I47: 79.79256992 | J47: 80.63061031 | K47: 80.61316409 | L47: 83.69090348 | M47: 85.29795918 | N47: 86.2490288 | O47: 87.79391834 | P47: 63.63480685 | Q47: 65.2934 | R47: 65.7311198 | S47: 68.67507107 | T47: 69.51775609 | U47: 70.87315616 | V47: 71.46278768
A48: г. Севастополь | B48: 10.01522366 | C48: 11.33700072 | D48: 16.09272475 | E48: 18.74517587 | F48: 19.53316005 | G48: 23.91863163 | H48: 25.11100444 | I48: 69.7047817 | J48: 71.97080292 | K48: 73.87369428 | L48: 80.85824494 | M48: 78.58512678 | N48: 79.45036916 | O48: 82.5687176 | P48: 51.64438427 | Q48: 55.22255522 | R48: 59.07332613 | S48: 65.14768417 | T48: 63.5185073 | U48: 65.95627173 | V48: 69.13371991
A49: Северо-Кавказский федеральный округ | B49: 12.09480063 | C49: 13.22413868 | D49: 13.61113015 | E49: 14.98792532 | F49: 15.70111116 | G49: 16.33359481 | H49: 16.7674616 | I49: 59.22165116 | J49: 60.60718252 | K49: 61.49333008 | L49: 63.91855422 | M49: 66.41846612 | N49: 67.95765016 | O49: 70.32949388 | P49: 45.796574 | Q49: 47.47200176 | R49: 48.47682178 | S49: 50.64318902 | T49: 52.56244003 | U49: 53.80995484 | V49: 55.44070269
A50: Республика Дагестан | B50: 6.023225388 | C50: 6.48026336 | D50: 6.298490388 | E50: 7.426957937 | F50: 7.602907576 | G50: 8.536118827 | H50: 8.827777184 | I50: 40.55067146 | J50: 42.20544675 | K50: 43.25586311 | L50: 45.73968074 | M50: 47.70245884 | N50: 50.65317769 | O50: 53.28462437 | P50: 30.21441571 | Q50: 31.7727415 | R50: 32.62777354 | S50: 34.65936511 | T50: 36.17257829 | U50: 38.82172618 | V50: 40.6067479
A51: Республика Ингушетия | B51: 3.60858844 | C51: 3.639407825 | D51: 5.522494644 | E51: 8.840108055 | F51: 11.46551539 | G51: 11.50869419 | H51: 13.9871275 | I51: 40.67111925 | J51: 43.04804507 | K51: 47.45026163 | L51: 61.15004828 | M51: 65.72511848 | N51: 66.77919906 | O51: 69.03611896 | P51: 30.21872565 | Q51: 31.33992806 | R51: 34.64707059 | S51: 44.70367777 | T51: 48.51284595 | U51: 49.77983539 | V51: 53.12692608
A52: Кабардино-Балкарская Республика | B52: 21.23257078 | C52: 25.43045122 | D52: 26.81758016 | E52: 26.88982874 | F52: 26.95048409 | G52: 26.86058047 | H52: 28.25484765 | I52: 82.1232754 | J52: 83.24055409 | K52: 81.81609107 | L52: 84.89925515 | M52: 90.232358 | N52: 90.14460009 | O52: 90.8056652 | P52: 66.07131752 | Q52: 68.64666021 | R52: 68.59731065 | S52: 71.1177805 | T52: 73.98666211 | U52: 73.54349438 | V52: 74.80367427
A53: Карачаево-Черкесская Республика | B53: 12.80063414 | C53: 13.45823828 | D53: 11.09170945 | E53: 15.32401953 | F53: 16.82125723 | G53: 19.42160776 | H53: 20.70497032 | I53: 68.99644926 | J53: 69.66641395 | K53: 66.16515045 | L53: 69.1623959 | M53: 72.19204043 | N53: 72.61449122 | O53: 76.7587822 | P53: 52.79196894 | Q53: 54.0157852 | R53: 50.51490952 | S53: 54.27389578 | T53: 57.73186683 | U53: 59.87239016 | V53: 62.89867578
A54: Республика Северная Осетия-Алания | B54: 20.47691785 | C54: 21.99524339 | D54: 21.26007948 | E54: 22.21227559 | F54: 23.6736106 | G54: 24.34331855 | H54: 23.1157594 | I54: 77.30478134 | J54: 81.57697456 | K54: 81.32269484 | L54: 81.37116257 | M54: 87.77094179 | N54: 87.95188729 | O54: 89.84358922 | P54: 62.61124923 | Q54: 66.2795707 | R54: 65.53078411 | S54: 66.16207322 | T54: 71.32171212 | U54: 70.68238689 | V54: 71.07255448
A55: Чеченская Республика | B55: 9.737381161 | C55: 11.11771468 | D55: 12.04308853 | E55: 12.85513384 | F55: 13.38377513 | G55: 13.42746288 | H55: 13.96448807 | I55: 56.2165364 | J55: 57.81087 | K55: 60.29841824 | L55: 62.79634154 | M55: 65.15163031 | N55: 65.74557139 | O55: 69.0061493 | P55: 42.73418998 | Q55: 44.09427667 | R55: 46.32127864 | S55: 48.16967557 | T55: 50.08322953 | U55: 50.03699759 | V55: 51.91653449
A56: Ставропольский край | B56: 19.76849798 | C56: 21.57628796 | D56: 22.86095518 | E56: 25.23799696 | F56: 26.3 | G56: 27.33475421 | H56: 27.71784272 | I56: 78.90668177 | J56: 78.59240942 | K56: 79.14201905 | L56: 79.69793069 | M56: 81.70849421 | N56: 84.3130002 | O56: 86.00726322 | P56: 62.14535816 | Q56: 63.81144665 | R56: 65.40139702 | S56: 67.0000155 | T56: 68.3 | U56: 70.30624974 | V56: 71.5184435
A57: Приволжский федеральный округ | B57: 23.00556302 | C57: 26.17799673 | D57: 27.42415769 | E57: 29.82749868 | F57: 32.08837325 | G57: 34.11522825 | H57: 34.56554329 | I57: 91.31298362 | J57: 91.69308343 | K57: 92.68420795 | L57: 94.23171278 | M57: 95.39740146 | N57: 96.75143084 | O57: 96.71429974 | P57: 72.6264891 | Q57: 75.35616968 | R57: 77.10346282 | S57: 79.54190776 | T57: 80.52187156 | U57: 82.06736499 | V57: 82.31875748
A58: Республика Башкортостан | B58: 24.29267176 | C58: 28.1697872 | D58: 29.4513601 | E58: 32.58308866 | F58: 33.12563002 | G58: 32.82793041 | H58: 34.24292778 | I58: 87.17710275 | J58: 88.83497422 | K58: 90.71341758 | L58: 92.95498743 | M58: 95.17029245 | N58: 98.2400018 | O58: 96.46870937 | P58: 70.64524973 | Q58: 74.25630019 | R58: 76.63305947 | S58: 79.63559839 | T58: 80.58178462 | U58: 82.55686175 | V58: 81.86362594
A59: Республика Марий Эл | B59: 15.19968925 | C59: 17.46138881 | D59: 17.27413825 | E59: 23.17228056 | F59: 28.94001411 | G59: 33.05603231 | H59: 34.07610484 | I59: 92.84507475 | J59: 91.42908744 | K59: 93.69169618 | L59: 97.89375961 | M59: 97.54873944 | N59: 98.52362547 | O59: 99.2780719 | P59: 70.48046827 | Q59: 72.19186175 | R59: 74.53886112 | S59: 79.64218456 | T59: 80.58627821 | U59: 82.86969972 | V59: 84.09556852
A60: Республика Мордовия | B60: 30.70604407 | C60: 34.43346647 | D60: 41.1376154 | E60: 32.3119184 | F60: 33.93797542 | G60: 34.65909783 | H60: 35.00463646 | I60: 89.25820707 | J60: 90.21408685 | K60: 86.56886388 | L60: 92.33036278 | M60: 93.55980717 | N60: 94.74938373 | O60: 95.54084654 | P60: 74.67997396 | Q60: 77.33034212 | R60: 77.63332073 | S60: 78.87076095 | T60: 80.04086461 | U60: 81.28398527 | V60: 82.10876527
A61: Республика Татарстан | B61: 15.04584443 | C61: 20.67014503 | D61: 19.43485023 | E61: 22.16813278 | F61: 24.48213313 | G61: 28.26667078 | H61: 28.50448828 | I61: 89.59548081 | J61: 88.41339797 | K61: 89.6852527 | L61: 91.60450948 | M61: 92.75083574 | N61: 93.95527488 | O61: 94.59616636 | P61: 67.6281257 | Q61: 70.56253853 | R61: 71.53452628 | S61: 74.39827322 | T61: 75.25469419 | U61: 77.55991033 | V61: 78.38247022
A62: Удмуртская Республика | B62: 28.85924243 | C62: 32.79343871 | D62: 35.21605237 | E62: 36.97462621 | F62: 40.4839872 | G62: 42.9383848 | H62: 42.3555092 | I62: 98.45222302 | J62: 99.67101426 | K62: 100.2213423 | L62: 100.6193864 | M62: 100.9945344 | N62: 101.1078169 | O62: 100.429487 | P62: 80.38306197 | Q62: 84.07064845 | R62: 86.11215053 | S62: 87.23671442 | T62: 87.50983136 | U62: 88.39016353 | V62: 88.10575295
A63: Чувашская Республика | B63: 27.91482908 | C63: 33.8294682 | D63: 35.71870289 | E63: 36.67239875 | F63: 39.59248467 | G63: 41.48991384 | H63: 42.21819337 | I63: 96.4018928 | J63: 96.58419889 | K63: 96.36167822 | L63: 97.33415172 | M63: 97.10986817 | N63: 97.6566939 | O63: 98.84344266 | P63: 77.91992008 | Q63: 81.70744726 | R63: 83.16843914 | S63: 84.38175543 | T63: 84.76870426 | U63: 85.85074627 | V63: 87.0948892
A64: Пермский край | B64: 25.93411012 | C64: 28.80316262 | D64: 32.14486044 | E64: 39.57985109 | F64: 44.15640207 | G64: 47.22494903 | H64: 46.81992277 | I64: 95.3526654 | J64: 95.80064206 | K64: 96.30486593 | L64: 97.3422616 | M64: 98.16365219 | N64: 99.76476145 | O64: 100.1396323 | P64: 76.60658236 | Q64: 79.48784838 | R64: 81.78111599 | S64: 86.138646 | T64: 87.92543245 | U64: 89.52898183 | V64: 89.46377416
A65: Кировская область | B65: 19.91311903 | C65: 23.42759604 | D65: 24.14984754 | E65: 30.28709726 | F65: 31.53074575 | G65: 36.55338283 | H65: 38.09530455 | I65: 107.1716595 | J65: 107.9423883 | K65: 108.48474 | L65: 108.7811964 | M65: 111.7294305 | N65: 114.5325539 | O65: 118.3537819 | P65: 81.63132868 | Q65: 85.646854 | R65: 87.69640306 | S65: 90.9854766 | T65: 94.24324825 | U65: 96.66790327 | V65: 97.80716015
A66: Нижегородская область | B66: 29.65398145 | C66: 29.7612057 | D66: 30.84638072 | E66: 32.55725346 | F66: 35.73912275 | G66: 37.07835927 | H66: 37.6845875 | I66: 95.64216783 | J66: 95.90587963 | K66: 96.15132819 | L66: 96.46193311 | M66: 98.17839007 | N66: 98.92076324 | O66: 99.05666982 | P66: 78.06480225 | Q66: 79.37522571 | R66: 80.83000406 | S66: 82.09791394 | T66: 84.07180113 | U66: 85.11619532 | V66: 85.43172828
A67: Оренбургская область | B67: 24.53079738 | C67: 29.67878041 | D67: 32.0090827 | E67: 31.31151919 | F67: 32.02904701 | G67: 31.54238421 | H67: 31.50244667 | I67: 94.33636137 | J67: 95.20674191 | K67: 96.95931835 | L67: 95.62471457 | M67: 96.58418699 | N67: 97.35284958 | O67: 95.73303418 | P67: 76.13610413 | Q67: 79.67449966 | R67: 81.74097034 | S67: 80.55590701 | T67: 80.99254494 | U67: 81.28023043 | V67: 80.14583805
A68: Пензенская область | B68: 29.08086168 | C68: 29.85555328 | D68: 30.12354756 | E68: 32.38679507 | F68: 34.39849624 | G68: 33.7630894 | H68: 35.18483768 | I68: 87.30834154 | J68: 88.91698499 | K68: 91.3107317 | L68: 96.0476229 | M68: 95.19751112 | N68: 95.85478642 | O68: 95.25675912 | P68: 72.78492613 | Q68: 75.24144547 | R68: 77.17860224 | S68: 81.58001331 | T68: 81.02827287 | U68: 81.13434431 | V68: 81.57430908
A69: Самарская область | B69: 19.13189847 | C69: 20.7082918 | D69: 22.9286119 | E69: 24.61105546 | F69: 27.14901771 | G69: 29.85233821 | H69: 29.70596661 | I69: 87.14360425 | J69: 86.61398138 | K69: 87.20899496 | L69: 90.12354842 | M69: 91.12405307 | N69: 92.34726122 | O69: 92.88598102 | P69: 67.73577128 | Q69: 69.33386097 | R69: 71.18984479 | S69: 74.58813798 | T69: 75.65896552 | U69: 77.26531786 | V69: 77.83147682
A70: Саратовская область | B70: 19.10067186 | C70: 19.9179757 | D70: 20.48245803 | E70: 20.67968667 | F70: 22.99786985 | G70: 25.33899373 | H70: 26.4425619 | I70: 82.28557311 | J70: 83.18280071 | K70: 84.29279093 | L70: 84.93372195 | M70: 86.66282571 | N70: 87.76128986 | O70: 88.09015274 | P70: 65.05781001 | Q70: 66.93223035 | R70: 68.29379654 | S70: 69.44902411 | T70: 70.4099356 | U70: 71.8845365 | V70: 73.43392004
A71: Ульяновская область | B71: 23.68058492 | C71: 27.24441435 | D71: 27.46974809 | E71: 30.52241268 | F71: 29.56131215 | G71: 32.97907419 | H71: 31.85747332 | I71: 87.89728334 | J71: 88.49455521 | K71: 90.48044613 | L71: 92.1553464 | M71: 92.83403528 | N71: 93.83646409 | O71: 93.86063239 | P71: 70.507345 | Q71: 73.45726984 | R71: 75.32550178 | S71: 78.0805079 | T71: 77.59560478 | U71: 79.67741935 | V71: 79.2422643
A72: Уральский федеральный округ | B72: 28.75751154 | C72: 32.14125055 | D72: 34.27199275 | E72: 36.85973192 | F72: 38.61114868 | G72: 39.41232998 | H72: 39.28165213 | I72: 92.78487658 | J72: 93.69722234 | K72: 94.33555038 | L72: 95.80798176 | M72: 96.23533033 | N72: 96.59092304 | O72: 96.13902723 | P72: 76.24571444 | Q72: 79.05643146 | R72: 80.81912526 | S72: 83.188756 | T72: 83.50419278 | U72: 83.82242581 | V72: 83.58555898
A73: Курганская область | B73: 18.46743961 | C73: 20.30839284 | D73: 23.28087466 | E73: 25.87428207 | F73: 31.18472626 | G73: 31.36693516 | H73: 34.30376352 | I73: 87.48832461 | J73: 88.84944618 | K73: 86.96637793 | L73: 87.80130544 | M73: 88.75544 | N73: 89.70040336 | O73: 89.07830771 | P73: 68.81779319 | Q73: 71.31260628 | R73: 71.76225199 | S73: 73.52979431 | T73: 75.27245773 | U73: 76.02596497 | V73: 77.07004876
A74: Свердловская область | B74: 23.05454443 | C74: 24.65448881 | D74: 25.91415625 | E74: 30.279373 | F74: 33.79680128 | G74: 35.69134778 | H74: 35.72877837 | I74: 92.63982865 | J74: 93.45056992 | K74: 94.13642899 | L74: 95.7417509 | M74: 96.26015324 | N74: 96.91481531 | O74: 96.39288498 | P74: 73.51774472 | Q74: 75.78734952 | R74: 77.29239509 | S74: 80.50741924 | T74: 81.7245237 | U74: 82.69941901 | V74: 82.43359825
A75: Тюменская область | B75: 27.46076521 | C75: 33.18254366 | D75: 35.21073857 | E75: 39.13328906 | F75: 40.19233544 | G75: 41.00001591 | H75: 40.78025538 | I75: 94.0501009 | J75: 94.52463535 | K75: 95.09755029 | L75: 96.33352458 | M75: 95.75413277 | N75: 95.50578664 | O75: 94.84249266 | P75: 76.53531526 | Q75: 79.77855718 | R75: 81.44568456 | S75: 84.19657169 | T75: 83.63556639 | U75: 83.5800362 | V75: 83.18736126
A76: Ханты-Мансийский автономный округ - Югра | B76: 28.47443689 | C76: 31.94199552 | D76: 32.47044469 | E76: 36.0025208 | F76: 36.67262864 | G76: 36.77481785 | H76: 36.41051048 | I76: 88.73913942 | J76: 88.97202103 | K76: 89.80017609 | L76: 89.29494724 | M76: 89.11263742 | N76: 88.01995387 | O76: 87.05048271 | P76: 73.60748572 | Q76: 75.64053661 | R76: 76.70173163 | S76: 77.76469336 | T76: 77.57192337 | U76: 76.85266949 | V76: 76.06470026
A77: Ямало-Ненецкий автономный округ | B77: 36.89342949 | C77: 44.79445165 | D77: 45.43966345 | E77: 44.4941288 | F77: 42.59233546 | G77: 41.56664775 | H77: 42.26654293 | I77: 105.0092012 | J77: 104.6447481 | K77: 103.4446866 | L77: 105.9574611 | M77: 107.0829616 | N77: 106.5114887 | O77: 101.5388609 | P77: 88.23301972 | Q77: 91.74723986 | R77: 91.39267636 | S77: 94.02238066 | T77: 91.84262421 | U77: 89.67888786 | V77: 87.61746958
A78: Тюменская область без автономий | B78: 23.34408474 | C78: 30.7970176 | D78: 34.84982372 | E78: 40.64996228 | F78: 43.12087534 | G78: 45.38648613 | H78: 45.03558803 | I78: 96.53496134 | J78: 97.46348407 | K78: 98.21106497 | L78: 100.8168357 | M78: 99.28310471 | N78: 100.1611613 | O78: 101.2070449 | P78: 76.00925162 | Q78: 80.48646332 | R78: 83.40518353 | S78: 87.95563935 | T78: 87.45747208 | U78: 88.85114684 | V78: 89.50927069
A79: Челябинская область | B79: 40.26885659 | C79: 43.44986009 | D79: 46.61835952 | E79: 44.84349328 | F79: 44.24927776 | G79: 43.60918241 | H79: 42.66479532 | I79: 92.66273038 | J79: 94.1129301 | K79: 95.31886098 | L79: 97.03225882 | M79: 98.51690889 | N79: 99.19817988 | O79: 99.16375302 | P79: 81.10185573 | Q79: 84.15900392 | R79: 86.67493368 | S79: 87.56705823 | T79: 87.49894149 | U79: 87.34618618 | V79: 87.04695367
A80: Сибирский федеральный округ | B80: 20.5520009 | C80: 22.73284288 | D80: 24.7336558 | E80: 27.79955117 | F80: 29.37171572 | G80: 30.76153652 | H80: 31.64936196 | I80: 83.39738694 | J80: 84.04554615 | K80: 85.07588606 | L80: 87.14252235 | M80: 88.31012424 | N80: 89.66571703 | O80: 90.33760516 | P80: 66.33523548 | Q80: 68.45880634 | R80: 70.46802191 | S80: 73.41865748 | T80: 74.3470415 | U80: 75.62546846 | V80: 76.44845809
A81: Республика Алтай | B81: 12.40861768 | C81: 20.33000767 | D81: 25.45711688 | E81: 28.15424776 | F81: 28.55855276 | G81: 31.64387119 | H81: 32.15659804 | I81: 82.47302599 | J81: 84.48353341 | K81: 86.38782751 | L81: 87.03649635 | M81: 92.13615023 | N81: 91.90057491 | O81: 93.14731947 | P81: 63.19996543 | Q81: 68.07132759 | R81: 71.66925617 | S81: 73.39425723 | T81: 76.63617942 | U81: 76.91462921 | V81: 77.40590758
A82: Республика Тыва | B82: 21.66703591 | C82: 24.36948701 | D82: 24.86123874 | E82: 29.30753026 | F82: 31.04993076 | G82: 33.40018303 | H82: 34.82380441 | I82: 68.45635399 | J82: 69.77469322 | K82: 73.00509338 | L82: 74.15201692 | M82: 77.22989346 | N82: 79.94393178 | O82: 80.86760875 | P82: 56.32022472 | Q82: 58.53765933 | R82: 62.15887828 | S82: 63.8519476 | T82: 65.37175004 | U82: 68.99542659 | V82: 70.64135593
A83: Республика Хакасия | B83: 31.99167303 | C83: 37.99712016 | D83: 39.98627981 | E83: 41.85338687 | F83: 38.62290588 | G83: 41.06165722 | H83: 41.00045319 | I83: 82.33198765 | J83: 85.41762523 | K83: 86.06925038 | L83: 89.06730205 | M83: 92.60542169 | N83: 92.75028769 | O83: 97.25756418 | P83: 70.68679496 | Q83: 75.65090242 | R83: 77.30440439 | S83: 80.5775524 | T83: 81.45531709 | U83: 82.89489171 | V83: 84.86247115
A84: Алтайский край | B84: 15.79595523 | C84: 17.92362582 | D84: 20.6888587 | E84: 24.05077033 | F84: 25.01342055 | G84: 25.85506332 | H84: 27.27737356 | I84: 79.74462583 | J84: 80.85008683 | K84: 81.72498152 | L84: 83.87370886 | M84: 85.49393485 | N84: 86.63377439 | O84: 87.2298083 | P84: 62.12132314 | Q84: 64.56891276 | R84: 66.80122944 | S84: 69.90444882 | T84: 70.84782752 | U84: 71.67342148 | V84: 72.78650596
A85: Красноярский край | B85: 16.63352268 | C85: 19.79847146 | D85: 21.71295811 | E85: 24.89131485 | F85: 27.04156766 | G85: 29.63717162 | H85: 30.97360657 | I85: 83.52016082 | J85: 82.64665235 | K85: 83.51017025 | L85: 86.93114741 | M85: 88.15744291 | N85: 89.58644245 | O85: 90.47750775 | P85: 64.41471712 | Q85: 66.08442062 | R85: 68.08707693 | S85: 72.17268237 | T85: 73.31989588 | U85: 75.14304221 | V85: 76.25449305
A86: Иркутская область | B86: 25.43862487 | C86: 26.578224 | D86: 28.1014962 | E86: 30.59891369 | F86: 33.44241181 | G86: 33.96145056 | H86: 35.11293169 | I86: 85.67759295 | J86: 86.27061381 | K86: 87.01044433 | L86: 87.85813578 | M86: 88.43269802 | N86: 90.13390318 | O86: 90.84784945 | P86: 69.82776316 | Q86: 71.25905661 | R86: 72.75127181 | S86: 74.74503661 | T86: 75.95967123 | U86: 77.0963223 | V86: 78.22341245
A87: Кемеровская область | B87: 29.51279086 | C87: 30.69950456 | D87: 32.0560915 | E87: 34.29521886 | F87: 35.08870694 | G87: 35.77628313 | H87: 36.90391945 | I87: 84.81957607 | J87: 86.23571823 | K87: 87.46602047 | L87: 88.16045577 | M87: 88.88727127 | N87: 90.8855283 | O87: 90.93424133 | P87: 71.57864668 | Q87: 73.65636197 | R87: 75.32169041 | S87: 76.88295242 | T87: 77.24044728 | U87: 78.76966165 | V87: 79.33800493
A88: Новосибирская область | B88: 15.03656919 | C88: 16.97890681 | D88: 19.10159901 | E88: 22.07301856 | F88: 23.33866859 | G88: 24.61152839 | H88: 24.88219174 | I88: 85.36485325 | J88: 85.56425682 | K88: 86.57981322 | L88: 89.06300674 | M88: 89.24440791 | N88: 89.910141 | O88: 90.02107177 | P88: 64.63893805 | Q88: 66.6973928 | R88: 68.88481191 | S88: 72.24285357 | T88: 72.40369418 | U88: 73.07021106 | V88: 73.16224671
A89: Омская область | B89: 18.63363618 | C89: 21.14375204 | D89: 24.37888824 | E89: 27.76882937 | F89: 30.47338726 | G89: 32.10496192 | H89: 32.81699923 | I89: 83.04375056 | J89: 83.95270114 | K89: 84.93152025 | L89: 87.72248225 | M89: 90.08704005 | N89: 92.30838617 | O89: 92.80576525 | P89: 65.88490962 | Q89: 68.41436036 | R89: 70.68231333 | S89: 74.20899331 | T89: 76.38645212 | U89: 78.05096637 | V89: 78.58660233
A90: Томская область | B90: 22.18624071 | C90: 23.03066657 | D90: 24.08256881 | E90: 29.57562645 | F90: 30.99223403 | G90: 32.68502929 | H90: 32.32348124 | I90: 85.82807775 | J90: 86.41664642 | K90: 87.53143637 | L90: 89.60811889 | M90: 89.61430459 | N90: 90.0289737 | O90: 91.35029831 | P90: 68.20734902 | Q90: 70.02875524 | R90: 71.93693636 | S90: 75.99173497 | T90: 76.26047006 | U90: 76.89539386 | V90: 77.81644419
A91: Дальневосточный федеральный округ | B91: 23.33496091 | C91: 25.45816068 | D91: 27.03710139 | E91: 29.16379733 | F91: 29.96463671 | G91: 31.3767253 | H91: 31.93600715 | I91: 85.60891417 | J91: 85.96885212 | K91: 87.17605353 | L91: 89.7283846 | M91: 90.67354046 | N91: 92.26615945 | O91: 92.93942432 | P91: 68.82136294 | Q91: 70.73275822 | R91: 72.60117029 | S91: 75.29836299 | T91: 75.9525474 | U91: 77.29934315 | V91: 77.85921871
A92: Республика Бурятия | B92: 20.56434621 | C92: 22.27789761 | D92: 25.0801256 | E92: 28.26768129 | F92: 30.82881173 | G92: 33.21113781 | H92: 35.60460045 | I92: 75.67695744 | J92: 75.91630324 | K92: 80.47871392 | L92: 83.64754098 | M92: 86.65787691 | N92: 87.6601655 | O92: 88.72311176 | P92: 61.10482276 | Q92: 62.63352573 | R92: 67.04276553 | S92: 70.71039437 | T92: 73.26735199 | U92: 74.78204276 | V92: 76.86525889
A93: Республика Саха (Якутия) | B93: 24.60302055 | C93: 27.72727473 | D93: 26.96161202 | E93: 32.10793415 | F93: 31.52700613 | G93: 32.33062652 | H93: 34.25129354 | I93: 87.76821779 | J93: 89.35971168 | K93: 89.97716275 | L93: 96.10628427 | M93: 93.0829933 | N93: 92.26409485 | O93: 91.37337414 | P93: 71.37563542 | Q93: 74.41241109 | R93: 74.7454955 | S93: 80.33425793 | T93: 77.43187793 | U93: 77.49101099 | V93: 77.85449735
A94: Забайкальский край | B94: 18.36503802 | C94: 19.24440267 | D94: 22.4615525 | E94: 25.49583275 | F94: 27.23002653 | G94: 28.55590062 | H94: 29.03225806 | I94: 79.56909125 | J94: 81.15984644 | K94: 82.09612977 | L94: 83.93830901 | M94: 86.66733048 | N94: 89.54968811 | O94: 91.00595706 | P94: 63.0218381 | Q94: 65.09596187 | R94: 67.42684921 | S94: 69.92204813 | T94: 72.38169665 | U94: 74.00427889 | V94: 74.60635905
A95: Камчатский край | B95: 28.96638696 | C95: 30.02692998 | D95: 30.11963406 | E95: 33.31981268 | F95: 34.40259814 | G95: 34.37750376 | H95: 35.41346076 | I95: 99.90534486 | J95: 100.8629442 | K95: 99.91552956 | L95: 100.3033163 | M95: 101.2710654 | N95: 100.5140814 | O95: 100.7144521 | P95: 80.52892845 | Q95: 82.62264814 | R95: 82.73269853 | S95: 84.0086389 | T95: 84.72564279 | U95: 84.26372499 | V95: 84.39957492
A96: Приморский край | B96: 17.36518273 | C96: 19.53769414 | D96: 22.78967618 | E96: 25.15575117 | F96: 26.46679493 | G96: 27.88128037 | H96: 27.399014 | I96: 88.08629985 | J96: 88.04176103 | K96: 88.89271569 | L96: 91.42203767 | M96: 93.06608464 | N96: 94.61084435 | O96: 94.0542709 | P96: 67.98578945 | Q96: 69.74283501 | R96: 72.198904 | S96: 74.94727532 | T96: 75.98393719 | U96: 77.36554446 | V96: 76.59166265
A97: Хабаровский край | B97: 28.90520004 | C97: 32.70625942 | D97: 33.55338343 | E97: 31.57672998 | F97: 30.91569448 | G97: 34.56348453 | H97: 34.62480037 | I97: 85.18794142 | J97: 84.51193181 | K97: 86.7250448 | L97: 88.99668036 | M97: 90.5485328 | N97: 94.07911927 | O97: 96.72577949 | P97: 70.97277314 | Q97: 72.70216145 | R97: 74.65556273 | S97: 75.96862577 | T97: 76.44406393 | U97: 79.85441288 | V97: 81.90026937
A98: Амурская область | B98: 24.24077689 | C98: 23.78489758 | D98: 23.75976288 | E98: 25.53230713 | F98: 27.61653051 | G98: 27.3589482 | H98: 27.90927022 | I98: 77.59118939 | J98: 79.82187522 | K98: 79.23525252 | L98: 81.29238545 | M98: 80.83908715 | N98: 82.06639869 | O98: 82.6770659 | P98: 63.88474054 | Q98: 65.69951588 | R98: 65.88551605 | S98: 68.17487907 | T98: 68.29344657 | U98: 69.09440991 | V98: 69.40840114
A99: Магаданская область | B99: 43.53305075 | C99: 45.70187659 | D99: 47.42841994 | E99: 45.34117977 | F99: 44.04221787 | G99: 42.08434752 | H99: 44.69752377 | I99: 92.49720045 | J99: 94.81363768 | K99: 94.70676692 | L99: 93.31757289 | M99: 96.7796899 | N99: 96.29103815 | O99: 95.08381993 | P99: 82.393957 | Q99: 84.83078163 | R99: 86.56604581 | S99: 84.4611248 | T99: 86.14227739 | U99: 84.77560129 | V99: 84.50593917
A100: Сахалинская область | B100: 29.70262661 | C100: 31.63769365 | D100: 34.01214966 | E100: 36.62088954 | F100: 34.83263598 | G100: 34.10707268 | H100: 32.94797688 | I100: 115.7145542 | J100: 109.251891 | K100: 105.1845306 | L100: 104.3944402 | M100: 102.2465636 | N100: 106.2825737 | O100: 108.525618 | P100: 86.93302959 | Q100: 87.55945954 | R100: 86.95980703 | S100: 88.26193172 | T100: 87.98212679 | U100: 88.43184282 | V100: 87.84914758
A101: Еврейская автономная область | B101: 27.56712872 | C101: 34.15191692 | D101: 30.99194969 | E101: 29.87606964 | F101: 30.54341037 | G101: 33.14764398 | H101: 31.65276377 | I101: 94.30740038 | J101: 88.44118355 | K101: 90.01852996 | L101: 85.46289212 | M101: 88.28232699 | N101: 88.98279953 | O101: 88.86978271 | P101: 76.27323196 | Q101: 75.66758173 | R101: 75.88352199 | S101: 72.64525442 | T101: 74.47342995 | U101: 76.05985037 | V101: 75.07962658
A102: Чукотский автономный округ | B102: 43.11821312 | C102: 42.61767213 | D102: 44.47620992 | E102: 41.4865461 | F102: 46.91055097 | G102: 44.13426388 | H102: 40.77277322 | I102: 103.5751475 | J102: 104.3917741 | K102: 102.799433 | L102: 102.7213353 | M102: 101.0277884 | N102: 101.616082 | O102: 104.0824916 | P102: 89.0921886 | Q102: 89.74358974 | R102: 90.31374502 | S102: 89.84151728 | T102: 90.84754942 | U102: 90.08057794 | V102: 89.24325892
A105: 1) Значение показателя может быть более 100%, т.к. при его расчете в соответствии с международной методологией в число воспитанников, посещающих организации, осуществляющие образовательную деятельность по образовательным программам дошкольного образования, присмотр и уход за детьми, включаются дети в возрасте 7 лет и старше.

Sheet 7
A1: К содержанию
A3: Охват детей дошкольным образованием с разбивкой по возрастам по городской местности (процент)
B4: 2019 | C4: 2020 | D4: 2021 | E4: 2022 | F4: 2023 | G4: 2024 | H4: 2019 | I4: 2020 | J4: 2021 | K4: 2022 | L4: 2023 | M4: 2024 | N4: 2019 | O4: 2020 | P4: 2021 | Q4: 2022 | R4: 2023 | S4: 2024
B5: чистый | H5: валовой 1)
B6: до 3-х лет | H6: 3-6 лет | N6: 1-6 лет
A7: Российская Федерация | B7: 25.38304801 | C7: 26.85437885 | D7: 28.69037039 | E7: 30.00460823 | F7: 31.41862189 | G7: 31.48585239 | H7: 92.88463698 | I7: 92.79789601 | J7: 94.16776753 | K7: 94.93749348 | L7: 95.74754122 | M7: 95.8604172 | N7: 75.32794356 | O7: 76.48890385 | P7: 78.54988384 | Q7: 79.10182516 | R7: 80.00826688 | S7: 80.20907933
A8: Центральный федеральный округ | B8: 23.57325924 | C8: 24.46918477 | D8: 24.59571348 | E8: 25.11905325 | F8: 26.06131578 | G8: 26.06549234 | H8: 86.5202343 | I8: 86.07271312 | J8: 87.6963214 | K8: 87.63221962 | L8: 87.86733341 | M8: 88.2641203 | N8: 69.88046947 | O8: 70.47752751 | P8: 71.95872827 | Q8: 71.85178205 | R8: 72.23470464 | S8: 72.45508076
A9: Белгородская область | B9: 30.11288261 | C9: 36.96100159 | D9: 38.33749966 | E9: 35.68180657 | F9: 41.39495759 | G9: 38.76063803 | H9: 98.80932452 | I9: 99.99137504 | J9: 99.64679415 | K9: 100.388897 | L9: 103.5751503 | M9: 98.2238263 | N9: 81.71065407 | O9: 85.74870331 | P9: 86.71671494 | Q9: 85.67517932 | R9: 89.66560779 | S9: 85.05072508
A10: Брянская область | B10: 33.34819373 | C10: 34.42408377 | D10: 35.06837892 | E10: 35.63791494 | F10: 37.50637671 | G10: 38.52322621 | H10: 105.9848146 | I10: 103.6505937 | J10: 101.5886014 | K10: 103.1730058 | L10: 104.9337024 | M10: 106.078438 | N10: 87.6895221 | O10: 87.12809448 | P10: 86.63297487 | Q10: 87.48946925 | R10: 89.59703947 | S10: 90.82803779
A11: Владимирская область | B11: 43.99224468 | C11: 45.9402366 | D11: 46.96655815 | E11: 48.37692987 | F11: 48.93987073 | G11: 49.3520083 | H11: 102.2742354 | I11: 101.7842426 | J11: 104.1989567 | K11: 105.4242624 | L11: 109.3676753 | M11: 110.647977 | N11: 89.5447618 | O11: 90.53661272 | P11: 93.68158188 | Q11: 94.70539022 | R11: 97.60391845 | S11: 98.8365222
A12: Воронежская область | B12: 25.61183836 | C12: 26.94675756 | D12: 27.37550877 | E12: 30.46143353 | F12: 32.81921829 | G12: 33.54932031 | H12: 100.8452957 | I12: 99.1715861 | J12: 100.6347497 | K12: 101.422687 | L12: 103.3830275 | M12: 103.5479158 | N12: 80.6418348 | O12: 80.82739168 | P12: 82.69954876 | Q12: 83.84510826 | R12: 85.921985 | S12: 86.74225905
A13: Ивановская область | B13: 40.79103845 | C13: 42.89625465 | D13: 44.26344642 | E13: 46.39865997 | F13: 45.87377165 | G13: 45.76244797 | H13: 111.2067992 | I13: 111.3003641 | J13: 112.3030527 | K13: 112.1920893 | L13: 114.6875925 | M13: 113.7876449 | N13: 94.59405704 | O13: 96.50966489 | P13: 98.49761899 | Q13: 98.96086402 | R13: 99.30414165 | S13: 98.00732999
A14: Калужская область | B14: 27.77038378 | C14: 29.15115935 | D14: 29.14709819 | E14: 33.15598609 | F14: 33.93004115 | G14: 34.90394193 | H14: 102.6290166 | I14: 101.7884077 | J14: 99.85140765 | K14: 102.028169 | L14: 103.3207661 | M14: 105.2485128 | N14: 82.15683002 | O14: 83.7954593 | P14: 83.31264205 | Q14: 85.5174062 | R14: 86.69779287 | S14: 88.26099621
A15: Костромская область | B15: 52.7059977 | C15: 54.11118275 | D15: 47.35081852 | E15: 46.7374293 | F15: 50.44534283 | G15: 48.31750339 | H15: 100.8546632 | I15: 102.2359464 | J15: 108.4679324 | K15: 107.6550881 | L15: 106.3505315 | M15: 105.531712 | N15: 92.46622253 | O15: 94.415437 | P15: 96.62871557 | Q15: 95.31859084 | R15: 95.76444654 | S15: 94.11468813
A16: Курская область | B16: 18.98434914 | C16: 18.53103564 | D16: 19.5794131 | E16: 21.2651262 | F16: 21.74025355 | G16: 21.19182915 | H16: 91.63801738 | I16: 89.68946845 | J16: 87.48953129 | K16: 89.05289053 | L16: 90.1759934 | M16: 87.8915926 | N16: 72.25837229 | O16: 71.44607359 | P16: 70.6503879 | Q16: 71.60297833 | R16: 72.41421093 | S16: 70.77676156
A17: Липецкая область | B17: 27.89365134 | C17: 32.95443691 | D17: 33.71404004 | E17: 32.72945531 | F17: 35.08790669 | G17: 37.71467208 | H17: 100.1078075 | I17: 100.5942936 | J17: 102.0794007 | K17: 107.0746443 | L17: 109.1375475 | M17: 112.0759942 | N17: 81.35744276 | O17: 84.69683574 | P17: 86.71036691 | Q17: 89.36056384 | R17: 91.80327869 | S17: 95.05297451
A18: Московская область | B18: 16.99291708 | C18: 18.02751926 | D18: 20.86069302 | E18: 22.15816818 | F18: 24.89212012 | G18: 26.4363354 | H18: 84.8701028 | I18: 84.23930054 | J18: 86.95823775 | K18: 91.04087332 | L18: 92.78143198 | M18: 98.04010185 | N18: 65.64415513 | O18: 67.30673127 | P18: 70.34294327 | Q18: 73.07597474 | R18: 75.94784993 | S18: 79.83159772
A19: Орловская область | B19: 32.48515574 | C19: 31.7605935 | D19: 34.64817223 | E19: 39.06709527 | F19: 40.07408655 | G19: 39.87101369 | H19: 121.5446163 | I19: 118.5815035 | J19: 118.0029868 | K19: 120.1232962 | L19: 120.9773318 | M19: 122.0994109 | N19: 98.10877921 | O19: 96.90439845 | P19: 98.38206917 | Q19: 100.8333333 | R19: 102.0135117 | S19: 103.488041
A20: Рязанская область | B20: 17.88904265 | C20: 18.12435727 | D20: 20.73391211 | E20: 27.43807175 | F20: 32.06458306 | G20: 34.8754116 | H20: 104.458064 | I20: 103.4802189 | J20: 106.0695957 | K20: 106.0145156 | L20: 108.2397645 | M20: 110.2534984 | N20: 80.49410751 | O20: 80.57568479 | P20: 83.71228129 | Q20: 86.34116611 | R20: 90.30600904 | S20: 93.47101932
A21: Смоленская область | B21: 28.12935439 | C21: 30.27731281 | D21: 33.17501506 | E21: 35.78896798 | F21: 38.52863206 | G21: 39.44407677 | H21: 104.7185766 | I21: 102.203705 | J21: 102.3075536 | K21: 103.8668605 | L21: 103.5999653 | M21: 106.804426 | N21: 84.71712846 | O21: 84.96481916 | P21: 86.85672361 | Q21: 88.67032936 | R21: 89.39716756 | S21: 92.49307763
A22: Тамбовская область | B22: 50.65749048 | C22: 58.27838029 | D22: 50.76708912 | E22: 48.84267999 | F22: 45.31263328 | G22: 40.67538188 | H22: 122.0954489 | I22: 119.3102552 | J22: 120.4852244 | K22: 124.5997522 | L22: 127.5099201 | M22: 134.2663524 | N22: 106.2147061 | O22: 108.0406395 | P22: 106.9108386 | Q22: 109.5613129 | R22: 107.8942434 | S22: 108.2522367
A23: Тверская область | B23: 28.14399192 | C23: 28.18245125 | D23: 30.40907769 | E23: 33.72364225 | F23: 37.25453809 | G23: 40.23156385 | H23: 104.4624477 | I23: 103.9372035 | J23: 105.12014 | K23: 109.8254505 | L23: 115.8851081 | M23: 118.5987106 | N23: 84.74700068 | O23: 85.61135903 | P23: 87.6017094 | Q23: 91.95343106 | R23: 97.47227757 | S23: 100.3447161
A24: Тульская область | B24: 33.22957789 | C24: 33.85619755 | D24: 34.69561981 | E24: 37.48133864 | F24: 39.66169269 | G24: 40.58622829 | H24: 102.5600709 | I24: 100.3332961 | J24: 100.7747263 | K24: 102.9202243 | L24: 105.9801034 | M24: 108.5311883 | N24: 85.46617207 | O24: 85.20259215 | P24: 86.1048256 | Q24: 88.31592098 | R24: 91.49172146 | S24: 93.23139955
A25: Ярославская область | B25: 34.92115378 | C25: 39.42106196 | D25: 40.600413 | E25: 43.76289522 | F25: 44.74696656 | G25: 45.36533375 | H25: 102.7727665 | I25: 102.6610531 | J25: 102.8486386 | K25: 102.8190485 | L25: 104.1777355 | M25: 106.0068388 | N25: 86.2957359 | O25: 88.81293981 | P25: 89.95004541 | Q25: 90.64169381 | R25: 91.91521925 | S25: 93.5015568
A26: г. Москва | B26: 19.46384956 | C26: 19.4538186 | D26: 17.87964876 | E26: 16.91272533 | F26: 16.32991193 | G26: 15.62509508 | H26: 68.49178117 | I26: 68.87168142 | J26: 71.12026109 | K26: 67.62987446 | L26: 65.75078204 | M26: 63.76609788 | N26: 55.61932973 | O26: 55.48744327 | P26: 56.55211721 | Q26: 53.8724873 | R26: 51.91224768 | S26: 50.35588028
A27: Северо-Западный федеральный округ | B27: 33.98073628 | C27: 35.39329588 | D27: 37.12090003 | E27: 38.28127756 | F27: 38.3996396 | G27: 37.89889927 | H27: 107.4961508 | I27: 107.6792987 | J27: 109.4561451 | K27: 111.377524 | L27: 111.7413509 | M27: 109.5542651 | N27: 88.98370252 | O27: 90.39203153 | P27: 93.05895715 | Q27: 94.14404288 | R27: 93.60042062 | S27: 91.96470922
A28: Республика Карелия | B28: 39.5286556 | C28: 40.2517105 | D28: 50.31370777 | E28: 52.72845496 | F28: 48.24037131 | G28: 40.77360713 | H28: 121.7940071 | I28: 123.6853933 | J28: 122.4249096 | K28: 125.1651857 | L28: 128.2756451 | M28: 130.3135193 | N28: 101.9513362 | O28: 104.2499731 | P28: 108.6608443 | Q28: 111.1587107 | R28: 109.4209162 | S28: 106.1043385
A29: Республика Коми | B29: 62.24203236 | C29: 64.13575236 | D29: 66.3145207 | E29: 66.36860043 | F29: 63.91930765 | G29: 60.16535462 | H29: 117.9040841 | I29: 117.7832198 | J29: 117.8035818 | K29: 119.4437765 | L29: 120.3690529 | M29: 121.8116575 | N29: 108.5612339 | O29: 109.7638566 | P29: 110.5909175 | Q29: 112.5264225 | R29: 111.461488 | S29: 109.7411174
A30: Архангельская область | B30: 39.36502032 | C30: 45.41447862 | D30: 52.92301463 | E30: 57.64161973 | F30: 58.86767465 | G30: 59.18818485 | H30: 116.0051779 | I30: 114.0596562 | J30: 112.3729668 | K30: 113.254363 | L30: 114.8784113 | M30: 115.7081457 | N30: 97.59739589 | O30: 99.29345266 | P30: 101.5324271 | Q30: 104.1115762 | R30: 105.2777778 | S30: 105.6129386
A31: Ненецкий автономный округ | B31: 39.16473318 | C31: 53.21160743 | D31: 57.84658691 | E31: 55.33568905 | F31: 55.10523569 | G31: 52.82051282 | H31: 119.0972222 | I31: 112.2807018 | J31: 116.7553191 | K31: 129.6847115 | L31: 132.526178 | M31: 129.2465753 | N31: 100.0708968 | O31: 101.2281355 | P31: 107.1903087 | Q31: 114.2011834 | R31: 116.7352538 | S31: 111.7209302
A32: Архангельская область (кроме Ненецкого автономного округа) | B32: 39.37473278 | C32: 45.02191506 | D32: 52.67504297 | E32: 57.76331493 | F32: 59.07771186 | G32: 59.56407669 | H32: 115.8450433 | I32: 114.1512945 | J32: 112.1428771 | K32: 112.4199396 | L32: 113.9823891 | M32: 114.998564 | N32: 97.47108126 | O32: 99.1944545 | P32: 101.239636 | Q32: 103.5913529 | R32: 104.6875368 | S32: 105.2827437
A33: Вологодская область | B33: 42.26773233 | C33: 44.41494631 | D33: 45.60234074 | E33: 47.73924981 | F33: 49.67993779 | G33: 50.48178018 | H33: 108.8138675 | I33: 107.5526383 | J33: 106.3716538 | K33: 108.9484303 | L33: 109.4813526 | M33: 109.5283455 | N33: 93.73101636 | O33: 94.66777179 | P33: 94.65156851 | Q33: 96.34470691 | R33: 97.37674133 | S33: 97.85330583
A34: Калининградская область | B34: 28.6792563 | C34: 31.23100129 | D34: 34.1712585 | E34: 36.48793065 | F34: 36.73235543 | G34: 37.66436978 | H34: 102.4712219 | I34: 103.2612445 | J34: 106.4183536 | K34: 105.8384987 | L34: 106.025578 | M34: 107.986575 | N34: 83.18814532 | O34: 85.48933067 | P34: 89.50731332 | Q34: 89.57282615 | R34: 89.63597617 | S34: 92.16142621
A35: Ленинградская область | B35: 35.19184762 | C35: 33.70078544 | D35: 33.661464 | E35: 34.18897986 | F35: 32.78965319 | G35: 32.97263182 | H35: 118.0184176 | I35: 115.4864411 | J35: 113.9790047 | K35: 119.1197769 | L35: 122.0353238 | M35: 118.2647601 | N35: 96.9944627 | O35: 95.02827348 | P35: 95.64430735 | Q35: 97.45149276 | R35: 96.47117901 | S35: 94.99035168
A36: Мурманская область | B36: 46.88594275 | C36: 45.84217421 | D36: 46.33302042 | E36: 47.29721343 | F36: 46.15536234 | G36: 46.77007658 | H36: 104.249465 | I36: 104.7162321 | J36: 105.2287145 | K36: 103.7736523 | L36: 103.7839278 | M36: 103.2581151 | N36: 92.26468446 | O36: 92.63276075 | P36: 93.26533993 | Q36: 92.24348176 | R36: 92.05820759 | S36: 91.92729747
A37: Новгородская область | B37: 50.00582004 | C37: 48.53016578 | D37: 50.17207702 | E37: 49.07453232 | F37: 54.51174289 | G37: 55.55889875 | H37: 107.0129281 | I37: 103.7492543 | J37: 105.4560955 | K37: 106.4927028 | L37: 106.2190612 | M37: 108.3973723 | N37: 95.11067482 | O37: 93.20877817 | P37: 95.5935718 | Q37: 95.75231828 | R37: 97.4744167 | S37: 99.23850002
A38: Псковская область | B38: 27.29351124 | C38: 30.63452761 | D38: 32.13567565 | E38: 35.95004753 | F38: 42.45585046 | G38: 42.91696533 | H38: 113.60004 | I38: 113.4620231 | J38: 110.3659478 | K38: 112.1891516 | L38: 112.4227782 | M38: 110.6704798 | N38: 90.24026627 | O38: 92.41706161 | P38: 92.359951 | Q38: 93.64729932 | R38: 95.90226846 | S38: 95.98080927
A39: г.Санкт-Петербург | B39: 26.33538346 | C39: 27.95552717 | D39: 29.00927773 | E39: 29.73582672 | F39: 29.84464003 | G39: 29.39167347 | H39: 101.8932287 | I39: 103.4415731 | J39: 107.8994622 | K39: 110.0953137 | L39: 109.5828258 | M39: 104.8913477 | N39: 81.38661144 | O39: 83.8636357 | P39: 88.04275278 | Q39: 89.07391058 | R39: 87.8219045 | S39: 84.58667769
A40: Южный федеральный округ | B40: 20.23109782 | C40: 20.51703652 | D40: 22.39003968 | E40: 23.6676892 | F40: 25.26391304 | G40: 25.08469505 | H40: 86.41351089 | I40: 85.04856593 | J40: 87.4521263 | K40: 87.3657204 | L40: 88.0703137 | M40: 89.07087265 | N40: 68.38955057 | O40: 68.27700281 | P40: 71.00913378 | Q40: 70.89553634 | R40: 72.321735 | S40: 73.3192435
A41: Республика Адыгея(Адыгея) | B41: 36.96422885 | C41: 34.18722191 | D41: 35.44993663 | E41: 32.30221263 | F41: 34.37721931 | G41: 36.3054919 | H41: 90.03607891 | I41: 91.70415555 | J41: 90.20919858 | K41: 96.3107928 | L41: 94.81475069 | M41: 91.91481841 | N41: 77.83688887 | O41: 79.02252398 | P41: 78.25665338 | Q41: 78.96983654 | R41: 79.97384533 | S41: 79.60833074
A42: Республика Калмыкия | B42: 28.62582596 | C42: 11.9124424 | D42: 35.97196373 | E42: 31.86899963 | F42: 34.01751863 | G42: 35.66784321 | H42: 98.82858258 | I42: 89.48936747 | J42: 89.18725896 | K42: 96.97199092 | L42: 97.84332382 | M42: 98.669695 | N42: 81.53492647 | O42: 67.86054487 | P42: 77.47153984 | Q42: 80.48397234 | R42: 82.57073386 | S42: 83.88787603
A43: Республика Крым | B43: 11.20194219 | C43: 12.68886338 | D43: 14.46498976 | E43: 15.7108358 | F43: 17.89249008 | G43: 18.67635133 | H43: 89.69586832 | I43: 85.11367966 | J43: 88.07437487 | K43: 87.93399251 | L43: 88.5160978 | M43: 89.52634245 | N43: 66.10601572 | O43: 64.11230243 | P43: 68.05425772 | Q43: 68.46677399 | R43: 69.53325297 | S43: 70.76443891
A44: Краснодарский край | B44: 15.49329572 | C44: 14.85860944 | D44: 16.44986903 | E44: 18.1704533 | F44: 19.2870972 | G44: 19.82848935 | H44: 82.98776279 | I44: 80.62817991 | J44: 83.50989776 | K44: 81.85009644 | L44: 81.55277396 | M44: 82.12972551 | N44: 63.65681034 | O44: 62.54906342 | P44: 65.08475474 | Q44: 64.24842477 | R44: 65.44574954 | S44: 66.44564671
A45: Астраханская область | B45: 21.98007707 | C45: 21.93970852 | D45: 23.71003271 | E45: 24.09902989 | F45: 25.56658136 | G45: 24.08924116 | H45: 83.00169797 | I45: 83.42696629 | J45: 84.98245003 | K45: 84.49644011 | L45: 87.51538777 | M45: 88.12508904 | N45: 67.32671423 | O45: 67.9494174 | P45: 69.98724962 | Q45: 68.98627498 | R45: 71.46708286 | S45: 71.68953176
A46: Волгоградская область | B46: 33.0590087 | C46: 35.27873916 | D46: 36.40075603 | E46: 38.48289809 | F46: 39.25499613 | G46: 39.87729786 | H46: 92.22104933 | I46: 91.92612636 | J46: 93.47213239 | K46: 93.32850369 | L46: 95.63146848 | M46: 96.18542883 | N46: 77.91202659 | O46: 79.28772416 | P46: 81.63195148 | Q46: 81.77161313 | R46: 83.47516205 | S46: 84.50983181
A47: Ростовская область | B47: 21.47840172 | C47: 22.32778679 | D47: 24.11906244 | E47: 25.39443478 | F47: 27.27161806 | G47: 25.11868452 | H47: 88.14644667 | I47: 87.78201259 | J47: 90.33586301 | K47: 92.59884302 | L47: 93.78072141 | M47: 96.01820034 | N47: 70.31801393 | O47: 71.21650535 | P47: 74.21894999 | Q47: 75.60171037 | R47: 77.06485939 | S47: 78.01027164
A48: г. Севастополь | B48: 11.53155793 | C48: 16.59559756 | D48: 18.69195348 | E48: 18.69861341 | F48: 23.21253242 | G48: 24.30606943 | H48: 75.12825949 | I48: 77.1531408 | J48: 81.82443766 | K48: 77.78231663 | L48: 78.32493214 | M48: 81.03877255 | N48: 57.49322049 | O48: 61.57369241 | P48: 65.77815993 | Q48: 62.5430438 | R48: 64.69151096 | S48: 67.77976323
A49: Северо-Кавказский федеральный округ | B49: 15.17594622 | C49: 15.86889085 | D49: 17.32415025 | E49: 17.86235195 | F49: 18.66301788 | G49: 18.79653804 | H49: 77.79893502 | I49: 77.18238636 | J49: 77.90244422 | K49: 80.66908773 | L49: 81.4651985 | M49: 82.95969317 | N49: 59.85564253 | O49: 60.10706128 | P49: 61.27387477 | Q49: 63.48062186 | R49: 64.16097363 | S49: 65.28237503
A50: Республика Дагестан | B50: 7.650504287 | C50: 7.633266942 | D50: 9.093093093 | E50: 9.515108008 | F50: 11.36928401 | G50: 11.40245209 | H50: 60.2841654 | I50: 60.51160766 | J50: 61.67683531 | K50: 65.74117933 | L50: 70.99796074 | M50: 76.02424834 | N50: 44.36034158 | O50: 44.8358344 | P50: 46.87229561 | Q50: 50.73938195 | R50: 55.29182631 | S50: 58.34334306
A51: Республика Ингушетия | B51: 3.353772995 | C51: 6.359753204 | D51: 9.130543445 | E51: 11.6806122 | F51: 11.08771327 | G51: 13.05656099 | H51: 45.52957359 | I51: 49.33354832 | J51: 62.12662899 | K51: 64.08538393 | L51: 67.34277554 | M51: 73.42794371 | N51: 32.80885781 | O51: 37.28941035 | P51: 46.11678775 | Q51: 47.8051266 | R51: 50.4993316 | S51: 55.8339039
A52: Кабардино-Балкарская Республика | B52: 32.00749967 | C52: 33.27031706 | D52: 30.50624741 | E52: 29.73358109 | F52: 29.43754733 | G52: 32.96911116 | H52: 114.8174518 | I52: 109.2250164 | J52: 111.8433416 | K52: 119.946254 | L52: 116.0011532 | M52: 112.5108938 | N52: 93.59634551 | O52: 90.84606719 | P52: 91.33731343 | Q52: 94.55233449 | R52: 91.37299035 | S52: 90.68341121
A53: Карачаево-Черкесская Республика | B53: 11.27127023 | C53: 8.726989889 | D53: 16.57431684 | E53: 15.53920181 | F53: 21.44629564 | G53: 23.06813187 | H53: 98.23215153 | I53: 93.03582149 | J53: 94.29242393 | K53: 97.31845972 | L53: 96.5185023 | M53: 97.7740113 | N53: 73.18967847 | O53: 67.85738867 | P53: 71.47237126 | Q53: 73.77751514 | R53: 76.52850927 | S53: 77.42812743
A54: Республика Северная Осетия-Алания | B54: 25.70262919 | C54: 25.20819827 | D54: 25.44155691 | E54: 26.82385188 | F54: 26.2607181 | G54: 24.90165084 | H54: 102.0991203 | I54: 99.38025875 | J54: 98.19887783 | K54: 106.4270484 | L54: 106.7259291 | M54: 108.5860532 | N54: 81.81267968 | O54: 79.71247011 | P54: 79.65562914 | Q54: 86.09753525 | R54: 83.01713478 | S54: 82.54007749
A55: Чеченская Республика | B55: 12.17009523 | C55: 12.16288136 | D55: 12.5283887 | E55: 11.84554947 | F55: 11.63364754 | G55: 11.75792375 | H55: 65.83205861 | I55: 67.84466487 | J55: 66.81193899 | K55: 67.52706732 | L55: 63.28222355 | M55: 62.6848785 | N55: 49.4985902 | O55: 50.58576031 | P55: 48.97068952 | Q55: 49.57711884 | R55: 47.09381171 | S55: 47.67936665
A56: Ставропольский край | B56: 20.94108404 | C56: 23.14157354 | D56: 26.18427247 | E56: 27.2 | F56: 28.15170796 | G56: 28.24908413 | H56: 89.37675886 | I56: 88.57803387 | J56: 87.86390363 | K56: 89.2 | L56: 91.74722322 | M56: 93.1931596 | N56: 70.51051978 | O56: 71.86434506 | P56: 73.34748955 | Q56: 74.2 | R56: 75.9146902 | S56: 76.85056327
A57: Приволжский федеральный округ | B57: 27.19924924 | C57: 29.03836961 | D57: 31.95206483 | E57: 34.65292203 | F57: 37.3847028 | G57: 37.79765385 | H57: 100.1951632 | I57: 100.3769484 | J57: 101.1181129 | K57: 102.6318446 | L57: 104.4700852 | M57: 104.5103051 | N57: 81.62214626 | O57: 83.23743727 | P57: 85.48570527 | Q57: 86.85310948 | R57: 88.9276874 | S57: 89.26383052
A58: Республика Башкортостан | B58: 29.62211978 | C58: 33.34871805 | D58: 37.00204998 | E58: 37.15061279 | F58: 38.2073971 | G58: 39.0016308 | H58: 95.02782053 | I58: 97.06047955 | J58: 100.3124886 | K58: 104.3048354 | L58: 109.6604555 | M58: 107.7341418 | N58: 79.61331352 | O58: 83.2047356 | P58: 87.19565449 | Q58: 89.17501137 | R58: 93.03273517 | S58: 91.98391833
A59: Республика Марий Эл | B59: 16.18860951 | C59: 16.79600298 | D59: 23.26205182 | E59: 30.67693829 | F59: 35.47760464 | G59: 37.33374527 | H59: 98.3796466 | I59: 100.4537891 | J59: 100.729146 | K59: 105.4809265 | L59: 105.35832 | M59: 106.0461178 | N59: 76.61174128 | O59: 78.92095358 | P59: 81.68925488 | Q59: 87.01028404 | R59: 88.69591306 | S59: 90.40308472
A60: Республика Мордовия | B60: 41.62353289 | C60: 50.9559199 | D60: 37.27585582 | E60: 39.65856445 | F60: 40.69544122 | G60: 41.03651524 | H60: 109.1426134 | I60: 102.9738866 | J60: 108.9561301 | K60: 111.4072955 | L60: 112.1235071 | M60: 112.0324114 | N60: 93.43056016 | O60: 93.38497182 | P60: 92.67931346 | Q60: 94.63005339 | R60: 95.60037793 | S60: 96.15717875
A61: Республика Татарстан | B61: 21.04106211 | C61: 19.59298723 | D61: 23.01036697 | E61: 25.93671688 | F61: 30.61972921 | G61: 31.24433678 | H61: 94.55962656 | I61: 95.32227146 | J61: 96.632434 | K61: 97.66220301 | L61: 98.9917032 | M61: 99.62683889 | N61: 74.80697566 | O61: 75.64721701 | P61: 78.53647557 | Q61: 79.43335997 | R61: 82.10423565 | S61: 83.17745645
A62: Удмуртская Республика | B62: 33.8192091 | C62: 36.94709454 | D62: 39.85161427 | E62: 44.11302983 | F62: 47.23708428 | G62: 46.05909626 | H62: 110.5988488 | I62: 109.9543449 | J62: 109.6722959 | K62: 110.813774 | L62: 111.4046839 | M62: 111.5706848 | N62: 92.00626135 | O62: 93.96345533 | P62: 95.26774961 | Q62: 96.16668787 | R62: 97.46498014 | S62: 97.69422246
A63: Чувашская Республика | B63: 37.8649981 | C63: 41.24834759 | D63: 42.04877763 | E63: 46.28985841 | F63: 47.91867877 | G63: 48.6873758 | H63: 106.1122616 | I63: 106.0070281 | J63: 107.0765742 | K63: 107.9553402 | L63: 110.0740335 | M63: 112.4501079 | N63: 89.61808738 | O63: 92.24900239 | P63: 93.82684943 | Q63: 95.25801953 | R63: 97.0704564 | S63: 99.21207041
A64: Пермский край | B64: 29.99162334 | C64: 34.71014322 | D64: 44.87899236 | E64: 50.87348302 | F64: 54.30556975 | G64: 53.54520889 | H64: 102.5269031 | I64: 102.7215996 | J64: 102.9441113 | K64: 103.8122699 | L64: 106.059261 | M64: 106.6382814 | N64: 84.57525378 | O64: 87.15104504 | P64: 92.30999316 | Q64: 94.9496434 | R64: 97.11148649 | S64: 96.84542303
A65: Кировская область | B65: 22.87565128 | C65: 23.99865105 | D65: 31.59713456 | E65: 32.63956461 | F65: 38.73898259 | G65: 41.09742157 | H65: 115.7767613 | I65: 115.5146564 | J65: 115.1505568 | K65: 117.8834661 | L65: 120.6661283 | M65: 125.6188544 | N65: 90.69399442 | O65: 92.64844783 | P65: 96.06738765 | Q65: 99.30774188 | R65: 102.2511587 | S65: 104.3415371
A66: Нижегородская область | B66: 31.24090183 | C66: 32.72534013 | D66: 34.56878924 | E66: 38.01698882 | F66: 39.53419992 | G66: 40.27024855 | H66: 103.577494 | I66: 102.4270527 | J66: 101.8505062 | K66: 102.8795365 | L66: 103.6324096 | M66: 103.999706 | N66: 85.11275392 | O66: 85.94225399 | P66: 86.76948535 | Q66: 88.38133069 | R66: 89.5045337 | S66: 90.07951901
A67: Оренбургская область | B67: 35.2626191 | C67: 38.28019334 | D67: 37.51450563 | E67: 37.61688888 | F67: 37.42203742 | G67: 36.51362851 | H67: 120.9425225 | I67: 121.5148769 | J67: 116.6290503 | K67: 116.9200084 | L67: 117.375472 | M67: 115.1926964 | N67: 99.94475493 | O67: 101.3256745 | P67: 97.65070493 | Q67: 97.37273739 | R67: 97.41545743 | S67: 95.57307166
A68: Пензенская область | B68: 35.84016536 | C68: 35.16313214 | D68: 36.77942201 | E68: 38.90381613 | F68: 38.07643895 | G68: 39.53688953 | H68: 103.7017071 | I68: 105.7514513 | J68: 111.2278265 | K68: 108.472888 | L68: 108.1806547 | M68: 106.1615701 | N68: 88.37610603 | O68: 89.42119221 | P68: 93.88791774 | Q68: 92.12593243 | R68: 91.61488482 | S68: 91.26189471
A69: Самарская область | B69: 19.36326727 | C69: 21.84251346 | D69: 23.83057935 | E69: 26.37541607 | F69: 29.37378221 | G69: 29.37299244 | H69: 90.74442132 | I69: 90.1888538 | J69: 92.2972402 | K69: 93.14718079 | L69: 94.55145354 | M69: 95.30659232 | N69: 71.56363119 | O69: 72.85125728 | P69: 75.89705222 | Q69: 76.94313329 | R69: 78.80745411 | S69: 79.62911521
A70: Саратовская область | B70: 20.803394 | C70: 21.27552938 | D70: 21.34071435 | E70: 24.39601738 | F70: 27.04054664 | G70: 28.12146765 | H70: 93.01669972 | I70: 92.42314802 | J70: 91.11931746 | K70: 93.76079835 | L70: 95.81518709 | M70: 95.22365665 | N70: 73.83872728 | O70: 74.21590939 | P70: 74.17288437 | Q70: 75.77324104 | R70: 78.09972691 | S70: 79.34530285
A71: Ульяновская область | B71: 29.41064976 | C71: 29.56924538 | D71: 32.35842066 | E71: 31.37790506 | F71: 34.62731721 | G71: 33.08071892 | H71: 99.20290325 | I71: 99.81530749 | J71: 98.10931045 | K71: 99.18768809 | L71: 100.4997475 | M71: 99.35686803 | N71: 81.50526586 | O71: 82.5971029 | P71: 83.12611012 | Q71: 82.90888216 | R71: 85.22951838 | S71: 83.7255097
A72: Уральский федеральный округ | B72: 31.37710479 | C72: 34.16743551 | D72: 37.12879922 | E72: 39.0941525 | F72: 40.22497759 | G72: 40.15518036 | H72: 97.58627124 | I72: 98.08580649 | J72: 99.08550922 | K72: 99.61675595 | L72: 100.0247853 | M72: 99.50196604 | N72: 81.34097328 | O72: 83.38059734 | P72: 85.62932047 | Q72: 86.07656977 | R72: 86.55084423 | S72: 86.35006705
A73: Курганская область | B73: 20.31004222 | C73: 25.50776251 | D73: 29.23983542 | E73: 35.77961187 | F73: 36.00479106 | G73: 39.78025482 | H73: 102.9354963 | I73: 99.92336046 | J73: 98.19888575 | K73: 99.69908472 | L73: 100.5704455 | M73: 99.3761098 | N73: 80.68637647 | O73: 81.65188035 | P73: 82.35553839 | Q73: 84.68582907 | R73: 85.56014472 | S73: 86.6202974
A74: Свердловская область | B74: 23.94259684 | C74: 25.51889859 | D74: 30.5515833 | E74: 34.46829237 | F74: 36.51585732 | G74: 36.5507042 | H74: 95.77538289 | I74: 95.47350814 | J74: 97.20403696 | K74: 97.77535574 | L74: 98.58398174 | M74: 98.36809963 | N74: 76.956675 | O74: 78.01625448 | P74: 81.6779997 | Q74: 83.15045885 | R74: 84.34784437 | S74: 84.18565132
A75: Тюменская область | B75: 30.14179468 | C75: 32.99030709 | D75: 37.2282398 | E75: 38.66255723 | F75: 40.06292016 | G75: 40.10800237 | H75: 97.96607499 | I75: 99.29679154 | J75: 99.69361314 | K75: 98.9985861 | L75: 98.27099142 | M75: 97.09571781 | N75: 80.78514283 | O75: 83.3717436 | P75: 85.69112045 | Q75: 85.09039007 | R75: 84.91442318 | S75: 84.55862387
A76: Ханты-Мансийский автономный округ - Югра | B76: 32.21155904 | C76: 32.6444869 | D76: 36.02979698 | E76: 36.86064348 | F76: 36.9942793 | G76: 36.57099535 | H76: 89.48086344 | I76: 90.64411622 | J76: 89.7826016 | K76: 89.90943483 | L76: 88.67481036 | M76: 87.72077994 | N76: 76.10498011 | O76: 77.39792114 | P76: 78.12952728 | Q76: 78.16931775 | R76: 77.37229287 | S76: 76.55320303
A77: Ямало-Ненецкий автономный округ | B77: 49.07959912 | C77: 49.77586473 | D77: 47.36877706 | E77: 45.36629759 | F77: 43.84977795 | G77: 44.85658784 | H77: 110.5364061 | I77: 109.1763155 | J77: 112.3141165 | K77: 116.3089934 | L77: 115.5429552 | M77: 108.1146249 | N77: 98.02407193 | O77: 97.46105692 | P77: 100.252419 | Q77: 98.94852003 | R77: 96.1362309 | S77: 93.17354556
A78: Тюменская область без автономий | B78: 20.78953497 | C78: 27.63089298 | D78: 35.03327271 | E78: 38.45188561 | F78: 42.78119404 | G78: 43.20618096 | H78: 106.2420127 | I78: 108.4119437 | J78: 109.2427582 | K78: 105.6527917 | L78: 105.7798211 | M78: 106.3558282 | N78: 81.37921654 | O78: 86.90295859 | P78: 91.13550571 | Q78: 89.69600466 | R78: 91.32952701 | S78: 92.70949481
A79: Челябинская область | B79: 45.55530937 | C79: 49.58870946 | D79: 47.58907279 | E79: 46.62062292 | F79: 46.20237795 | G79: 45.18445059 | H79: 98.56856863 | I79: 99.78129799 | J79: 101.0626805 | K79: 102.9795918 | L79: 104.392143 | M79: 104.5419451 | N79: 88.09962806 | O79: 91.05546645 | P79: 91.62359914 | Q79: 91.71554212 | R79: 92.09493574 | S79: 91.87402991
A80: Сибирский федеральный округ | B80: 24.06187916 | C80: 26.55369687 | D80: 30.20967072 | E80: 31.72047942 | F80: 33.37244888 | G80: 34.14672094 | H80: 91.85111396 | I80: 92.48157059 | J80: 94.10924631 | K80: 95.30897337 | L80: 96.83616393 | M80: 97.3209572 | N80: 74.37293305 | O80: 76.48949195 | P80: 79.43378963 | Q80: 80.23075737 | R80: 81.75188996 | S80: 82.50977638
A81: Республика Алтай | B81: 16.85033772 | C81: 25.91392176 | D81: 34.21867362 | E81: 27.00548082 | F81: 33.45553756 | G81: 35.76648763 | H81: 99.43902439 | I81: 100.2033554 | J81: 98.6957679 | K81: 106.4091559 | L81: 105.9823678 | M81: 110.8834397 | N81: 76.83848797 | O81: 81.33669609 | P81: 84.18640183 | Q81: 87.19050542 | R81: 87.86885246 | S81: 91.15490376
A82: Республика Тыва | B82: 20.36438909 | C82: 19.03364632 | D82: 24.22558468 | E82: 26.23320492 | F82: 31.19629643 | G82: 32.60574531 | H82: 76.25809829 | I82: 81.19439202 | J82: 82.56913343 | K82: 88.19293376 | L82: 87.2117848 | M82: 86.57119137 | N82: 61.85261237 | O82: 65.18518519 | P82: 65.65267795 | Q82: 68.46910443 | R82: 72.70816414 | S82: 73.8027899
A83: Республика Хакасия | B83: 45.84057341 | C83: 46.9325556 | D83: 48.90680007 | E83: 43.0956722 | F83: 45.6477983 | G83: 44.83176073 | H83: 94.27007959 | I83: 94.93306938 | J83: 96.27976937 | K83: 100.7295693 | L83: 99.1985492 | M83: 103.188091 | N83: 84.98282559 | O83: 86.38149428 | P83: 88.30616073 | Q83: 88.65923727 | R83: 89.32666863 | S83: 90.66928081
A84: Алтайский край | B84: 19.67083815 | C84: 24.58709299 | D84: 29.16328393 | E84: 29.78501545 | F84: 30.99140724 | G84: 31.6389393 | H84: 92.2413039 | I84: 93.69357087 | J84: 96.22614251 | K84: 99.27357794 | L84: 99.96523754 | M84: 99.38049272 | N84: 73.25568152 | O84: 77.01962499 | P84: 81.03717334 | Q84: 82.435515 | R84: 83.12278308 | S84: 83.2636717
A85: Красноярский край | B85: 19.52876637 | C85: 22.07079255 | D85: 26.07122054 | E85: 28.32300936 | F85: 31.38704664 | G85: 33.01772758 | H85: 88.20490745 | I85: 88.92284062 | J85: 92.22855789 | K85: 94.02352298 | L85: 95.90447703 | M85: 96.98909559 | N85: 69.81241821 | O85: 72.15340333 | P85: 76.52207765 | Q85: 78.00429046 | R85: 80.34388379 | S85: 81.70849737
A86: Иркутская область | B86: 30.33405047 | C86: 32.12999174 | D86: 35.23302753 | E86: 38.14594709 | F86: 38.8161034 | G86: 40.20248148 | H86: 96.05909066 | I86: 95.86161074 | J86: 95.85359385 | K86: 96.92356756 | L86: 99.11501389 | M86: 99.65878918 | N86: 79.46066465 | O86: 80.89669533 | P86: 82.55718524 | Q86: 83.82257402 | R86: 85.23196657 | S86: 86.59117545
A87: Кемеровская область | B87: 31.24369535 | C87: 32.77709438 | D87: 35.13540128 | E87: 35.86204278 | F87: 36.24814794 | G87: 36.82982839 | H87: 89.81714238 | I87: 90.44305886 | J87: 90.70442992 | K87: 90.7160232 | L87: 92.94640821 | M87: 92.56394352 | N87: 76.38695942 | O87: 77.69774011 | P87: 79.06841902 | Q87: 78.8646697 | R87: 80.42162827 | S87: 80.51255873
A88: Новосибирская область | B88: 17.28860889 | C88: 20.03588747 | D88: 23.86633517 | E88: 25.24404684 | F88: 26.70733107 | G88: 26.87352031 | H88: 94.10262133 | I88: 94.67365204 | J88: 96.60437184 | K88: 96.53459893 | L88: 97.29905501 | M88: 97.15706958 | N88: 72.53782341 | O88: 74.80507974 | P88: 78.33618255 | Q88: 78.32538112 | R88: 79.13184054 | S88: 79.13639479
A89: Омская область | B89: 22.25785607 | C89: 26.50482668 | D89: 30.13678298 | E89: 32.53029625 | F89: 34.51556167 | G89: 35.24110008 | H89: 93.77849606 | I89: 94.1250703 | J89: 96.58059605 | K89: 98.51013399 | L89: 101.2203354 | M89: 102.3097749 | N89: 75.54972841 | O89: 78.04305865 | P89: 81.58758484 | Q89: 83.36006462 | R89: 85.34868602 | S89: 86.35438965
A90: Томская область | B90: 23.42068253 | C90: 24.73420213 | D90: 30.86291582 | E90: 33.43093643 | F90: 35.6604292 | G90: 35.13322121 | H90: 90.5982906 | I90: 90.74991066 | J90: 91.75917215 | K90: 90.28684529 | L90: 91.78939738 | M90: 93.87579378 | N90: 72.95429286 | O90: 74.71367741 | P90: 78.4799953 | Q90: 77.93316964 | R90: 79.53177731 | S90: 81.07940926
A91: Дальневосточный федеральный округ | B91: 25.0857681 | C91: 27.28357112 | D91: 29.39424523 | E91: 29.71513827 | F91: 31.95627538 | G91: 32.7536709 | H91: 92.22008202 | I91: 93.22285889 | J91: 94.84380856 | K91: 95.74523124 | L91: 97.81390875 | M91: 98.67090379 | N91: 74.8054038 | O91: 76.96149483 | P91: 79.03363677 | Q91: 79.30472341 | R91: 81.40155734 | S91: 82.39292589
A92: Республика Бурятия | B92: 20.6592318 | C92: 25.41770438 | D92: 28.03561028 | E92: 30.06878135 | F92: 33.9248493 | G92: 36.04356505 | H92: 85.78636837 | I92: 93.90831824 | J92: 96.81044601 | K92: 100.9469517 | L92: 101.6256561 | M92: 100.8048006 | N92: 68.94718987 | O92: 76.68156139 | P92: 79.91927137 | Q92: 82.55673455 | R92: 84.54461822 | S92: 86.01606888
A93: Республика Саха (Якутия) | B93: 21.5655743 | C93: 21.28233579 | D93: 27.42188363 | E93: 24.76265587 | F93: 27.05643804 | G93: 29.42107699 | H93: 88.90408915 | I93: 89.10322183 | J93: 94.51237458 | K93: 90.18557869 | L93: 91.04612778 | M93: 91.20031224 | N93: 71.63297592 | O93: 71.86876564 | P93: 77.37146051 | Q93: 72.5800501 | R93: 74.37410623 | S93: 75.8292556
A94: Забайкальский край | B94: 19.67163966 | C94: 23.42077554 | D94: 27.36919429 | E94: 29.16569405 | F94: 31.66801164 | G94: 32.00885337 | H94: 91.61964981 | I94: 92.9408773 | J94: 91.33611972 | K94: 95.53571429 | L94: 100.3129792 | M94: 103.5790933 | N94: 72.6549205 | O94: 75.63479396 | P94: 75.97451202 | Q94: 79.54339778 | R94: 82.89618074 | S94: 84.43608353
A95: Камчатский край | B95: 27.90575458 | C95: 28.0000911 | D95: 31.70865279 | E95: 31.97535725 | F95: 32.44750578 | G95: 34.56324179 | H95: 102.9783466 | I95: 102.1133683 | J95: 102.9256676 | K95: 103.9304066 | L95: 103.4121716 | M95: 103.0751378 | N95: 83.12158698 | O95: 83.68405881 | P95: 85.12723623 | Q95: 85.05535055 | R95: 84.94329043 | S95: 85.41625535
A96: Приморский край | B96: 18.57464795 | C96: 22.7460042 | D96: 25.56792293 | E96: 26.70166198 | F96: 28.57770035 | G96: 28.76224918 | H96: 91.89067088 | I96: 91.87143356 | J96: 94.23574444 | K96: 95.88902982 | L96: 97.81233207 | M96: 96.74411054 | N96: 71.84034384 | O96: 74.24420039 | P96: 77.15526927 | Q96: 77.88513697 | R96: 79.99591753 | S96: 79.42732765
A97: Хабаровский край | B97: 33.46764003 | C97: 34.22351409 | D97: 32.18731006 | E97: 31.72896988 | F97: 35.95510856 | G97: 36.52020341 | H97: 86.11902366 | I97: 88.14578476 | J97: 91.27649535 | K97: 92.87606654 | L97: 95.90626175 | M97: 98.78144142 | N97: 74.09300497 | O97: 75.92651954 | P97: 77.92674909 | Q97: 78.2470643 | R97: 81.77572133 | S97: 84.59286732
A98: Амурская область | B98: 26.88947074 | C98: 27.34559366 | D98: 28.94681592 | E98: 31.59392789 | F98: 31.27753842 | G98: 32.58890182 | H98: 97.62835923 | I98: 94.68383989 | J98: 94.01078732 | K98: 92.03631855 | L98: 93.49801613 | M98: 94.65949172 | N98: 78.79208608 | O98: 77.98344388 | P98: 78.39563656 | Q98: 77.70447433 | R98: 78.9091457 | S98: 79.92396642
A99: Магаданская область | B99: 46.44245395 | C99: 48.32876712 | D99: 45.96064091 | E99: 44.19038273 | F99: 42.5369721 | G99: 45.088 | H99: 96.26518674 | I99: 95.88125583 | J99: 94.66731898 | K99: 98.23726423 | L99: 98.06949807 | M99: 96.74844237 | N99: 86.11691023 | O99: 87.71561256 | P99: 85.76231884 | Q99: 87.2471633 | R99: 86.0926305 | S99: 85.77192039
A100: Сахалинская область | B100: 31.55357805 | C100: 34.18367347 | D100: 36.70584228 | E100: 34.02467607 | F100: 34.11091549 | G100: 33.0124278 | H100: 113.2965879 | I100: 108.0345551 | J100: 106.5259887 | K100: 103.0677932 | L100: 106.8537895 | M100: 109.9759036 | N100: 89.94952132 | O100: 89.03887875 | P100: 89.60670219 | Q100: 88.07077213 | R100: 88.65088169 | S100: 88.69383153
A101: Еврейская автономная область | B101: 37.48068368 | C101: 35.86565374 | D101: 32.82234355 | E101: 32.44139761 | F101: 36.83614472 | G101: 35.36892304 | H101: 97.95848344 | I101: 100.0880592 | J101: 91.6909621 | K101: 95.55643721 | L101: 95.47866695 | M101: 95.10022272 | N101: 83.81722989 | O101: 85.17830609 | P101: 78.31356369 | Q101: 80.27427622 | R101: 81.73887328 | S101: 80.96657775
A102: Чукотский автономный округ | B102: 40.08192847 | C102: 43.83245383 | D102: 38.56768559 | E102: 48.41025641 | F102: 47.19101124 | G102: 42.47321272 | H102: 110.9444444 | I102: 109.3714286 | J102: 108.9560753 | K102: 108.2980012 | L102: 109.3503339 | M102: 113.4280181 | N102: 93.22294956 | O102: 95.46375051 | P102: 92.86587852 | Q102: 95.92529711 | R102: 97.02329594 | S102: 96.55789003
A105: 1) Значение показателя может быть более 100% т.к. при его расчете в соответствии с международной методологией в число воспитанников, посещающих организации, осуществляющие образовательную деятельность по образовательным программам дошкольного образования, присмотр и уход за детьми, включаются дети в возрасте 7 лет и старше.

Sheet 8
A1: К содержанию
A3: Охват детей дошкольным образованием с разбивкой по возрастам по сельской местности (процент)
B4: 2019 | C4: 2020 | D4: 2021 | E4: 2022 | F4: 2023 | G4: 2024 | H4: 2019 | I4: 2020 | J4: 2021 | K4: 2022 | L4: 2023 | M4: 2024 | N4: 2019 | O4: 2020 | P4: 2021 | Q4: 2022 | R4: 2023 | S4: 2024
B5: чистый | H5: валовой1)
B6: до 3-х лет | H6: 3-6 лет | N6: 1-6 лет
A7: Российская Федерация | B7: 20.76229114 | C7: 20.47263722 | D7: 21.86738659 | E7: 22.9824466 | F7: 23.32896386 | G7: 23.75322577 | H7: 62.87282847 | I7: 64.68719967 | J7: 68.18368571 | K7: 69.62784588 | L7: 70.89595163 | M7: 71.60219627 | N7: 52.89472733 | O7: 54.20660512 | P7: 57.28139966 | Q7: 58.33774701 | R7: 59.19948162 | S7: 59.8457088
A8: Центральный федеральный округ | B8: 20.0411833 | C8: 20.05695369 | D8: 22.24374194 | E8: 22.61690974 | F8: 23.01476511 | G8: 23.10977814 | H8: 60.55713138 | I8: 63.29171948 | J8: 69.26654621 | K8: 72.66249078 | L8: 75.18689249 | M8: 74.46010119 | N8: 50.98639416 | O8: 53.1784188 | P8: 58.69589206 | Q8: 60.83464513 | R8: 62.5119232 | S8: 62.45226025
A9: Белгородская область | B9: 24.99859527 | C9: 23.79211101 | D9: 26.20252607 | E9: 24.973817 | F9: 24.367281 | G9: 25.51769181 | H9: 63.23307007 | I9: 64.28475185 | J9: 69.5219904 | K9: 71.08872696 | L9: 71.95234791 | M9: 71.4016074 | N9: 54.43997945 | O9: 55.41029117 | P9: 60.20615665 | Q9: 60.04080553 | R9: 60.60854589 | S9: 61.53065278
A10: Брянская область | B10: 14.24463232 | C10: 10.72866504 | D10: 12.02535782 | E10: 11.28458355 | F10: 13.85255486 | G10: 14.55584605 | H10: 42.10526316 | I10: 42.96394855 | J10: 44.2285163 | K10: 42.2927609 | L10: 43.36531115 | M10: 45.16578434 | N10: 34.88053438 | O10: 35.06683089 | P10: 36.47298573 | Q10: 34.73944048 | R10: 36.60889872 | S10: 38.27327429
A11: Владимирская область | B11: 30.0424827 | C11: 29.78901541 | D11: 30.70251518 | E11: 28.07788318 | F11: 31.02652019 | G11: 33.6687394 | H11: 61.2183755 | I11: 63.28393277 | J11: 65.34401876 | K11: 69.78764479 | L11: 71.32116004 | M11: 71.9016558 | N11: 55.24961092 | O11: 56.66537618 | P11: 59.15153235 | Q11: 61.13257108 | R11: 62.95076429 | S11: 64.60588709
A12: Воронежская область | B12: 16.26821422 | C12: 16.41129797 | D12: 17.04668712 | E12: 18.23424544 | F12: 19.00086197 | G12: 18.84522959 | H12: 57.04374768 | I12: 60.25571372 | J12: 63.43292513 | K12: 67.37949762 | L12: 67.98623833 | M12: 71.94048124 | N12: 47.26009153 | O12: 49.77962079 | P12: 52.03007519 | Q12: 54.7204563 | R12: 55.51524629 | S12: 58.15887205
A13: Ивановская область | B13: 29.67795669 | C13: 28.66775536 | D13: 32.95387865 | E13: 34.19438766 | F13: 34.96608892 | G13: 33.32679097 | H13: 60.23436311 | I13: 60.3431687 | J13: 62.97140852 | K13: 67.58885687 | L13: 68.14942777 | M13: 72.41461667 | N13: 54.53460621 | O13: 54.53059318 | P13: 58.60416936 | Q13: 62.61286682 | R13: 62.83076923 | S13: 64.02177499
A14: Калужская область | B14: 16.20790755 | C14: 13.60075212 | D14: 15.41101768 | E14: 18.57134187 | F14: 18.45418327 | G14: 17.41536877 | H14: 53.66489944 | I14: 53.82118101 | J14: 52.93957539 | K14: 56.00970874 | L14: 57.25222429 | M14: 58.26832216 | N14: 43.24930633 | O14: 43.50689698 | P14: 44.02380018 | Q14: 47.56200084 | R14: 48.37005061 | S14: 48.60186418
A15: Костромская область | B15: 32.62111276 | C15: 30.66044407 | D15: 30.92689361 | E15: 30.98026096 | F15: 29.94164843 | G15: 32.11840647 | H15: 71.54811715 | I15: 73.80261248 | J15: 81.28278897 | K15: 79.178338 | L15: 78.38396363 | M15: 76.48642585 | N15: 64.84644914 | O15: 65.4674732 | P15: 70.15069319 | Q15: 68.52367688 | R15: 67.84296427 | S15: 67.20686368
A16: Курская область | B16: 6.490197772 | C16: 5.702811245 | D16: 7.953580526 | E16: 8.757950143 | F16: 9.43272632 | G16: 6.583312069 | H16: 29.81169475 | I16: 31.49207746 | J16: 40.2016129 | K16: 38.92850931 | L16: 39.86732692 | M16: 30.27370479 | N16: 24.04316547 | O16: 24.88661534 | P16: 31.79525393 | Q16: 30.79490291 | R16: 31.76270965 | S16: 24.06742194
A17: Липецкая область | B17: 17.64433069 | C17: 16.30833682 | D17: 19.66414468 | E17: 20.37085401 | F17: 19.08222949 | G17: 18.84723051 | H17: 55.82852163 | I17: 57.4108925 | J17: 57.86932157 | K17: 59.62561703 | L17: 61.48178751 | M17: 61.52825879 | N17: 45.94200115 | O17: 47.14256907 | P17: 49.00145088 | Q17: 50.69415617 | R17: 51.89210749 | S17: 51.32009716
A18: Московская область | B18: 26.72038263 | C18: 23.62339982 | D18: 27.4213162 | E18: 27.87195645 | F18: 29.87988663 | G18: 29.84744709 | H18: 85.30718596 | I18: 90.22275147 | J18: 103.0848736 | K18: 109.867794 | L18: 115.102462 | M18: 110.2343528 | N18: 69.28497732 | O18: 73.84554744 | P18: 86.27573963 | Q18: 89.7820103 | R18: 93.1249213 | S18: 92.02212751
A19: Орловская область | B19: 9.086178185 | C19: 9.267715204 | D19: 9.323897003 | E19: 9.710763395 | F19: 9.347092677 | G19: 9.346186085 | H19: 31.77888612 | I19: 34.14108778 | J19: 36.09356494 | K19: 36.48923637 | L19: 37.21883786 | M19: 37.06433479 | N19: 26.35830541 | O19: 28.20479585 | P19: 29.58105905 | Q19: 29.90005341 | R19: 30.0123406 | S19: 29.68600504
A20: Рязанская область | B20: 12.22605676 | C20: 11.08128262 | D20: 14.06951318 | E20: 15.70284417 | F20: 15.60161396 | G20: 17.86802776 | H20: 45.97305818 | I20: 45.66439331 | J20: 46.34730539 | K20: 52.02660754 | L20: 53.8445891 | M20: 57.45673953 | N20: 37.21932181 | O20: 37.28795069 | P20: 39.49645009 | Q20: 44.24474693 | R20: 45.15454681 | S20: 48.72733322
A21: Смоленская область | B21: 20.07525679 | C21: 15.67841317 | D21: 19.68964049 | E21: 19.00720165 | F21: 19.73555109 | G21: 21.37637028 | H21: 46.48388648 | I21: 48.60329373 | J21: 51.64589701 | K21: 52.034588 | L21: 59.18021201 | M21: 61.41548968 | N21: 40.88386145 | O21: 41.33659581 | P21: 44.84469924 | Q21: 45.01490868 | R21: 50.5112052 | S21: 52.7513587
A22: Тамбовская область | B22: 37.1033669 | C22: 43.40943285 | D22: 40.36585651 | E22: 36.26373626 | F22: 27.6555298 | G22: 27.64548401 | H22: 66.32687504 | I22: 66.4857918 | J22: 69.67420468 | K22: 72.5939505 | L22: 68.5418746 | M22: 67.46239689 | N22: 61.07600996 | O22: 64.63002763 | P22: 65.89019219 | Q22: 66.15658363 | R22: 59.60874568 | S22: 58.63434619
A23: Тверская область | B23: 18.28230461 | C23: 16.80093252 | D23: 18.05060141 | E23: 19.31394701 | F23: 18.0592657 | G23: 17.76697089 | H23: 45.61725929 | I23: 49.09993793 | J23: 53.04080824 | K23: 54.02963119 | L23: 54.07423922 | M23: 53.91051714 | N23: 39.9666705 | O23: 41.51298457 | P23: 44.70890292 | Q23: 45.90537856 | R23: 45.11627907 | S23: 45.24842433
A24: Тульская область | B24: 18.31451613 | C24: 15.30540052 | D24: 16.83193818 | E24: 16.98989347 | F24: 17.21575775 | G24: 18.04357362 | H24: 47.15442131 | I24: 47.57996222 | J24: 48.14637483 | K24: 48.7338993 | L24: 49.71116816 | M24: 51.20096769 | N24: 39.99387737 | O24: 39.68627451 | P24: 41.20464083 | Q24: 41.85689317 | R24: 42.28512844 | S24: 43.32042594
A25: Ярославская область | B25: 31.47441758 | C25: 29.59454088 | D25: 33.79037066 | E25: 39.01856476 | F25: 39.6859226 | G25: 37.43537522 | H25: 70.47397047 | I25: 74.73305846 | J25: 84.70629534 | K25: 91.57303371 | L25: 94.14717928 | M25: 91.42109612 | N25: 62.96322439 | O25: 65.39313823 | P25: 74.15325285 | Q25: 80.40147913 | R25: 82.63656633 | S25: 79.58236659
A26: г. Москва | B26: - | C26: - | D26: - | E26: - | F26: - | G26: - | H26: - | I26: - | J26: - | K26: - | L26: - | M26: - | N26: - | O26: - | P26: - | Q26: - | R26: - | S26: -
A27: Северо-Западный федеральный округ | B27: 28.63032928 | C27: 28.67315119 | D27: 29.90517547 | E27: 30.66949433 | F27: 31.91842053 | G27: 33.26008384 | H27: 69.60307108 | I27: 72.44991606 | J27: 75.71995192 | K27: 76.96784388 | L27: 78.10286032 | M27: 78.33211612 | N27: 61.25874762 | O27: 63.1924451 | P27: 66.12754039 | Q27: 66.94864768 | R27: 68.05644581 | S27: 68.94881387
A28: Республика Карелия | B28: 27.91944709 | C28: 28.81555687 | D28: 36.89701153 | E28: 37.4780206 | F28: 38.37964165 | G28: 39.36842105 | H28: 76.27986348 | I28: 71.9901168 | J28: 83.61895161 | K28: 86.4142539 | L28: 90.22208513 | M28: 95.75818303 | N28: 66.70238824 | O28: 63.14669286 | P28: 74.62252138 | Q28: 76.84630739 | R28: 79.13606911 | S28: 83.79694019
A29: Республика Коми | B29: 40.7807309 | C29: 49.09750107 | D29: 46.84409423 | E29: 46.68833807 | F29: 43.50639104 | G29: 38.89894966 | H29: 94.26543488 | I29: 95.09933775 | J29: 95.00466232 | K29: 95.09660422 | L29: 95.21337011 | M29: 93.55119068 | N29: 87.09158217 | O29: 87.76226846 | P29: 87.3255702 | Q29: 86.83803035 | R29: 84.57908023 | S29: 80.08474576
A30: Архангельская область | B30: 33.37374521 | C30: 35.9833667 | D30: 37.82949896 | E30: 39.15950334 | F30: 36.44274647 | G30: 32.72566567 | H30: 80.89334549 | I30: 83.07048287 | J30: 89.08039708 | K30: 88.11648661 | L30: 88.05812417 | M30: 83.6321905 | N30: 72.62795084 | O30: 73.48198009 | P30: 79.16469661 | Q30: 79.29601357 | R30: 76.70418154 | S30: 71.50821596
A31: Ненецкий автономный округ | B31: 35.4 | C31: 40.69565217 | D31: 40.4587156 | E31: 40.6779661 | F31: 31.64300203 | G31: 34.35294118 | H31: 85.49618321 | I31: 86.27145086 | J31: 87.36 | K31: 91.60839161 | L31: 94.10646388 | M31: 91.92546584 | N31: 77.5210084 | O31: 77.82656422 | P31: 78.30508475 | Q31: 83.64083641 | R31: 77.06535142 | S31: 74.40100883
A32: Архангельская область (кроме Ненецкого автономного округа) | B32: 33.2 | C32: 35.62406763 | D32: 37.62211448 | E32: 39.02495379 | F32: 36.90125562 | G32: 32.55700524 | H32: 80.60106641 | I32: 82.85743952 | J32: 89.20627488 | K32: 87.86505539 | L32: 87.60647359 | M32: 83.01479655 | N32: 72.305026 | O32: 73.18552917 | P32: 79.22914019 | Q32: 78.97421882 | R32: 76.67523226 | S32: 71.2649772
A33: Вологодская область | B33: 37.80329242 | C33: 35.14324824 | D33: 33.61378714 | E33: 35.57488508 | F33: 36.46003992 | G33: 35.90979183 | H33: 72.16809561 | I33: 75.88790433 | J33: 79.08626093 | K33: 78.85903044 | L33: 80.23439039 | M33: 79.52446662 | N33: 66.8965187 | O33: 68.56040588 | P33: 70.04810833 | Q33: 70.3168 | R33: 71.51281151 | S33: 71.09202827
A34: Калининградская область | B34: 16.96145588 | C34: 17.75293155 | D34: 20.27015251 | E34: 20.04426367 | F34: 22.97215785 | G34: 23.70375326 | H34: 49.78458593 | I34: 52.15274864 | J34: 55.54755692 | K34: 58.59091355 | L34: 62.05271052 | M34: 63.45055949 | N34: 41.93640464 | O34: 44.68319559 | P34: 48.28539459 | Q34: 49.73337075 | R34: 53.22482507 | S34: 54.68268138
A35: Ленинградская область | B35: 24.84948129 | C35: 24.44210072 | D35: 27.02729176 | E35: 26.6479193 | F35: 30.75534156 | G35: 37.57181943 | H35: 73.28767123 | I35: 78.4172952 | J35: 79.48165869 | K35: 81.09758614 | L35: 82.77245664 | M35: 85.01526041 | N35: 61.39803844 | O35: 65.39827063 | P35: 67.18163196 | Q35: 67.79874952 | R35: 71.29612228 | S35: 75.98097935
A36: Мурманская область | B36: 41.04615385 | C36: 35.56620481 | D36: 32.80894 | E36: 34.46987389 | F36: 34.63148548 | G36: 38.31129808 | H36: 90.30325721 | I36: 88.23529412 | J36: 81.94611982 | K36: 86.79323153 | L36: 78.55579869 | M36: 77.34265734 | N36: 79.33522288 | O36: 75.6104034 | P36: 70.5327414 | Q36: 74.95667244 | R36: 68.53487664 | S36: 69.67569375
A37: Новгородская область | B37: 26.27432808 | C37: 28.05484406 | D37: 25.62534134 | E37: 29.2173913 | F37: 28.64516129 | G37: 30.33350979 | H37: 54.42396962 | I37: 59.1776571 | J37: 62.57309942 | K37: 64.08368849 | L37: 64.65608466 | M37: 61.88208617 | N37: 49.4047619 | O37: 53.45876521 | P37: 55.16756204 | Q37: 57.31656764 | R37: 57.15137957 | S37: 56.27517319
A38: Псковская область | B38: 13.38571629 | C38: 13.63266781 | D38: 16.463325 | E38: 18.3821215 | F38: 18.06775408 | G38: 19.47477132 | H38: 42.04037393 | I38: 41.98120245 | J38: 51.0230807 | K38: 51.64410058 | L38: 51.59799769 | M38: 54.39693425 | N38: 34.9098001 | O38: 35.24598874 | P38: 43.2435611 | Q38: 44.12833688 | R38: 43.49932705 | S38: 46.4653692
A39: г.Санкт-Петербург | B39: - | C39: - | D39: - | E39: - | F39: - | G39: - | H39: - | I39: - | J39: - | K39: - | L39: - | M39: - | N39: - | O39: - | P39: - | Q39: - | R39: - | S39: -
A40: Южный федеральный округ | B40: 19.71020489 | C40: 18.47041757 | D40: 20.07208896 | E40: 21.83200652 | F40: 22.79520254 | G40: 22.9634278 | H40: 65.20149984 | I40: 67.14723355 | J40: 70.26974995 | K40: 72.14338257 | L40: 74.01231977 | M40: 74.68987534 | N40: 54.17200436 | O40: 55.21423175 | P40: 58.13933298 | Q40: 59.48122912 | R40: 60.90372935 | S40: 61.84116465
A41: Республика Адыгея(Адыгея) | B41: 24.57862791 | C41: 22.73326206 | D41: 23.29136036 | E41: 21.92980402 | F41: 22.55521625 | G41: 24.21204526 | H41: 57.12392829 | I41: 61.57775255 | J41: 60.58703767 | K41: 62.21646723 | L41: 64.50069029 | M41: 66.62916081 | N41: 50.25061261 | O41: 53.25896507 | P41: 52.77392092 | Q41: 52.08893232 | R41: 53.6311455 | S41: 56.48983832
A42: Республика Калмыкия | B42: 22.15748436 | C42: 13.89926767 | D42: 17.72569731 | E42: 20.69252462 | F42: 22.41405889 | G42: 24.90272374 | H42: 53.57953113 | I42: 50.88900862 | J42: 51.08865803 | K42: 52.26674919 | L42: 54.45182724 | M42: 55.83883045 | N42: 44.90996926 | O42: 41.28414531 | P42: 43.15494087 | Q42: 45.14998905 | R42: 47.9296314 | S42: 49.70444616
A43: Республика Крым | B43: 11.13087298 | C43: 13.98576113 | D43: 16.31807291 | E43: 18.88408516 | F43: 21.33444063 | G43: 22.05967099 | H43: 59.94010781 | I43: 69.76768923 | J43: 74.44880906 | K43: 78.763093 | L43: 83.57221893 | M43: 86.08345633 | N43: 46.92277093 | O43: 55.2607696 | P43: 59.19879643 | Q43: 62.68309261 | R43: 67.23660055 | S43: 70.04103967
A44: Краснодарский край | B44: 23.07241314 | C44: 21.69843575 | D44: 22.91648936 | E44: 25.0462269 | F44: 24.72798935 | G44: 24.54379109 | H44: 75.60246668 | I44: 75.46825192 | J44: 78.0129665 | K44: 79.07413046 | L44: 80.6402423 | M44: 80.54276688 | N44: 62.82442926 | O44: 62.10953966 | P44: 65.02117964 | Q44: 65.84207089 | R44: 65.91089038 | S44: 66.3793555
A45: Астраханская область | B45: 20.57142857 | C45: 16.6006062 | D45: 19.09021698 | E45: 20.36840583 | F45: 22.21320621 | G45: 22.68110438 | H45: 58.9099549 | I45: 58.81340013 | J45: 58.76253993 | K45: 62.62927363 | L45: 62.31200612 | M45: 62.92660729 | N45: 50.31554589 | O45: 48.90945885 | P45: 49.32085604 | Q45: 51.70229612 | R45: 52.50043867 | S45: 53.35379615
A46: Волгоградская область | B46: 15.5933356 | C46: 15.88808025 | D46: 17.82421473 | E46: 19.89385475 | F46: 21.49972697 | G46: 22.76075001 | H46: 44.27305664 | I46: 46.0711755 | J46: 49.54035181 | K46: 51.60080761 | L46: 53.4832636 | M46: 53.28174581 | N46: 37.8723184 | O46: 39.2538455 | P46: 42.6398834 | Q46: 44.56684347 | R46: 46.33637262 | S46: 46.6580625
A47: Ростовская область | B47: 20.10517234 | C47: 17.44690937 | D47: 18.35621689 | E47: 18.9150599 | F47: 20.48054146 | G47: 19.81019051 | H47: 64.76211268 | I47: 64.84634893 | J47: 68.51219686 | K47: 68.70240663 | L47: 69.21142997 | M47: 69.38971136 | N47: 54.34470699 | O47: 53.48895077 | P47: 56.09962382 | Q47: 55.82204565 | R47: 56.9299234 | S47: 56.88225045
A48: г. Севастополь | B48: 11.45295307 | C48: 8.851189379 | D48: 19.60784314 | E48: 34.88023952 | F48: 36.83646113 | G48: 41.34645919 | H48: 29.65909091 | I48: 29.98853211 | J48: 67.13500305 | K48: 90.92812282 | L48: 97.17557252 | M48: 108.1455806 | N48: 24.48567971 | O48: 25.05193187 | P48: 55.98214286 | Q48: 79.13446677 | R48: 87.3255814 | S48: 91.9648462
A49: Северо-Кавказский федеральный округ | B49: 11.44763207 | C49: 11.52724649 | D49: 12.83873586 | E49: 13.74096881 | F49: 14.22458656 | G49: 14.83703969 | H49: 45.63536787 | I49: 47.36996265 | J49: 50.96267353 | K49: 53.13817307 | L49: 55.18836426 | M49: 57.98912647 | N49: 36.51655308 | O49: 37.90662379 | P49: 40.78964441 | Q49: 42.47467951 | R49: 44.09755773 | S49: 45.95358333
A50: Республика Дагестан | B50: 5.392185084 | C50: 5.402411881 | D50: 6.378488925 | E50: 6.485895761 | F50: 6.877485991 | G50: 7.279964991 | H50: 30.21663873 | I50: 31.35031134 | J50: 34.29607727 | K50: 34.90448165 | L50: 36.68649926 | M50: 38.31255804 | N50: 23.29075761 | O50: 24.12931825 | P50: 26.1549307 | Q50: 26.43748116 | R50: 28.05331588 | S50: 29.32627596
A51: Республика Ингушетия | B51: 3.96391343 | C51: 4.680038204 | D51: 8.537027109 | E51: 11.24088873 | F51: 11.94463812 | G51: 14.96295845 | H51: 40.19124185 | I51: 45.14815058 | J51: 60.00270984 | K51: 67.59553602 | L51: 66.14011897 | M51: 64.43587511 | N51: 29.63791357 | O51: 31.64659664 | P51: 43.11002059 | Q51: 49.3024883 | R51: 48.98989899 | S51: 50.30824072
A52: Кабардино-Балкарская Республика | B52: 22.89844646 | C52: 20.99355515 | D52: 23.43497076 | E52: 24.16226958 | F52: 24.22528601 | G52: 23.50894924 | H52: 55.51233067 | I52: 57.85863085 | J52: 61.23842028 | K52: 64.47363136 | L52: 67.19689539 | M52: 70.80656674 | N52: 46.85527748 | O52: 49.18334426 | P52: 53.04101839 | Q52: 55.38330976 | R52: 57.06218048 | S52: 59.61448924
A53: Карачаево-Черкесская Республика | B53: 19.28351046 | C53: 12.6899017 | D53: 14.43647108 | E53: 17.80678851 | F53: 17.78213654 | G53: 18.69772999 | H53: 51.38327634 | I53: 49.09079349 | J53: 52.95086286 | K53: 55.94924421 | L53: 56.55659337 | M53: 61.88 | N53: 41.85059787 | O53: 39.39634631 | P53: 42.88417167 | Q53: 46.92567904 | R53: 48.11402091 | S53: 52.06534963
A54: Республика Северная Осетия-Алания | B54: 15.97494127 | C54: 14.84721463 | D54: 16.94951527 | E54: 17.84590826 | F54: 20.32066294 | G54: 19.12724956 | H54: 48.82541006 | I54: 51.72746145 | J54: 53.34171052 | K54: 57.13928482 | L54: 57.25792331 | M54: 58.84387802 | N54: 41.04895792 | O54: 42.28250219 | P54: 44.03908795 | Q54: 47.00231481 | R54: 48.9348449 | S54: 50.01957713
A55: Чеченская Республика | B55: 10.14771954 | C55: 11.94135156 | D55: 13.15338721 | E55: 14.76141692 | F55: 14.93219466 | G55: 16.13915478 | H55: 52.55959205 | I55: 55.21869593 | J55: 59.9721609 | K55: 63.35552952 | L55: 67.91426845 | M55: 75.95852119 | N55: 40.43174546 | O55: 43.28696124 | P55: 47.55234444 | Q55: 50.49263606 | R55: 52.6598677 | S55: 56.32173396
A56: Ставропольский край | B56: 22.79068393 | C56: 22.43533617 | D56: 23.8290677 | E56: 25 | F56: 26.10951906 | G56: 26.912171 | H56: 63.69153177 | I56: 65.35242668 | J56: 67.14611117 | K56: 70 | L56: 72.82976084 | M56: 74.97479782 | N56: 54.25881754 | O56: 55.79647759 | P56: 57.33451544 | Q56: 59.2 | R56: 61.70736773 | S56: 63.37866547
A57: Приволжский федеральный округ | B57: 23.51563829 | C57: 22.90847308 | D57: 23.89463766 | E57: 24.95586122 | F57: 25.04908841 | G57: 25.65084944 | H57: 68.45731201 | I57: 70.65266415 | J57: 73.61914337 | K57: 73.77925922 | L57: 74.2313006 | M57: 74.29919918 | N57: 58.02530096 | O57: 59.58717487 | P57: 62.05738743 | Q57: 61.96744703 | R57: 62.3047102 | S57: 62.60314631
A58: Республика Башкортостан | B58: 25.82694899 | C58: 23.29789481 | D58: 25.64510908 | E58: 26.75044322 | F58: 24.25244512 | G58: 26.57885359 | H58: 77.41904196 | I58: 78.88689867 | J58: 79.22088517 | K58: 78.55565791 | L58: 78.72746133 | M58: 77.56312409 | N58: 64.70553498 | O58: 64.90579516 | P58: 66.16830941 | Q58: 65.56225405 | R58: 64.98761879 | S58: 65.12260977
A59: Республика Марий Эл | B59: 20.62453816 | C59: 18.5159054 | D59: 22.93331587 | E59: 24.40449896 | F59: 26.75395526 | G59: 26.1047061 | H59: 74.91507708 | I59: 76.72454692 | J59: 90.14511588 | K59: 75.26608612 | L59: 79.12043844 | M59: 79.67397576 | N59: 61.64092302 | O59: 63.34564203 | P59: 74.05586767 | Q59: 62.81747376 | R59: 66.5827975 | S59: 66.4939723
A60: Республика Мордовия | B60: 20.93806524 | C60: 19.18173168 | D60: 20.42645464 | E60: 18.9963118 | F60: 18.8976378 | G60: 18.95884124 | H60: 50.86699507 | I60: 51.11699312 | J60: 54.73166266 | K60: 52.319202 | L60: 53.18466899 | M60: 54.21374046 | N60: 43.60985769 | O60: 43.60104595 | P60: 47.29841375 | Q60: 45.18950437 | R60: 45.94950826 | S60: 46.39277453
A61: Республика Татарстан | B61: 20.49605361 | C61: 18.76804417 | D61: 18.67473384 | E61: 18.51796092 | F61: 18.97414353 | G61: 18.31875645 | H61: 62.83075103 | I61: 65.11582588 | J61: 69.04129563 | K61: 71.16266301 | L61: 72.71498807 | M61: 74.17183813 | N61: 52.49580639 | O61: 53.72370665 | P61: 56.26073295 | Q61: 57.21664221 | R61: 58.63800283 | S61: 59.32169255
A62: Удмуртская Республика | B62: 31.69215467 | C62: 32.27176665 | D62: 32.07242798 | E62: 34.35236508 | F62: 35.67528476 | G62: 36.02554668 | H62: 80.87516659 | I62: 82.63555724 | J62: 83.49998099 | K62: 82.92291221 | L62: 82.60210451 | M62: 81.06481694 | N62: 70.21994674 | O62: 72.11257129 | P62: 72.46948255 | Q62: 71.95543494 | R62: 72.33065088 | S62: 71.59523042
A63: Чувашская Республика | B63: 25.35573304 | C63: 23.36785865 | D63: 24.24774874 | E63: 23.32258245 | F63: 25.24105944 | G63: 26.00432532 | H63: 74.91448119 | I63: 73.1735827 | J63: 72.66815093 | K63: 69.21693326 | L63: 66.57286018 | M63: 64.90154141 | N63: 63.35247412 | O63: 61.6168504 | P63: 61.14394346 | Q63: 58.21375221 | R63: 57.54878466 | S63: 56.69523159
A64: Пермский край | B64: 24.29358218 | C64: 24.3038249 | D64: 24.38975131 | E64: 25.69659729 | F64: 27.18912666 | G64: 27.65476455 | H64: 75.40618202 | I64: 76.17843182 | J64: 79.14660625 | K64: 79.80706061 | L64: 80.1428518 | M64: 80.48237911 | N64: 63.84491989 | O64: 64.8122974 | P64: 66.62162162 | Q64: 66.22293389 | R64: 66.63606691 | S64: 67.45126392
A65: Кировская область | B65: 22.09736901 | C65: 24.8709872 | D65: 24.03074489 | E65: 26.25382623 | F65: 26.30932086 | G65: 24.03426668 | H65: 74.56747405 | I65: 75.6196668 | J65: 76.5271105 | K65: 78.91662241 | L65: 80.71549209 | M65: 79.74452555 | N65: 63.62679992 | O65: 64.37045825 | P65: 65.29941885 | Q65: 67.81631281 | R65: 67.25504704 | S65: 64.33311214
A66: Нижегородская область | B66: 22.86062586 | C66: 21.43653563 | D66: 22.50548773 | E66: 24.58352815 | F66: 25.27870641 | G66: 25.36841021 | H66: 61.34802012 | I66: 65.82063645 | J66: 68.72263549 | K66: 73.92310184 | L66: 75.03352371 | M66: 74.33837429 | N66: 52.67000204 | O66: 55.80333528 | P66: 58.1786596 | Q66: 62.12768734 | R66: 63.16670153 | S66: 62.54683024
A67: Оренбургская область | B67: 22.53591119 | C67: 23.55581704 | D67: 22.7100646 | E67: 24.00260137 | F67: 22.97520371 | G67: 23.988187 | H67: 64.65833154 | I67: 66.57009346 | J67: 68.05841747 | K67: 69.33205785 | L67: 70.00859528 | M67: 68.65869425 | N67: 55.20172486 | O67: 56.98123991 | P67: 57.75243157 | Q67: 58.69335513 | R67: 58.83614155 | S67: 58.27155988
A68: Пензенская область | B68: 16.69957897 | C68: 18.12709939 | D68: 21.66321029 | E68: 23.66577286 | F68: 23.44081605 | G68: 24.46316526 | H68: 54.64714983 | I68: 57.54948162 | J68: 60.67696042 | K68: 63.64577939 | L68: 66.00326264 | M68: 68.42059789 | N68: 45.05295135 | O68: 48.40093956 | P68: 52.38768841 | Q68: 54.56020093 | R68: 55.86006495 | S68: 57.9244253
A69: Самарская область | B69: 26.50148128 | C69: 27.50845547 | D69: 27.85523679 | E69: 30.23599304 | F69: 31.68197762 | G69: 30.96787813 | H69: 69.93295351 | I69: 74.63746173 | J69: 80.58464223 | K69: 82.32193065 | L69: 83.10695742 | M69: 83.11666169 | N69: 60.18003053 | O69: 64.1631417 | P69: 68.90131322 | Q69: 70.19456742 | R69: 70.96774194 | S69: 70.7444132
A70: Саратовская область | B70: 16.8669236 | C70: 17.65978935 | D70: 18.20274178 | E70: 17.66321638 | F70: 18.8525933 | G70: 20.26600225 | H70: 53.5476439 | I70: 57.62698253 | J70: 62.50115452 | K70: 60.51827716 | L70: 57.63963253 | M70: 60.50882282 | N70: 45.30301039 | O70: 48.46113415 | P70: 52.25481026 | Q70: 50.3047334 | R70: 48.39609484 | S70: 50.94090036
A71: Ульяновская область | B71: 17.27085993 | C71: 17.78058008 | D71: 22.09291233 | E71: 21.29394466 | F71: 25.38576406 | G71: 26.1390243 | H71: 46.61203109 | I71: 49.9187924 | J71: 62.87532091 | K71: 61.46412177 | L71: 60.98807496 | M71: 66.73596674 | N71: 40.52433067 | O71: 43.02534977 | P71: 53.62868199 | Q71: 51.84623166 | R71: 52.94917097 | S71: 57.47126437
A72: Уральский федеральный округ | B72: 36.27886199 | C72: 34.76258726 | D72: 35.58362841 | E72: 36.31873498 | F72: 35.55873256 | G72: 35.1282978 | H72: 76.81785083 | I72: 77.2879129 | J72: 80.21789091 | K72: 79.96593753 | L72: 80.09201299 | M72: 79.98959229 | N72: 68.93169224 | O72: 69.06400827 | P72: 71.58187674 | Q72: 71.15889495 | R72: 70.74532277 | S72: 70.38371332
A73: Курганская область | B73: 20.30509387 | C73: 18.70973637 | D73: 18.95522024 | E73: 21.41219261 | F73: 21.47540518 | G73: 22.38071194 | H73: 63.82407985 | I73: 62.49138288 | J73: 66.35977337 | K73: 65.90452919 | L73: 66.58966214 | M73: 66.7429999 | N73: 54.06415163 | O73: 52.67676768 | P73: 55.33814914 | Q73: 55.43728603 | R73: 55.73424191 | S73: 56.37713437
A74: Свердловская область | B74: 29.11198638 | C74: 28.39536739 | D74: 28.60324985 | E74: 29.73829593 | F74: 30.67560471 | G74: 30.61829847 | H74: 79.95832176 | I74: 85.94757457 | J74: 86.18814208 | K74: 86.36708449 | L74: 86.186718 | M74: 83.93227092 | N74: 68.82285897 | O74: 72.81628948 | P74: 72.93994579 | Q74: 72.60510943 | R74: 72.33491127 | S74: 71.43412791
A75: Тюменская область | B75: 48.6642291 | C75: 45.21509619 | D75: 48.1362887 | E75: 47.50943453 | F75: 45.42872764 | G75: 43.8960622 | H75: 80.54032138 | I75: 77.44301512 | J75: 81.77942629 | K75: 81.12635988 | L75: 82.59488285 | M75: 84.03446831 | N75: 75.60188482 | O75: 73.19798755 | P75: 77.58751771 | Q75: 76.93782576 | R75: 77.26473088 | S75: 76.70652462
A76: Ханты-Мансийский автономный округ - Югра | B76: 30.29397836 | C76: 30.32807871 | D76: 35.64952259 | E76: 34.09268081 | F76: 33.62774566 | G76: 34.06912992 | H76: 82.85885167 | I76: 79.45170707 | J76: 83.28418231 | K76: 78.92731536 | L76: 79.36283741 | M76: 77.97480941 | N76: 70.05140305 | O76: 68.20169567 | P76: 73.23434228 | Q76: 69.77810189 | R76: 69.83402027 | S76: 69.29133858
A77: Ямало-Ненецкий автономный округ | B77: 30.49213408 | C77: 30.99350341 | D77: 33.46168823 | E77: 31.42607937 | F77: 31.5472387 | G77: 31.45303792 | H77: 81.96494465 | I77: 81.95860365 | J77: 82.24729816 | K77: 73.43724092 | L77: 73.46120314 | M77: 75.28693077 | N77: 68.83744856 | O77: 69.48386419 | P77: 71.18942731 | Q77: 64.89165514 | R77: 64.44444444 | S77: 65.15340484
A78: Тюменская область без автономий | B78: 59.01906673 | C78: 53.32824961 | D78: 55.49097653 | E78: 55.30907335 | F78: 51.77354039 | G78: 49.37388193 | H78: 79.64496672 | I78: 75.93884568 | J78: 81.26913242 | K78: 83.57097339 | L78: 85.74761308 | M78: 87.84681161 | N78: 78.56531724 | O78: 75.4092406 | P78: 80.29931049 | Q78: 81.82536324 | R78: 82.47469134 | S78: 81.48876059
A79: Челябинская область | B79: 34.10125463 | C79: 33.49129682 | D79: 32.76170975 | E79: 33.8655601 | F79: 32.25431091 | G79: 31.63339326 | H79: 74.60015126 | I79: 74.86057355 | J79: 77.99859949 | K79: 77.81825975 | L79: 76.10124301 | M79: 75.88352797 | N79: 66.74979887 | O79: 66.76892283 | P79: 68.77182221 | Q79: 68.29859908 | R79: 66.35247812 | S79: 66.12472636
A80: Сибирский федеральный округ | B80: 19.09982478 | C80: 19.69408627 | D80: 21.10695983 | E80: 22.81489392 | F80: 23.5945133 | G80: 24.79424595 | H80: 63.12965597 | I80: 64.52203998 | J80: 67.05713891 | K80: 68.44695745 | L80: 69.38090694 | M80: 70.58836304 | N80: 52.45432797 | O80: 53.77720534 | P80: 56.23505155 | Q80: 57.67932305 | R80: 58.39562874 | S80: 59.49711384
A81: Республика Алтай | B81: 20.92490842 | C81: 25.28983107 | D81: 26.01808007 | E81: 29.09974824 | F81: 31.02758201 | G81: 30.91755319 | H81: 79.14089048 | I81: 81.31878381 | J81: 82.63099668 | K81: 86.7635972 | L81: 86.73139159 | M81: 86.87648456 | N81: 64.90345812 | O81: 68.10235959 | P81: 69.36461527 | Q81: 72.77894107 | R81: 72.97658337 | S81: 72.57804957
A82: Республика Тыва | B82: 28.17202715 | C82: 32.39110287 | D82: 36.16610954 | E82: 37.64554519 | F82: 36.15074849 | G82: 37.57451086 | H82: 62.9632176 | I82: 64.34224599 | J82: 65.28349936 | K82: 65.69308494 | L82: 71.16327057 | M82: 73.29044118 | N82: 55.11655286 | O82: 58.85908768 | P82: 61.77132447 | Q82: 61.75808488 | R82: 64.45392392 | S82: 66.52304234
A83: Республика Хакасия | B83: 22.87638288 | C83: 24.39359717 | D83: 25.47332186 | E83: 28.05877687 | F83: 30.76801141 | G83: 32.552114 | H83: 66.75564877 | I83: 66.82697227 | J83: 73.10849789 | K83: 74.39277432 | L83: 77.52141476 | M83: 83.17402519 | N83: 55.83503749 | O83: 57.48409999 | P83: 63.16730316 | Q83: 64.9167847 | R83: 67.84907144 | S83: 71.32169576
A84: Алтайский край | B84: 15.54966809 | C84: 15.37421774 | D84: 16.93680798 | E84: 18.33507074 | F84: 18.66106871 | G84: 21.1349591 | H84: 65.58360361 | I84: 65.13522594 | J84: 66.2310567 | K84: 66.19197792 | L84: 68.17647059 | M84: 70.27795325 | N84: 52.87080673 | O84: 52.71068898 | P84: 54.17002716 | Q84: 54.56018886 | R84: 55.77363924 | S84: 58.19647109
A85: Красноярский край | B85: 20.72778178 | C85: 20.4708587 | D85: 20.76991943 | E85: 22.50562641 | F85: 23.50179022 | G85: 23.79297582 | H85: 63.61825228 | I85: 64.27077888 | J85: 67.19513348 | K85: 66.78514483 | L85: 66.60244747 | M85: 66.81746211 | N85: 53.25854804 | O85: 53.7387693 | P85: 56.19441341 | Q85: 56.34017238 | R85: 56.38258188 | S85: 56.59847889
A86: Иркутская область | B86: 15.39301055 | C86: 16.06530129 | D86: 16.82685635 | E86: 18.79140395 | F86: 19.54915812 | G86: 20.46972004 | H86: 56.41054403 | I86: 59.23388538 | J86: 61.8423576 | K86: 62.2343217 | L86: 62.66480154 | M86: 64.18599578 | N86: 46.06588995 | O86: 47.73496163 | P86: 50.05652723 | Q86: 51.60193389 | R86: 52.16392561 | S86: 53.2410321
A87: Кемеровская область | B87: 27.0235598 | C87: 27.24639834 | D87: 28.55628707 | E87: 29.81752297 | F87: 32.49036382 | G87: 37.42794928 | H87: 63.38572118 | I87: 67.41755271 | J87: 70.47884705 | K87: 76.04904036 | L87: 76.55593435 | M87: 79.53907645 | N87: 56.01321158 | O87: 59.27323186 | P87: 61.77593282 | Q87: 65.91556592 | R87: 67.28172817 | S87: 71.14490917
A88: Новосибирская область | B88: 15.73502674 | C88: 15.37398514 | D88: 14.91826438 | E88: 15.89465244 | F88: 16.49377593 | G88: 17.08575185 | H88: 54.53480338 | I88: 55.81862855 | J88: 58.73527374 | K88: 60.18660812 | L88: 60.62487795 | M88: 61.64727168 | N88: 44.96704422 | O88: 46.01218594 | P88: 47.77312992 | Q88: 48.87484587 | R88: 49.16298125 | S88: 49.70682378
A89: Омская область | B89: 18.27286913 | C89: 18.98338543 | D89: 21.75495636 | E89: 25.21447221 | F89: 25.91589115 | G89: 26.4363255 | H89: 60.80779944 | I89: 62.06978886 | J89: 64.36209226 | K89: 67.70904729 | L89: 68.76290595 | M89: 67.91769955 | N89: 51.18388023 | O89: 52.25171636 | P89: 54.90048922 | Q89: 58.0883466 | R89: 58.8995702 | S89: 58.31656374
A90: Томская область | B90: 22.13507769 | C90: 22.68105095 | D90: 26.91524079 | E90: 26.05224136 | F90: 26.86156971 | G90: 26.98852893 | H90: 76.63556818 | I90: 79.88477865 | J90: 84.41575294 | K90: 88.05294561 | L90: 86.16475013 | M90: 86.01425106 | N90: 63.14929762 | O90: 65.49064724 | P90: 70.23928215 | Q90: 72.50455461 | R90: 71.2732763 | S90: 71.13924051
A91: Дальневосточный федеральный округ | B91: 25.00248053 | C91: 26.40333373 | D91: 28.55945458 | E91: 30.61420321 | F91: 29.89069948 | G91: 29.87908658 | H91: 70.50187174 | I91: 71.72576832 | J91: 76.19766126 | K91: 77.21296366 | L91: 77.52733541 | M91: 77.7206629 | N91: 60.53399086 | O91: 61.44566519 | P91: 65.44536901 | Q91: 67.04843383 | R91: 66.47368929 | S91: 66.05213874
A92: Республика Бурятия | B92: 23.55941157 | C92: 24.61937869 | D92: 28.59452999 | E92: 31.86900382 | F92: 32.26513011 | G92: 35.05432669 | H92: 62.32677817 | I92: 61.81550616 | J92: 65.32271242 | K92: 67.07041764 | L92: 68.84327501 | M92: 72.52768051 | N92: 53.95299422 | O92: 53.69178754 | P92: 57.87408391 | Q92: 60.40988841 | R92: 61.58482143 | S92: 64.90183246
A93: Республика Саха (Якутия) | B93: 38.29637946 | C93: 36.13323339 | D93: 39.84540217 | E93: 42.9481301 | F93: 41.3469131 | G93: 42.62433505 | H93: 90.0923963 | I93: 91.41877883 | J93: 98.82648402 | K93: 98.11172305 | L93: 94.39309605 | M93: 91.67720852 | N93: 78.86919023 | O93: 79.45754857 | P93: 85.341435 | Q93: 85.78882237 | R93: 82.92049681 | S93: 81.38168631
A94: Забайкальский край | B94: 16.907893 | C94: 20.51958409 | D94: 21.66277303 | E94: 23.20253228 | F94: 21.93230513 | G94: 22.3723259 | H94: 59.75615825 | I94: 59.64090143 | J94: 68.15304948 | K94: 67.79819371 | L94: 66.40872081 | M94: 64.18509649 | N94: 49.65231439 | O94: 50.55186815 | P94: 57.10860997 | Q94: 57.2681106 | R94: 55.01906556 | S94: 53.45818565
A95: Камчатский край | B95: 39.28360226 | C95: 38.20361362 | D95: 40.09986557 | E95: 45.46222035 | F95: 43.1640625 | G95: 39.17050691 | H95: 92.98771352 | I95: 91.48334381 | J95: 90.28589994 | K95: 91.1370663 | L95: 89.13761468 | M95: 91.08832808 | N95: 80.75801749 | O95: 79.14856646 | P95: 79.66529115 | Q95: 83.39930727 | R95: 81.45416228 | S95: 80.13793103
A96: Приморский край | B96: 20.08401052 | C96: 22.95576035 | D96: 23.57064183 | E96: 25.59326826 | F96: 25.42289049 | G96: 22.83229935 | H96: 74.19092618 | I96: 77.77717421 | J96: 80.47445255 | K96: 82.17355839 | L96: 82.29527874 | M96: 83.66991643 | N96: 62.04939075 | O96: 64.52732673 | P96: 66.39734825 | Q96: 68.61336254 | R96: 67.45532685 | S96: 66.1443451
A97: Хабаровский край | B97: 25.52111655 | C97: 30.29246372 | D97: 28.58842702 | E97: 27.12401329 | F97: 28.46267818 | G97: 27.07194729 | H97: 76.81052804 | I97: 79.73252804 | J97: 77.43627496 | K97: 78.84841363 | L97: 84.89873019 | M97: 86.20804623 | N97: 66.00711172 | O97: 68.4127657 | P97: 66.16992452 | Q97: 67.3799367 | R97: 70.49610206 | S97: 69.19126157
A98: Амурская область | B98: 16.981497 | C98: 15.63853833 | D98: 17.74709632 | E98: 18.67194005 | F98: 18.82821841 | G98: 17.77656079 | H98: 46.53206332 | I98: 48.10294118 | J98: 53.19043284 | K98: 55.53245344 | L98: 55.65740193 | M98: 54.94505495 | N98: 40.06601621 | O98: 40.7903157 | P98: 45.28717827 | Q98: 46.94256108 | R98: 46.77993971 | S98: 45.53757641
A99: Магаданская область | B99: 22.04081633 | C99: 20.49180328 | D99: 24.84076433 | E99: 38.64042934 | F99: 22.46696035 | G99: 26.02040816 | H99: 56.8627451 | I99: 59.72222222 | J99: 54.4600939 | K99: 54.59183673 | L99: 46.93877551 | M99: 45.66473988 | N99: 49.42528736 | O99: 51.67785235 | P99: 47.17607973 | Q99: 52.96296296 | R99: 43.6 | S99: 42.66666667
A100: Сахалинская область | B100: 29.29079377 | C100: 33.02151543 | D100: 36.092218 | E100: 40.02653274 | F100: 34.08264154 | G100: 32.55936675 | H100: 89.08662654 | I100: 89.91169387 | J100: 92.73375377 | K100: 97.43816254 | L100: 102.891883 | M100: 100.1049318 | N100: 75.17141826 | O100: 75.716946 | P100: 80.64708218 | Q100: 87.44824581 | R100: 87.09827667 | S100: 82.85306025
A101: Еврейская автономная область | B101: 26.76117775 | C101: 20.07834359 | D101: 22.91666667 | E101: 25.98299681 | F101: 24.42941674 | G101: 23.30357143 | H101: 66.1167002 | I101: 66.36326024 | J101: 70.94307562 | K101: 71.71260732 | L101: 73.93015248 | M101: 74.20031463 | N101: 56.73209842 | O101: 54.41807263 | P101: 59.43509615 | Q101: 61.09869051 | R101: 62.63544215 | S101: 61.34699854
A102: Чукотский автономный округ | B102: 46.53818701 | C102: 45.5227882 | D102: 46.48519294 | E102: 44.09499358 | F102: 38.90723506 | G102: 37.75700935 | H102: 93.35827877 | I102: 92.07089552 | J102: 91.82452642 | K102: 88.7295082 | L102: 87.30337079 | M102: 86.57799274 | N102: 84.01015228 | O102: 82.09437621 | P102: 84.52722063 | Q102: 81.89977562 | R102: 77.5175644 | S102: 75.74257426
A105: 1) Значение показателя может быть более 100% т.к. при его расчете в соответствии с международной методологией в число воспитанников, посещающих организации, осуществляющие образовательную деятельность по образовательным программам дошкольного образования, присмотр и уход за детьми, включаются дети в возрасте 7 лет и старше.

Sheet 9
A1: К содержанию
A3: Информация для расчета показателя "Удельный вес численности воспитанников частных образовательных организаций, осуществляющих образовательную деятельность по программам дошкольного образования, в общей численности воспитанников образовательных организаций, осуществляющих образовательную деятельность по программам дошкольного образования", используемого для формирования рейтинга субъекта Российской Федерации, по итогам реализации механизмов поддержки социально ориентированных некоммерческих организаций и социального предпринимательства, обеспечения доступа негосударственных организаций к предоставлению услуг в социальной сфере и внедрения конкурентных способов оказания государственных (муниципальных) услуг 1)2)
B5: Численность воспитанников в 2021 году | D5: Удельный вес (%) | E5: Численность воспитанников в 2022 году | G5: Удельный вес (%) | H5: Численность воспитанников в 2023 году | J5: Удельный вес (%) | K5: Численность воспитанников в 2024 году | M5: Удельный вес (%) | N5: Численность воспитанников в 2025 году | P5: Удельный вес (%)
B6: по всем формам собственности | C6: по частной форме собственности | E6: по всем формам собственности | F6: по частной форме собственности | H6: по всем формам собственности | I6: по частной форме собственности | K6: по всем формам собственности | L6: по частной форме собственности | N6: по всем формам собственности | O6: по частной форме собственности
A7: Российская Федерация | B7: 7243356 | C7: 109234 | D7: =$C7/$B7*100 -> 1.508057867 | E7: 6990026 | F7: 105028 | G7: =$F7/$E7*100 -> 1.502540906 | H7: 6651041 | I7: 101418 | J7: 1.524844006 | K7: 6373175 | L7: 101433 | M7: =L7/K7*100 -> 1.591561506 | N7: 6081576 | O7: 94127 | P7: =O7/N7*100 -> 1.547740257
A8: Центральный федеральный округ | B8: 1740747 | C8: 29605 | D8: 1.700706651 | E8: 1678015 | F8: 31301 | G8: 1.865358772 | H8: 1594629 | I8: 31856 | J8: 1.997706049 | K8: 1528397 | L8: 33691 | M8: =L8/K8*100 -> 2.204335654 | N8: 1453157 | O8: 32867 | P8: =O8/N8*100 -> 2.261765246
A9: Белгородская область | B9: 69613 | C9: 685 | D9: 0.984011607 | E9: 65243 | F9: 809 | G9: 1.239979768 | H9: 61710 | I9: 802 | J9: 1.299627289 | K9: 55289 | L9: 735 | M9: 1.329378357 | N9: 52845 | O9: 651 | P9: =O9/N9*100 -> 1.231904627
A10: Брянская область | B10: 51525 | C10: 443 | D10: 0.8597768074 | E10: 47873 | F10: 366 | G10: 0.7645227999 | H10: 45179 | I10: 369 | J10: 0.8167511454 | K10: 43241 | L10: 352 | M10: 0.8140422284 | N10: 40666 | O10: 315 | P10: =O10/N10*100 -> 0.7746028623
A11: Владимирская область | B11: 66877 | C11: 457 | D11: 0.6833440495 | E11: 63381 | F11: 423 | G11: 0.6673924362 | H11: 59065 | I11: 444 | J11: 0.7517142132 | K11: 55727 | L11: 461 | M11: 0.8272471154 | N11: 52642 | O11: 494 | P11: 0.938414194
A12: Воронежская область | B12: 99425 | C12: 1056 | D12: 1.062107116 | E12: 96695 | F12: 1125 | G12: 1.163452092 | H12: 92672 | I12: 1034 | J12: 1.115763122 | K12: 89285 | L12: 1009 | M12: 1.130089041 | N12: 85504 | O12: 905 | P12: 1.058430015
A13: Ивановская область | B13: 47854 | C13: 356 | D13: 0.7439294521 | E13: 45579 | F13: 346 | G13: 0.7591215253 | H13: 42615 | I13: 351 | J13: 0.8236536431 | K13: 39982 | L13: 396 | M13: 0.9904457006 | N13: 37459 | O13: 403 | P13: 1.075842922
A14: Калужская область | B14: 49745 | C14: 247 | D14: 0.4965323148 | E14: 49652 | F14: 171 | G14: 0.3443970031 | H14: 47351 | I14: 160 | J14: 0.3379020506 | K14: 45377 | L14: 159 | M14: 0.3503977786 | N14: 43272 | O14: 111 | P14: 0.2565169163
A15: Костромская область | B15: 33689 | C15: 194 | D15: 0.5758556205 | E15: 31325 | F15: 205 | G15: 0.6544293695 | H15: 28937 | I15: 169 | J15: 0.5840273698 | K15: 26677 | L15: 164 | M15: 0.6147617798 | N15: 25192 | O15: 137 | P15: 0.543823436
A16: Курская область | B16: 39303 | C16: 261 | D16: 0.6640714449 | E16: 37085 | F16: 237 | G16: 0.6390724012 | H16: 34748 | I16: 218 | J16: 0.6273742374 | K16: 30956 | L16: 226 | M16: 0.7300684843 | N16: 30226 | O16: 224 | P16: 0.7410838351
A17: Липецкая область | B17: 51315 | C17: 469 | D17: 0.9139627789 | E17: 49340 | F17: 412 | G17: 0.8350222943 | H17: 46239 | I17: 346 | J17: 0.7482860789 | K17: 44394 | L17: 330 | M17: 0.7433436951 | N17: 42032 | O17: 325 | P17: 0.7732204035
A18: Московская область | B18: 447401 | C18: 15395 | D18: 3.440984709 | E18: 445678 | F18: 15859 | G18: 3.558398665 | H18: 437964 | I18: 15651 | J18: 3.57358139 | K18: 430995 | L18: 16181 | M18: 3.754335897 | N18: 408051 | O18: 15743 | P18: 3.858096169
A19: Орловская область | B19: 30457 | C19: 172 | D19: 0.5647306038 | E19: 28966 | F19: 112 | G19: 0.3866602223 | H19: 26751 | I19: 101 | J19: 0.3775559792 | K19: 25214 | L19: 90 | M19: 0.3569445546 | N19: 23525 | O19: 77 | P19: =O19/N19*100 -> 0.3273113709
A20: Рязанская область | B20: 45957 | C20: 623 | D20: 1.355615031 | E20: 44915 | F20: 614 | G20: 1.367026606 | H20: 42577 | I20: 599 | J20: 1.40686286 | K20: 40916 | L20: 572 | M20: 1.397986118 | N20: 38662 | O20: 594 | P20: 1.536392323
A21: Смоленская область | B21: 38142 | C21: 266 | D21: 0.6973939489 | E21: 35980 | F21: 253 | G21: 0.7031684269 | H21: 33423 | I21: 250 | J21: 0.7479879125 | K21: 31716 | L21: 242 | M21: 0.7630218186 | N21: 29764 | O21: 240 | P21: 0.8063432334
A22: Тамбовская область | B22: 44207 | C22: − | D22: − | E22: 41898 | F22: 21 | G22: 0.05012172419 | H22: 38094 | I22: 40 | J22: 0.1050034126 | K22: 36174 | L22: 40 | M22: 0.1105766573 | N22: 34385 | O22: 35 | P22: 0.1017885706
A23: Тверская область | B23: 57523 | C23: 21 | D23: 0.03650713628 | E23: 56163 | F23: 35 | G23: 0.06231860834 | H23: 53950 | I23: 11 | J23: 0.0203892493 | K23: 51985 | L23: 8 | M23: 0.01538905453 | N23: 49695 | O23: 9 | P23: 0.01811047389
A24: Тульская область | B24: 58989 | C24: − | D24: − | E24: 56263 | F24: 120 | G24: 0.213284041 | H24: 53251 | I24: 118 | J24: 0.2215920828 | K24: 50975 | L24: 110 | M24: 0.2157920549 | N24: 48721 | O24: 101 | P24: 0.2073028058
A25: Ярославская область | B25: 67440 | C25: 957 | D25: 1.419039146 | E25: 64766 | F25: 886 | G25: 1.368001729 | H25: 60504 | I25: 811 | J25: 1.340407246 | K25: 57161 | L25: 749 | M25: 1.310333969 | N25: 52858 | O25: 643 | P25: 1.21646676
A26: г. Москва | B26: 441285 | C26: 8003 | D26: 1.813567196 | E26: 417213 | F26: 9307 | G26: 2.230755034 | H26: 389599 | I26: 10382 | J26: 2.664791234 | K26: 372333 | L26: 11867 | M26: 3.187200705 | N26: 357658 | O26: 11860 | P26: 3.316016977
A27: Северо-Западный федеральный округ | B27: 744775 | C27: 5394 | D27: 0.7242455775 | E27: 721264 | F27: 5516 | G27: 0.7647685175 | H27: 678730 | I27: 5344 | J27: 0.7873528502 | K27: 640819 | L27: 6143 | M27: 0.9586170198 | N27: 603824 | O27: 6086 | P27: =O27/N27*100 -> 1.00790959
A28: Республика Карелия | B28: 32312 | C28: 223 | D28: 0.6901460758 | E28: 31095 | F28: 223 | G28: 0.7171570992 | H28: 28984 | I28: 190 | J28: 0.6555340878 | K28: 27289 | L28: 170 | M28: 0.6229616329 | N28: 25413 | O28: 153 | P28: 0.6020540668
A29: Республика Коми | B29: 50467 | C29: − | D29: − | E29: 47117 | F29: − | G29: − | H29: 43335 | I29: - | J29: - | K29: 40201 | L29: - | M29: - | N29: 37626 | O29: – | P29: –
A30: Архангельская область | B30: 62273 | C30: 149 | D30: 0.2392690251 | E30: 59587 | F30: 139 | G30: 0.2332723581 | H30: 55370 | I30: 144 | J30: 0.2600686292 | K30: 51574 | L30: 154 | M30: 0.2986000698 | N30: 48253 | O30: 137 | P30: 0.2839201708
A31: Ненецкий автономный округ | B31: 3416 | C31: − | D31: − | E31: 3382 | F31: − | G31: − | H31: 3178 | I31: - | J31: - | K31: 2992 | L31: - | M31: - | N31: 2848 | O31: – | P31: –
A32: Архангельская область без Ненецкого округа | B32: 58857 | C32: 149 | D32: 0.2531559543 | E32: 56205 | F32: 139 | G32: 0.2473089583 | H32: 52192 | I32: 144 | J32: 0.2759043532 | K32: 48582 | L32: 154 | M32: 0.3169898316 | N32: 45405 | O32: 137 | P32: 0.3017288845
A33: Вологодская область | B33: 70326 | C33: 1129 | D33: 1.605380656 | E33: 66048 | F33: 1093 | G33: 1.654857074 | H33: 60981 | I33: 967 | J33: 1.585739821 | K33: 57235 | L33: 997 | M33: 1.74194112 | N33: 53689 | O33: 1067 | P33: 1.987371715
A34: Калининградская область | B34: 52848 | C34: 503 | D34: 0.9517862549 | E34: 51238 | F34: 522 | G34: 1.018775128 | H34: 48141 | I34: 529 | J34: 1.098855445 | K34: 46297 | L34: 770 | M34: 1.66317472 | N34: 43902 | O34: 859 | P34: 1.956630677
A35: Ленинградская область | B35: 87074 | C35: 1402 | D35: 1.610124722 | E35: 87665 | F35: 1622 | G35: 1.850225289 | H35: 85713 | I35: 1666 | J35: 1.943695822 | K35: 84179 | L35: 2019 | M35: 2.398460424 | N35: 83286 | O35: 2165 | P35: 2.599476503
A36: Мурманская область | B36: 41702 | C36: − | D36: − | E36: 39283 | F36: − | G36: − | H36: 36538 | I36: - | J36: - | K36: 34452 | L36: - | M36: - | N36: 31802 | O36: –
A37: Новгородская область | B37: 31517 | C37: − | D37: − | E37: 29679 | F37: − | G37: − | H37: 27589 | I37: - | J37: - | K37: 25785 | L37: - | M37: - | N37: 23834 | O37: –
A38: Псковская область | B38: 28272 | C38: 206 | D38: 0.7286361064 | E38: 27264 | F38: 206 | G38: 0.7555751174 | H38: 25634 | I38: 191 | J38: 0.7451041585 | K38: 24397 | L38: 187 | M38: 0.7664876829 | N38: 22985 | O38: 69 | P38: 0.3001957799
A39: г.Санкт-Петербург | B39: 287984 | C39: 1782 | D39: 0.6187843769 | E39: 282288 | F39: 1711 | G39: 0.6061185739 | H39: 266445 | I39: 1657 | J39: 0.6218919477 | K39: 249410 | L39: 1846 | M39: 0.7401467463 | N39: 233034 | O39: 1636 | P39: 0.7020434786
A40: Южный федеральный округ | B40: 723760 | C40: 4906 | D40: 0.6778490107 | E40: 705078 | F40: 4679 | G40: 0.6636145221 | H40: 676096 | I40: 4830 | J40: 0.7143955888 | K40: 652014 | L40: 4954 | M40: 0.7597996362 | N40: 626552 | O40: 4700 | P40: 0.7501372592
A41: Республика Адыгея(Адыгея) | B41: 23130 | C41: − | D41: − | E41: 22587 | F41: − | G41: − | H41: 22050 | I41: - | J41: - | K41: 21505 | L41: - | M41: - | N41: 20719 | O41: – | P41: –
A42: Республика Калмыкия | B42: 12017 | C42: 110 | D42: 0.9153698927 | E42: 11790 | F42: 140 | G42: 1.187446989 | H42: 11459 | I42: 140 | J42: 1.221747098 | K42: 11215 | L42: 140 | M42: 1.248328132 | N42: 10816 | O42: 140 | P42: 1.294378698
A43: Республика Крым | B43: 80449 | C43: 883 | D43: 1.097589777 | E43: 79349 | F43: 734 | G43: 0.9250274106 | H43: 78035 | I43: 777 | J43: 0.9957070545 | K43: 76249 | L43: 783 | M43: 1.026898713 | N43: 73191 | O43: 773 | P43: 1.056140782
A44: Краснодарский край | B44: 264270 | C44: 2022 | D44: 0.7651265751 | E44: 258316 | F44: 2171 | G44: 0.8404434878 | H44: 247225 | I44: 2268 | J44: 0.9173829508 | K44: 239232 | L44: 2276 | M44: 0.9513777421 | N44: 233079 | O44: 2256 | P44: 0.9679121671
A45: Астраханская область | B45: 45682 | C45: 386 | D45: 0.8449717613 | E45: 43727 | F45: 354 | G45: 0.8095684588 | H45: 42007 | I45: 361 | J45: 0.8593805794 | K45: 40472 | L45: 385 | M45: 0.9512749555 | N45: 38891 | O45: 110 | P45: 0.2828417886
A46: Волгоградская область | B46: 104144 | C46: 718 | D46: 0.68943002 | E46: 99831 | F46: 657 | G46: 0.6581122096 | H46: 93541 | I46: 654 | J46: 0.6991586577 | K46: 89034 | L46: 752 | M46: 0.844621156 | N46: 84383 | O46: 818 | P46: 0.969389569
A47: Ростовская область | B47: 173205 | C47: 777 | D47: 0.4486013683 | E47: 168508 | F47: 605 | G47: 0.359033399 | H47: 161477 | I47: 581 | J47: 0.3598035634 | K47: 154635 | L47: 570 | M47: 0.3686099525 | N47: 146306 | O47: 519 | P47: 0.3547359643
A48: г. Севастополь | B48: 20863 | C48: 10 | D48: 0.04793174519 | E48: 20970 | F48: 18 | G48: 0.08583690987 | H48: 20302 | I48: 49 | J48: 0.2413555315 | K48: 19672 | L48: 48 | M48: 0.2440016267 | N48: 19167 | O48: 84 | P48: 0.4382532478
A49: Северо-Кавказский федеральный округ | B49: 439691 | C49: 6571 | D49: 1.494458608 | E49: 442366 | F49: 5865 | G49: 1.325825222 | H49: 439223 | I49: 6762 | J49: 1.539536864 | K49: 441339 | L49: 6821 | M49: 1.545523962 | N49: 436333 | O49: 5844 | P49: 1.339344033
A50: Республика Дагестан | B50: 101444 | C50: 4654 | D50: 4.587752849 | E50: 104054 | F50: 4059 | G50: 3.900859169 | H50: 107898 | I50: 5130 | J50: 4.754490352 | K50: 109570 | L50: 5044 | M50: 4.603449849 | N50: 108235 | O50: 3948 | P50: 3.647618608
A51: Республика Ингушетия | B51: 21625 | C51: 90 | D51: 0.4161849711 | E51: 23471 | F51: − | G51: − | H51: 24193 | I51: - | J51: - | K51: 25859 | L51: - | M51: - | N51: 25267 | O51: – | P51: –
A52: Кабардино-Балкарская Республика | B52: 50356 | C52: 316 | D52: 0.6275319724 | E52: 49711 | F52: 241 | G52: 0.4848021565 | H52: 47615 | I52: 191 | J52: 0.4011340964 | K52: 47151 | L52: 199 | M52: 0.4220483129 | N52: 47184 | O52: 230 | P52: 0.487453374
A53: Карачаево-Черкесская Республика | B53: 19325 | C53: 151 | D53: 0.7813712807 | E53: 19352 | F53: 148 | G53: 0.7647788342 | H53: 18887 | I53: 151 | J53: 0.7994917139 | K53: 18749 | L53: 148 | M53: 0.7893754334 | N53: 18133 | O53: 150 | P53: 0.8272210886
A54: Республика Северная Осетия-Алания | B54: 32080 | C54: 675 | D54: 2.104114713 | E54: 32609 | F54: 954 | G54: 2.925572695 | H54: 31354 | I54: 893 | J54: 2.848121452 | K54: 30886 | L54: 937 | M54: 3.033736968 | N54: 29849 | O54: 962 | P54: 3.222888539
A55: Чеченская Республика | B55: 86483 | C55: 415 | D55: 0.4798630945 | E55: 88457 | F55: 200 | G55: 0.2260985564 | H55: 89261 | I55: 145 | J55: 0.1624449648 | K55: 92630 | L55: 268 | M55: 0.2893231135 | N55: 97108 | O55: 180 | P55: 0.1853606294
A56: Ставропольский край | B56: 128378 | C56: 270 | D56: 0.2103164094 | E56: 124712 | F56: 263 | G56: 0.2108858811 | H56: 120015 | I56: 252 | J56: 0.2099737533 | K56: 116494 | L56: 225 | M56: 0.1931429945 | N56: 110557 | O56: 374 | P56: 0.3382870375
A57: Приволжский федеральный округ | B57: 1523906 | C57: 27641 | D57: 1.813825787 | E57: 1451155 | F57: 25673 | G57: 1.769142511 | H57: 1368215 | I57: 23526 | J57: 1.719466604 | K57: 1296153 | L57: 22496 | M57: 1.735597572 | N57: 1227930 | O57: 20196 | P57: 1.644719162
A58: Республика Башкортостан | B58: 230856 | C58: 1731 | D58: 0.7498180684 | E58: 219562 | F58: 2411 | G58: 1.098095299 | H58: 208461 | I58: 2497 | J58: 1.197825972 | K58: 196104 | L58: 2492 | M58: 1.270754294 | N58: 185995 | O58: 2274 | P58: 1.222613511
A59: Республика Марий Эл | B59: 37423 | C59: 308 | D59: 0.8230232745 | E59: 35669 | F59: 45 | G59: 0.1261599708 | H59: 33615 | I59: 70 | J59: 0.2082403689 | K59: 31876 | L59: 37 | M59: 0.1160747898 | N59: 30375 | O59: – | P59: –
A60: Республика Мордовия | B60: 30967 | C60: 51 | D60: 0.1646914457 | E60: 29450 | F60: 66 | G60: 0.2241086587 | H60: 27524 | I60: 100 | J60: 0.363319285 | K60: 26197 | L60: 59 | M60: 0.2252166279 | N60: 24746 | O60: 44 | P60: 0.1778065142
A61: Республика Татарстан | B61: 216025 | C61: 2857 | D61: 1.322532114 | E61: 209381 | F61: 2255 | G61: 1.076984063 | H61: 200651 | I61: 2153 | J61: 1.073007361 | K61: 193090 | L61: 2103 | M61: 1.089129422 | N61: 185511 | O61: 1727 | P61: 0.9309421005
A62: Удмуртская Республика | B62: 91340 | C62: 48 | D62: 0.05255090869 | E62: 85673 | F62: 36 | G62: 0.04202023975 | H62: 79400 | I62: 30 | J62: 0.03778337531 | K62: 74415 | L62: 30 | M62: 0.04031445273 | N62: 70447 | O62: 18 | P62: 0.02555112354
A63: Чувашская Республика | B63: 70497 | C63: 216 | D63: 0.3063960169 | E63: 66118 | F63: 238 | G63: 0.3599624913 | H63: 61821 | I63: 239 | J63: 0.3866000226 | K63: 58117 | L63: 218 | M63: 0.3751053908 | N63: 54736 | O63: 208 | P63: 0.3800058462
A64: Пермский край | B64: 157201 | C64: 2198 | D64: 1.398209935 | E64: 150458 | F64: 1978 | G64: 1.314652594 | H64: 141112 | I64: 1747 | J64: 1.238023697 | K64: 133038 | L64: 1625 | M64: 1.221455524 | N64: 125688 | O64: 1474 | P64: 1.17274521
A65: Кировская область | B65: 64524 | C65: 891 | D65: 1.380881532 | E65: 60998 | F65: 931 | G65: 1.52627955 | H65: 57326 | I65: 928 | J65: 1.618811708 | K65: 54148 | L65: 932 | M65: 1.72120854 | N65: 50610 | O65: 635 | P65: 1.254692748
A66: Нижегородская область | B66: 164325 | C66: 1008 | D66: 0.6134185304 | E66: 156419 | F66: 1129 | G66: 0.7217793235 | H66: 146465 | I66: 1002 | J66: 0.6841224866 | K66: 137661 | L66: 970 | M66: 0.7046294884 | N66: 129488 | O66: 926 | P66: 0.7151241814
A67: Оренбургская область | B67: 101444 | C67: 444 | D67: 0.4376799022 | E67: 95637 | F67: 253 | G67: 0.264541966 | H67: 89394 | I67: 267 | J67: 0.2986777636 | K67: 84807 | L67: 221 | M67: 0.2605916964 | N67: 80555 | O67: 210 | P67: 0.260691453
A68: Пензенская область | B68: 54590 | C68: − | D68: − | E68: 51525 | F68: − | G68: − | H68: 48472 | I68: - | J68: - | K68: 46282 | L68: - | M68: - | N68: 43532 | O68: – | P68: –
A69: Самарская область | B69: 151483 | C69: 17307 | D69: 11.42504439 | E69: 144994 | F69: 15779 | G69: 10.88251928 | H69: 136806 | I69: 13978 | J69: 10.21738813 | K69: 129806 | L69: 13334 | M69: 10.27225244 | N69: 122401 | O69: 12219 | P69: 9.982761579
A70: Саратовская область | B70: 96015 | C70: 581 | D70: 0.6051137843 | E70: 91507 | F70: 549 | G70: 0.5999541019 | H70: 86114 | I70: 511 | J70: 0.5933994472 | K70: 82621 | L70: 471 | M70: 0.5700729839 | N70: 78345 | O70: 456 | P70: 0.5820409726
A71: Ульяновская область | B71: 57216 | C71: 1 | D71: =$C71/$B71*100 -> 0.001747762864 | E71: 53764 | F71: 3 | G71: =$F71/$E71*100 -> 0.005579941969 | H71: 51054 | I71: 4 | J71: 0.00783484154 | K71: 47991 | L71: 4 | M71: 0.008334896126 | N71: 45501 | O71: 5 | P71: 0.01098876948
A72: Уральский федеральный округ | B72: 756577 | C72: 8529 | D72: =$C72/$B72*100 -> 1.127314206 | E72: 724430 | F72: 8116 | G72: =$F72/$E72*100 -> 1.120329086 | H72: 685834 | I72: 7630 | J72: 1.112514107 | K72: 654969 | L72: 7208 | M72: =L72/K72*100 -> 1.1005101 | N72: 627014 | O72: 6709 | P72: 1.069992058
A73: Курганская область | B73: 38365 | C73: 72 | D73: 0.1876710543 | E73: 36798 | F73: 65 | G73: 0.1766400348 | H73: 34380 | I73: 59 | J73: 0.171611402 | K73: 32511 | L73: 60 | M73: 0.1845529205 | N73: 31020 | O73: 56 | P73: 0.1805286912
A74: Свердловская область | B74: 249226 | C74: 4658 | D74: 1.868986382 | E74: 240859 | F74: 4446 | G74: 1.84589324 | H74: 227563 | I74: 4109 | J74: 1.805653819 | K74: 215684 | L74: 3805 | M74: 1.764154967 | N74: 205591 | O74: 3553 | P74: =O74/N74*100 -> 1.728188491
A75: Тюменская область | B75: 260927 | C75: 2434 | D75: 0.9328279557 | E75: 250547 | F75: 2291 | G75: 0.9143992943 | H75: 241210 | I75: 2188 | J75: 0.9070934041 | K75: 232990 | L75: 2111 | M75: 0.9060474698 | N75: 225253 | O75: 1899 | P75: 0.8430520348
A76: Ханты-Мансийский автономный округ - Югра | B76: 108735 | C76: 553 | D76: 0.5085758955 | E76: 104578 | F76: 364 | G76: 0.3480655587 | H76: 99977 | I76: 289 | J76: 0.2890664853 | K76: 96206 | L76: 331 | M76: 0.3440533854 | N76: 92459 | O76: 285 | P76: 0.3082447355
A77: Ямало-Ненецкий автономный округ | B77: 38237 | C77: − | D77: − | E77: 36976 | F77: − | G77: − | H77: 35557 | I77: - | J77: - | K77: 34585 | L77: - | M77: - | N77: 33524 | O77: – | P77: –
A78: Тюменская область без автономий | B78: 113955 | C78: 1881 | D78: 1.650651573 | E78: 108993 | F78: 1927 | G78: 1.76800345 | H78: 105676 | I78: 1899 | J78: 1.797002158 | K78: 102199 | L78: 1780 | M78: 1.741700017 | N78: 99270 | O78: 1614 | P78: 1.625868843
A79: Челябинская область | B79: 208059 | C79: 1365 | D79: 0.656063905 | E79: 196226 | F79: 1314 | G79: 0.6696360319 | H79: 182681 | I79: 1274 | J79: 0.6973905332 | K79: 173784 | L79: 1232 | M79: 0.7089260231 | N79: 165150 | O79: 1201 | P79: 0.7272176809
A80: Сибирский федеральный округ | B80: 880685 | C80: 13175 | D80: 1.495994595 | E80: 845610 | F80: 11607 | G80: 1.372618583 | H80: 801542 | I80: 10664 | J80: 1.330435585 | K80: 766374 | L80: 10085 | M80: 1.315937127 | N80: 730392 | O80: 8979 | P80: 1.229339861
A81: Республика Алтай | B81: 14115 | C81: 801 | D81: 5.674814028 | E81: 13993 | F81: 766 | G81: 5.474165654 | H81: 13307 | I81: 824 | J81: 6.192229654 | K81: 12998 | L81: 769 | M81: 5.916294815 | N81: 12308 | O81: 600 | P81: 4.874878128
A82: Республика Тыва | B82: 25046 | C82: 65 | D82: 0.2595224786 | E82: 25744 | F82: 29 | G82: 0.1126476072 | H82: 26250 | I82: 87 | J82: 0.3314285714 | K82: 25988 | L82: 49 | M82: 0.1885485609 | N82: 25993 | O82: 66 | P82: 0.2539145154
A83: Республика Хакасия | B83: 32110 | C83: 450 | D83: 1.401432576 | E83: 30312 | F83: 429 | G83: 1.415281077 | H83: 28161 | I83: 366 | J83: 1.299669756 | K83: 27212 | L83: 361 | M83: 1.326620609 | N83: 26085 | O83: 367 | P83: 1.406938854
A84: Алтайский край | B84: 101983 | C84: 779 | D84: 0.763852799 | E84: 96742 | F84: 744 | G84: 0.7690558392 | H84: 90368 | I84: 688 | J84: 0.7613314448 | K84: 85570 | L84: 637 | M84: 0.7444197733 | N84: 80975 | O84: 621 | P84: 0.7669033652
A85: Красноярский край | B85: 146325 | C85: 933 | D85: 0.6376217324 | E85: 144496 | F85: 984 | G85: 0.680987709 | H85: 138917 | I85: 896 | J85: 0.6449894541 | K85: 133678 | L85: 806 | M85: 0.6029413965 | N85: 127263 | O85: 705 | P85: 0.5539709106
A86: Иркутская область | B86: 139992 | C86: 1905 | D86: 1.360792045 | E86: 134463 | F86: 1894 | G86: 1.408565925 | H86: 128106 | I86: 1822 | J86: 1.422259691 | K86: 123738 | L86: 1723 | M86: 1.392458259 | N86: 118322 | O86: 1615 | P86: 1.364919457
A87: Кемеровская область | B87: 125685 | C87: 1010 | D87: 0.8035962923 | E87: 117423 | F87: 917 | G87: 0.7809372951 | H87: 109951 | I87: 661 | J87: 0.6011768879 | K87: 103402 | L87: 613 | M87: 0.5928318601 | N87: 97934 | O87: 540 | P87: 0.5513917536
A88: Новосибирская область | B88: 145924 | C88: 2132 | D88: 1.461034511 | E88: 140115 | F88: 1979 | G88: 1.412411234 | H88: 133029 | I88: 1858 | J88: 1.39668794 | K88: 127167 | L88: 1768 | M88: 1.390297797 | N88: 121847 | O88: 1704 | P88: 1.398475137
A89: Омская область | B89: 95110 | C89: 2538 | D89: 2.668489118 | E89: 90830 | F89: 2507 | G89: 2.760101288 | H89: 85655 | I89: 2423 | J89: 2.828789913 | K89: 81737 | L89: 2323 | M89: 2.84204216 | N89: 77465 | O89: 1789 | P89: 2.309430065
A90: Томская область | B90: 54395 | C90: 2562 | D90: 4.709991727 | E90: 51492 | F90: 1358 | G90: 2.637302882 | H90: 47798 | I90: 1039 | J90: 2.173731118 | K90: 44884 | L90: 1036 | M90: 2.308172177 | N90: 42200 | O90: 972 | P90: 2.303317536
A91: Дальневосточный федеральный округ | B91: 433215 | C91: 13413 | D91: 3.09615318 | E91: 422108 | F91: 12271 | G91: 2.907075914 | H91: 406772 | I91: 10806 | J91: 2.656525031 | K91: 393110 | L91: 10035 | M91: 2.552720613 | N91: 376374 | O91: 8746 | P91: 2.323752438
A92: Республика Бурятия | B92: 58132 | C92: 4875 | D92: 8.386086837 | E92: 57446 | F92: 4117 | G92: 7.166730495 | H92: 55154 | I92: 3409 | J92: 6.180875367 | K92: 54002 | L92: 2986 | M92: 5.529424836 | N92: 51591 | O92: 1964 | P92: 3.806865539
A93: Республика Саха (Якутия) | B93: 64594 | C93: 4445 | D93: 6.881444097 | E93: 63028 | F93: 4308 | G93: 6.835057435 | H93: 60560 | I93: 3984 | J93: 6.578599736 | K93: 58858 | L93: 3753 | M93: 6.376363451 | N93: 56657 | O93: 3503 | P93: 6.182819422
A94: Забайкальский край | B94: 53235 | C94: 283 | D94: 0.531605147 | E94: 51868 | F94: 264 | G94: 0.5089843449 | H94: 50502 | I94: 240 | J94: 0.4752287038 | K94: 49088 | L94: 233 | M94: 0.4746577575 | N94: 46809 | O94: 240 | P94: 0.5127219125
A95: Камчатский край | B95: 17552 | C95: 180 | D95: 1.025524157 | E95: 17201 | F95: 171 | G95: 0.9941282484 | H95: 16423 | I95: - | J95: - | K95: 15884 | L95: - | M95: - | N95: 14928 | O95: – | P95: –
A96: Приморский край | B96: 86193 | C96: 1054 | D96: 1.222837121 | E96: 84472 | F96: 1003 | G96: 1.187375698 | H96: 81344 | I96: 964 | J96: 1.18509048 | K96: 77619 | L96: 875 | M96: 1.127301305 | N96: 74945 | O96: 854 | P96: 1.139502302
A97: Хабаровский край | B97: 69602 | C97: 1901 | D97: 2.731243355 | E97: 66813 | F97: 1795 | G97: 2.686602907 | H97: 65597 | I97: 1627 | J97: 2.480296355 | K97: 64251 | L97: 1581 | M97: 2.460662091 | N97: 61525 | O97: 1570 | P97: 2.551808208
A98: Амурская область | B98: 36033 | C98: 505 | D98: 1.401493076 | E98: 34754 | F98: 492 | G98: 1.415664384 | H98: 32978 | I98: 447 | J98: 1.355449087 | K98: 31534 | L98: 409 | M98: 1.297012748 | N98: 30178 | O98: 405 | P98: 1.342037246
A99: Магаданская область | B99: 7464 | C99: − | D99: − | E99: 7217 | F99: − | G99: − | H99: 6838 | I99: - | J99: - | K99: 6474 | L99: - | M99: - | N99: 6080 | O99: – | P99: –
A100: Сахалинская область | B100: 28990 | C100: 31 | D100: 0.1069334253 | E100: 28246 | F100: − | G100: − | H100: 26814 | I100: - | J100: - | K100: 25486 | L100: 76 | M100: 0.2982029349 | N100: 24299 | O100: 72 | P100: 0.2963084901
A101: Еврейская автономная область | B101: 8000 | C101: 139 | D101: 1.7375 | E101: 7708 | F101: 121 | G101: 1.569797613 | H101: 7320 | I101: 135 | J101: 1.844262295 | K101: 6836 | L101: 122 | M101: 1.784669397 | N101: 6418 | O101: 138 | P101: 2.150202555
A102: Чукотский автономный округ | B102: 3420 | C102: − | D102: − | E102: 3355 | F102: − | G102: − | H102: 3242 | I102: - | J102: - | K102: 3078 | L102: - | M102: - | N102: 2944 | O102: – | P102: –
A104: 1) В соответствии с Распоряжением Правительства Российской Федерации от 29 октября 2021 года № 3054-р.
A105: 2) Численность воспитанников приводится без учета численности воспитанников: - в организациях не являющихся образовательными, но осуществляющих образовательную деятельность по образовательным программам дошкольного образования, присмотр и уход за детьми (организации здравоохранения, социального обслуживания, науки, культуры и другие); - в организациях, осуществляющих только присмотр и уход за детьми, без осуществления образовательной деятельности по программам дошкольного образования; - в организациях, относящихся к субъектам малого предпринимательства, в том числе у индивидуальных предпринимателей.
